Workbook

Sheet Apoio (hidden)
B2: Listas Suspensas:
B3: Sexo | E3: PREMISSAS DA 2021
B4: Masculino | E4: Hipótese | F4: Exer. Seguinte | G4: Valor
B5: Feminino | E5: Tábua de Mortalidade Geral | F5: 0.07 | G5: AT 2012 Basic IAM desagravada em 20%
E6: Tábua de Mortalidade de Inválidos | F6: 0.01 | G6: Winklevoss desagravada em 50%
B7: Sim ou Não | E7: Tábua de Entrada em Invalidez | F7: 0 | G7: Álvaro Vindas desagravada em 70%
B8: Sim | E8: Tábua de Morbidez | F8: 0.19 | G8: Experiência Rodarte desagravada em 60%
B9: Não
E10: Taxa Real Anual de Juros | F10: 4.38 | G10: 4.38
B11: Parcelas ao ano | E11: Fator de Determinação Valor Real Longo do Tempo Ben Entidade | F11: 98.44 | G11: 98.44
B12: 12 | E12: Hipótese sobre Composição de Família de Pensionistas | F12: 0 | G12: Família Padrão
B13: 13 | E13: Hipótese sobre Rotatividade (Percentual) | F13: 2.57 | G13: 4,00% para a faixa etária de 16 a 39 anos; 0,30% para as demais faixas etárias.
E14: Indexador do Plano (Reajuste dos Benefícios) | F14: 0 | G14: IPCA (IBGE)
B15: Tipo Rendas Financeiras | E15: Duration (em meses, 179) | F15: 14.9258
B16: Renda por Prazo Determinado
B17: Renda por Prazo Indeterminado
B18: Renda por Percentual do Saldo da Conta de Benefícios
B20: Tipo Rendas Financeiras e Vitalícia
B21: Renda por Prazo Determinado
B22: Renda por Prazo Indeterminado
B23: Renda por Percentual do Saldo da Conta de Benefícios
B24: Rendas Vitalícia
B26: Nome Curto para Fórmula
B27: =IF(DESBAN!C9="Rendas Financeiras e Vitalícia","RFV","RF") -> RF

Sheet DESBAN (hidden)
B1: Parâmetros | C1: Legenda
C2: Preenchimento de Valores
C3: Títulos e Fórmulas
B5: Contribuições | E5: Tipos de Renda
B6: Taxa de Carregamento ao mês | C6: 0.09 | E6: Renda por Prazo Determinado
B7: Contribuição de Risco | C7: 0.035 | E7: Renda por Prazo Indeterminado
E8: Renda por Percentual do Saldo de Contas
B11: Percentuais de Contribuição
B12: Tipo | C12: %
B13: Contribuição Básica | C13: 0.03 | D13: 0.07 | E13: 0.12 | F13: pré-definido de acordo com salário de partic
B14: Contribuição Voluntária | C14: 0 | D14: 0.12 | E14: livre escolha, até 12%
B15: Contribuição Especial | C15: 0 | D15: - | E15: livre escolha
C18: Participante | D18: Patrocinadora
B19: Cálculo Salário Considerado | C19: =IF(IN_SalContrib>C25,C25,IN_SalContrib) -> 0
B20: Cálculo Contribuição | C20: =(MIN(MAX(0,PAR_salario_partic-DESBAN!B23),DESBAN!C23-DESBAN!B23)*DESBAN!D23+MIN(MAX(0,PAR_salario_partic-DESBAN!C23),DESBAN!C24-DESBAN!B24)*DESBAN!D24+MIN(MAX(0,PAR_salario_partic-DESBAN!C24),DESBAN!C25-DESBAN!B25)*DESBAN!D25) -> 0
B21: Parcela do SRC | D21: % CN
B22: De | C22: Até
B23: 0 | C23: =PAR_UR -> 7531.24 | D23: 0.03
B24: =PAR_UR+0.01 -> 7531.25 | C24: =3*PAR_UR -> 22593.72 | D24: 0.07
B25: =3*PAR_UR+0.01 -> 22593.73 | C25: =4.5*PAR_UR -> 33890.58 | D25: 0.12
B27: Aposentadoria
B28: Elegibilidade
B29: Tipo | C29: Idade | D29: Tempo de Plano | E29: Tempo na Patrocinadora
B30: Aposentadoria Normal | C30: 60 | D30: 10 | E30: 0 | F30: (em anos)
B31: Aposentadoria Antecipada | C31: 55 | D31: 10 | E31: 0 | F31: (em anos)
B33: Taxa de Rentabilidade | C33: 0.0438
B34: Taxa de Crescimento Salarial ao ano | C34: 0.005
B35: Qtde parcelas ao ano | C35: =PAR_n_benef -> 0 | D35: --> escolha do participante, busca do input
B37: UR (Unidade de Referência) | C37: 1 | D37: 0.1
B38: URD | C38: 7531.24 | D38: =PAR_UR*0.1 -> 753.124
B40: Fatores Atuariais para Renda por Prazo Indeterminado
B43: x | C43: M - Sem reversão | D43: F - Sem reversão | E43: M - Com reversão | F43: F - Com reversão | G43: ax(12) M | H43: ax(12) F | I43: axh(12) M | J43: axh(12) F | K43: eox M | L43: eox F
B44: 0 | C44: =G44 -> 22.54117534 | D44: =H44 -> 22.66520897 | E44: =G44+I44 -> 22.54117534 | F44: =H44+J44 -> 22.79271187 | G44: 22.54117534 | H44: 22.66520897 | I44: 0 | J44: 0.1275028991 | K44: 85.15292348 | L44: 88.0696479
B45: 1 | C45: =G45 -> 22.53772117 | D45: =H45 -> 22.66770601 | E45: =G45+I45 -> 22.53772117 | F45: =H45+J45 -> 22.78048935 | G45: 22.53772117 | H45: 22.66770601 | I45: 0 | J45: 0.1127833383 | K45: 84.27384489 | L45: 87.1960003
B46: 2 | C46: 22.50950123 | D46: 22.64530181 | E46: 22.50950123 | F46: 22.75762689 | G46: 22.50950123 | H46: 22.64530181 | I46: 0 | J46: 0.1123250783 | K46: 83.30374607 | L46: 86.2272221
B47: 3 | C47: 22.4774642 | D47: 22.61889659 | E47: 22.4774642 | F47: 22.73270893 | G47: 22.4774642 | H47: 22.61889659 | I47: 0 | J47: 0.1138123392 | K47: 82.32402139 | L47: 85.24690959
B48: 4 | C48: 22.44306254 | D48: 22.58970503 | E48: 22.44306254 | F48: 22.70612967 | G48: 22.44306254 | H48: 22.58970503 | I48: 0 | J48: 0.1164246472 | K48: 81.34065141 | L48: 84.26040344
B49: 5 | C49: 22.40603042 | D49: 22.55836419 | E49: 22.66966683 | F49: 22.67808167 | G49: 22.40603042 | H49: 22.55836419 | I49: 0.2636364084 | J49: 0.1197174805 | K49: 80.35313514 | L49: 83.27058995
B50: 6 | C50: 22.36724244 | D50: 22.52540751 | E50: 22.64045377 | F50: 22.64872078 | G50: 22.36724244 | H50: 22.52540751 | I50: 0.2732113289 | J50: 0.1233132781 | K50: 79.36501905 | L50: 82.27979506
B51: 7 | C51: 22.32671306 | D51: 22.49083819 | E51: 22.60976454 | F51: 22.61801614 | G51: 22.32671306 | H51: 22.49083819 | I51: 0.2830514817 | J51: 0.127177952 | K51: 78.37662969 | L51: 81.28830104
B52: 8 | C52: 22.28427483 | D52: 22.45460428 | E52: 22.57766465 | F52: 22.58591688 | G52: 22.28427483 | H52: 22.45460428 | I52: 0.2933898152 | J52: 0.131312599 | K52: 77.38765858 | L52: 80.29618675
B53: 9 | C53: 22.23964454 | D53: 22.41646842 | E53: 22.54403263 | F53: 22.55230446 | G53: 22.23964454 | H53: 22.41646842 | I53: 0.3043880871 | J53: 0.1358360443 | K53: 76.39743994 | L53: 79.30289019
B54: 10 | C54: 22.19276346 | D54: 22.37653092 | E54: 22.50881969 | F54: 22.51717817 | G54: 22.19276346 | H54: 22.37653092 | I54: 0.3160562359 | J54: 0.14064725 | K54: 75.4061236 | L54: 78.30906883
B55: 11 | C55: 22.14351587 | D55: 22.33476794 | E55: 22.47195549 | F55: 22.48049135 | G55: 22.14351587 | H55: 22.33476794 | I55: 0.328439623 | J55: 0.14572341 | K55: 74.4136749 | L55: 77.31492051
B56: 12 | C56: 22.0920519 | D56: 22.29120886 | E56: 22.43345673 | F56: 22.44221479 | G56: 22.0920519 | H56: 22.29120886 | I56: 0.3414048314 | J56: 0.1510059271 | K56: 73.42094872 | L56: 76.32082035
B57: 13 | C57: 22.03876065 | D57: 22.24590195 | E57: 22.39342234 | F57: 22.4023246 | G57: 22.03876065 | H57: 22.24590195 | I57: 0.3546616839 | J57: 0.1564226527 | K57: 72.42952523 | L57: 75.32718983
B58: 14 | C58: 21.98386513 | D58: 22.19887861 | E58: 22.35189037 | F58: 22.36078941 | G58: 21.98386513 | H58: 22.19887861 | I58: 0.3680252387 | J58: 0.161910796 | K58: 71.44034506 | L58: 74.33437393
B59: 15 | C59: 21.92741659 | D59: 22.15026139 | E59: 22.30884094 | F59: 22.31760928 | G59: 21.92741659 | H59: 22.15026139 | I59: 0.3814243507 | J59: 0.1673478854 | K59: 70.45374112 | L59: 73.34299879
B60: 16 | C60: 21.86930655 | D60: 22.10001434 | E60: 22.26419532 | F60: 22.27272582 | G60: 21.86930655 | H60: 22.10001434 | I60: 0.394888767 | J60: 0.1727114745 | K60: 69.46952625 | L60: 72.35313995
B61: 17 | C61: 21.80940404 | D61: 22.0480095 | E61: 22.21786575 | F61: 22.22604581 | G61: 21.80940404 | H61: 22.0480095 | I61: 0.408461715 | J61: 0.1780363142 | K61: 68.48746299 | L61: 71.36458079
B62: 18 | C62: 21.74755476 | D62: 21.99409558 | E62: 22.16975476 | F62: 22.17746519 | G62: 21.74755476 | H62: 21.99409558 | I62: 0.4222000033 | J62: 0.1833696071 | K62: 67.50726671 | L62: 70.37705515
B63: 19 | C63: 21.68359804 | D63: 21.9380613 | E63: 22.11976062 | F63: 22.1268563 | G63: 21.68359804 | H63: 21.9380613 | I63: 0.4361625794 | J63: 0.1887950042 | K63: 66.52866225 | L63: 69.39013859
B64: 20 | C64: 21.61736653 | D64: 21.87975843 | E64: 22.06777855 | F64: 22.0741117 | G64: 21.61736653 | H64: 21.87975843 | I64: 0.4504120228 | J64: 0.1943532617 | K64: 65.55138393 | L64: 68.4036437
B65: 21 | C65: 21.54872119 | D65: 21.81903262 | E65: 22.01370989 | F65: 22.01911942 | G65: 21.54872119 | H65: 21.81903262 | I65: 0.4649886986 | J65: 0.2000867972 | K65: 64.57527957 | L65: 67.41739018
B66: 22 | C66: 21.47762238 | D66: 21.75575866 | E66: 21.95748819 | F66: 21.96177584 | G66: 21.47762238 | H66: 21.75575866 | I66: 0.479865805 | J66: 0.2060171873 | K66: 63.60050953 | L66: 66.43131189
B67: 23 | C67: 21.40397531 | D67: 21.68980592 | E67: 21.89902486 | F67: 21.9019698 | G67: 21.40397531 | H67: 21.68980592 | I67: 0.4950495525 | J67: 0.2121638869 | K67: 62.62707341 | L67: 65.44534506
B68: 24 | C68: 21.32782015 | D68: 21.62105583 | E68: 21.83827681 | F68: 21.83959292 | G68: 21.32782015 | H68: 21.62105583 | I68: 0.5104566601 | J68: 0.2185370898 | K68: 61.65536653 | L68: 64.45948025
B69: 25 | C69: 21.24911003 | D69: 21.54933172 | E69: 21.77516855 | F69: 21.77451266 | G69: 21.24911003 | H69: 21.54933172 | I69: 0.5260585215 | J69: 0.2251809354 | K69: 60.68551875 | L69: 63.47355443
B70: 26 | C70: 21.16782961 | D70: 21.47448473 | E70: 21.70963382 | F70: 21.70660414 | G70: 21.16782961 | H70: 21.47448473 | I70: 0.5418042138 | J70: 0.2321194077 | K70: 59.71774729 | L70: 62.48751246
B71: 27 | C71: 21.08396136 | D71: 21.39646458 | E71: 21.64160403 | F71: 21.6357765 | G71: 21.08396136 | H71: 21.39646458 | I71: 0.5576426726 | J71: 0.2393119119 | K71: 58.75225581 | L71: 61.50159922
B72: 28 | C72: 20.99698715 | D72: 21.31511322 | E72: 21.57082536 | F72: 21.56189502 | G72: 20.99698715 | H72: 21.31511322 | I72: 0.5738382071 | J72: 0.2467818003 | K72: 57.78788136 | L72: 60.51575488
B73: 29 | C73: 20.90657566 | D73: 21.23035256 | E73: 21.4971086 | F73: 21.48485127 | G73: 20.90657566 | H73: 21.23035256 | I73: 0.5905329416 | J73: 0.2544987029 | K73: 56.82406431 | L73: 59.53016212
B74: 30 | C74: 20.81246816 | D74: 21.14208293 | E74: 21.42028658 | F74: 21.40452588 | G74: 20.81246816 | H74: 21.14208293 | I74: 0.6078184194 | J74: 0.2624429571 | K74: 55.86049573 | L74: 58.54494697
B75: 31 | C75: 20.71444651 | D75: 21.05026834 | E75: 21.34020432 | F75: 21.3208227 | G75: 20.71444651 | H75: 21.05026834 | I75: 0.6257578091 | J75: 0.2705543573 | K75: 54.89701344 | L75: 57.56041427
B76: 32 | C76: 20.61223274 | D76: 20.95481813 | E76: 21.25668353 | F76: 21.23362341 | G76: 20.61223274 | H76: 20.95481813 | I76: 0.6444507892 | J76: 0.2788052832 | K76: 53.93333136 | L76: 56.57671538
B77: 33 | C77: 20.50553794 | D77: 20.85546583 | E77: 21.16953592 | F77: 21.1427393 | G77: 20.50553794 | H77: 20.85546583 | I77: 0.6639979767 | J77: 0.2872734695 | K77: 52.9691771 | L77: 55.59354344
B78: 34 | C78: 20.3939282 | D78: 20.75198548 | E78: 21.07851682 | F78: 21.04799339 | G78: 20.3939282 | H78: 20.75198548 | I78: 0.6845886119 | J78: 0.2960079104 | K78: 52.00395572 | L78: 54.61073799
B79: 35 | C79: 20.27702064 | D79: 20.64419237 | E79: 20.98339575 | F79: 20.94922067 | G79: 20.27702064 | H79: 20.64419237 | I79: 0.7063751132 | J79: 0.3050282989 | K79: 51.03726941 | L79: 53.62827555
B80: 36 | C80: 20.15459996 | D80: 20.53196072 | E80: 20.88400327 | F80: 20.84627628 | G80: 20.15459996 | H80: 20.53196072 | I80: 0.7294033054 | J80: 0.3143155536 | K80: 50.06918868 | L80: 52.64630278
B81: 37 | C81: 20.02663813 | D81: 20.41515792 | E81: 20.78023673 | F81: 20.7390085 | G81: 20.02663813 | H81: 20.41515792 | I81: 0.753598598 | J81: 0.3238505879 | K81: 49.10025828 | L81: 51.66495697
B82: 38 | C82: 19.8932649 | D82: 20.29367732 | E82: 20.67204685 | F82: 20.62727299 | G82: 19.8932649 | H82: 20.29367732 | I82: 0.7787819484 | J82: 0.3335956721 | K82: 48.13138237 | L82: 50.684448
B83: 39 | C83: 19.75455968 | D83: 20.16745505 | E83: 20.55936464 | F83: 20.5109382 | G83: 19.75455968 | H83: 20.16745505 | I83: 0.8048049647 | J83: 0.3434831531 | K83: 47.16329771 | L83: 49.70509234
B84: 40 | C84: 19.61051788 | D84: 20.03640483 | E84: 20.44208824 | F84: 20.38986174 | G84: 19.61051788 | H84: 20.03640483 | I84: 0.8315703596 | J84: 0.3534569152 | K84: 46.19650827 | L84: 48.7271461
B85: 41 | C85: 19.46111292 | D85: 19.9004172 | E85: 20.32010743 | F85: 20.26389003 | G85: 19.46111292 | H85: 19.9004172 | I85: 0.8589945053 | J85: 0.3634728263 | K85: 45.23144709 | L85: 47.7508083
B86: 42 | C86: 19.30621618 | D86: 19.75927782 | E86: 20.19326996 | F86: 20.13282575 | G86: 19.30621618 | H86: 19.75927782 | I86: 0.8870537782 | J86: 0.373547922 | K86: 44.26830036 | L86: 46.77603479
B87: 43 | C87: 19.14567362 | D87: 19.61277788 | E87: 20.06141233 | F87: 19.99647568 | G87: 19.14567362 | H87: 19.61277788 | I87: 0.9157387055 | J87: 0.3836978067 | K87: 43.30720115 | L87: 45.80281634
B88: 44 | C88: 18.97916479 | D88: 19.46058619 | E88: 19.92430379 | F88: 19.85459115 | G88: 18.97916479 | H88: 19.46058619 | I88: 0.9451389917 | J88: 0.3940049641 | K88: 42.34792382 | L88: 44.83088522
B89: 45 | C89: 18.80643213 | D89: 19.30240547 | E89: 19.78173497 | F89: 19.70693185 | G89: 18.80643213 | H89: 19.30240547 | I89: 0.9753028462 | J89: 0.4045263802 | K89: 41.39041746 | L89: 43.86009191
B90: 46 | C90: 18.62728091 | D90: 19.13786246 | E90: 19.63351881 | F90: 19.55321953 | G90: 18.62728091 | H90: 19.13786246 | I90: 1.006237902 | J90: 0.4153570645 | K90: 40.43479077 | L90: 42.8901526
B91: 47 | C91: 18.44173046 | D91: 18.96678679 | E91: 19.47955042 | F91: 19.39326028 | G91: 18.44173046 | H91: 18.96678679 | I91: 1.037819957 | J91: 0.4264734877 | K91: 39.48161724 | L91: 41.92127285
B92: 48 | C92: 18.25008932 | D92: 18.7891043 | E92: 19.31984694 | F92: 19.22689703 | G92: 18.25008932 | H92: 18.7891043 | I92: 1.069757615 | J92: 0.4377927306 | K92: 38.53204665 | L92: 40.95387217
B93: 49 | C93: 18.05265846 | D93: 18.60485225 | E93: 19.15442172 | F93: 19.05402135 | G93: 18.05265846 | H93: 18.60485225 | I93: 1.10176326 | J93: 0.4491690988 | K93: 37.58713588 | L93: 39.98859519
B94: 50 | C94: 17.84956848 | D94: 18.41381607 | E94: 18.98322294 | F94: 18.87441078 | G94: 17.84956848 | H94: 18.41381607 | I94: 1.133654458 | J94: 0.4605947182 | K94: 36.64752289 | L94: 39.02552785
B95: 51 | C95: 17.64090877 | D95: 18.21605104 | E95: 18.80618172 | F95: 18.68797599 | G95: 17.64090877 | H95: 18.21605104 | I95: 1.165272951 | J95: 0.4719249466 | K95: 35.71372158 | L95: 38.06532726
B96: 52 | C96: 17.42661142 | D96: 18.01182261 | E96: 18.62317691 | F96: 18.49474254 | G96: 17.42661142 | H96: 18.01182261 | I96: 1.19656549 | J96: 0.4829199257 | K96: 34.78590242 | L96: 37.10904402
B97: 53 | C97: 17.20630852 | D97: 17.80087342 | E97: 18.43396515 | F97: 18.29449345 | G97: 17.20630852 | H97: 17.80087342 | I97: 1.22765663 | J97: 0.4936200395 | K97: 33.86364673 | L97: 36.15660963
B98: 54 | C98: 16.97947179 | D98: 17.58285635 | E98: 18.23823961 | F98: 18.08697435 | G98: 16.97947179 | H98: 17.58285635 | I98: 1.258767821 | J98: 0.5041179948 | K98: 32.94627241 | L98: 35.20780034
B99: 55 | C99: 16.74566072 | D99: 17.35753367 | E99: 18.03571757 | F99: 17.87198703 | G99: 16.74566072 | H99: 17.35753367 | I99: 1.290056851 | J99: 0.5144533522 | K99: 32.0333316 | L99: 34.26264188
B100: 56 | C100: 16.50464299 | D100: 17.12470459 | E100: 17.82623233 | F100: 17.64935545 | G100: 16.50464299 | H100: 17.12470459 | I100: 1.321589337 | J100: 0.5246508555 | K100: 31.12481587 | L100: 33.32124734
B101: 57 | C101: 16.25644435 | D101: 16.88441202 | E101: 17.60976283 | F101: 17.41904284 | G101: 16.25644435 | H101: 16.88441202 | I101: 1.35331848 | J101: 0.5346308176 | K101: 30.22120673 | L101: 32.38420085
B102: 58 | C102: 16.00118454 | D102: 16.63685595 | E102: 17.38631296 | F102: 17.18110559 | G102: 16.00118454 | H102: 16.63685595 | I102: 1.385128427 | J102: 0.5442496408 | K102: 29.32313026 | L102: 31.45234882
B103: 59 | C103: 15.73915118 | D103: 16.38241611 | E103: 17.15598115 | F103: 16.93571895 | G103: 15.73915118 | H103: 16.38241611 | I103: 1.416829967 | J103: 0.5533028395 | K103: 28.43147284 | L103: 30.52681317
B104: 60 | C104: 15.47056342 | D104: 16.12142049 | E104: 16.91886705 | F104: 16.68306403 | G104: 15.47056342 | H104: 16.12142049 | I104: 1.448303633 | J104: 0.561643542 | K104: 27.54693646 | L104: 29.60853979
B105: 61 | C105: 15.1955445 | D105: 15.85415611 | E105: 16.67505454 | F105: 16.42333796 | G105: 15.1955445 | H105: 15.85415611 | I105: 1.479510032 | J105: 0.5691818574 | K105: 26.67000572 | L105: 28.6983305
B106: 62 | C106: 14.91428082 | D106: 15.58086659 | E106: 16.42471326 | F106: 16.15656877 | G106: 14.91428082 | H106: 15.58086659 | I106: 1.510432443 | J106: 0.5757021716 | K106: 25.80123838 | L106: 27.79684881
B107: 63 | C107: 14.6267129 | D107: 15.30153441 | E107: 16.16793676 | F107: 15.88283166 | G107: 14.6267129 | H107: 15.30153441 | I107: 1.541223869 | J107: 0.5812972498 | K107: 24.94073502 | L107: 26.90425155
B108: 64 | C108: 14.332704 | D108: 15.01606962 | E108: 15.90427351 | F108: 15.60178712 | G108: 14.332704 | H108: 15.01606962 | I108: 1.571569514 | J108: 0.5857175019 | K108: 24.0884625 | L108: 26.02056012
B109: 65 | C109: =G109 -> 14.0322477 | D109: =H109 -> 14.72455209 | E109: =G109+I109 -> 15.63325658 | F109: =H109+J109 -> 15.31314441 | G109: 14.0322477 | H109: 14.72455209 | I109: 1.601008881 | J109: 0.5885923171 | K109: 23.24460704 | L109: 25.1460823
B110: 66 | C110: 13.72555 | D110: 14.42728265 | E110: 15.35494282 | F110: 15.01705846 | G110: 13.72555 | H110: 14.42728265 | I110: 1.629392826 | J110: 0.5897758026 | K110: 22.40968506 | L110: 24.28146842
B111: 67 | C111: 13.40857407 | D111: 14.12056851 | E111: 15.0670861 | F111: 14.71120681 | G111: 13.40857407 | H111: 14.12056851 | I111: 1.658512037 | J111: 0.5906383028 | K111: 21.57742047 | L111: 23.42076381
B112: 68 | C112: 13.08160359 | D112: 13.80476936 | E112: 14.76975834 | F112: 14.39580413 | G112: 13.08160359 | H112: 13.80476936 | I112: 1.688154754 | J112: 0.5910347647 | K112: 20.74885625 | L112: 22.56507739
B113: 69 | C113: 12.74501604 | D113: 13.48040581 | E113: 14.46308085 | F113: 14.07118795 | G113: 12.74501604 | H113: 13.48040581 | I113: 1.718064813 | J113: 0.5907821408 | K113: 19.92511683 | L113: 21.71569984
B114: 70 | C114: 12.39932841 | D114: 13.14784715 | E114: 14.14727725 | F114: 13.73761857 | G114: 12.39932841 | H114: 13.14784715 | I114: 1.747948837 | J114: 0.5897714234 | K114: 19.10746627 | L114: 20.87359083
B115: 71 | C115: 12.04515566 | D115: 12.80722188 | E115: 13.82265998 | F115: 13.39521646 | G115: 12.04515566 | H115: 12.80722188 | I115: 1.777504319 | J115: 0.5879945777 | K115: 18.29722805 | L115: 20.03926878
B116: 72 | C116: 11.68327733 | D116: 12.45845979 | E116: 13.48914901 | F116: 13.04398804 | G116: 11.68327733 | H116: 12.45845979 | I116: 1.80587168 | J116: 0.5855282532 | K116: 17.4958737 | L116: 19.21291592
B117: 73 | C117: 11.31464736 | D117: 12.10152365 | E117: 13.14725695 | F117: 12.68398439 | G117: 11.31464736 | H117: 12.10152365 | I117: 1.83260959 | J117: 0.5824607344 | K117: 16.7050179 | L117: 18.39475908
B118: 74 | C118: 10.9402787 | D118: 11.73641341 | E118: 12.79756821 | F118: 12.31530622 | G118: 10.9402787 | H118: 11.73641341 | I118: 1.857289514 | J118: 0.5788928087 | K118: 15.92623327 | L118: 17.58507191
B119: 75 | C119: 10.56116247 | D119: 11.36332001 | E119: 12.44065487 | F119: 11.9382092 | G119: 10.56116247 | H119: 11.36332001 | I119: 1.879492401 | J119: 0.5748891865 | K119: 15.16093429 | L119: 16.78439556
B120: 76 | C120: 10.17820095 | D120: 10.98281625 | E120: 12.07702535 | F120: 11.55327358 | G120: 10.17820095 | H120: 10.98281625 | I120: 1.898824409 | J120: 0.5704573301 | K120: 14.41029405 | L120: 15.99378749
B121: 77 | C121: 9.792220162 | D121: 10.59565368 | E121: 11.70713548 | F121: 11.16130726 | G121: 9.792220162 | H121: 10.59565368 | I121: 1.914915323 | J121: 0.5656535727 | K121: 13.67528108 | L121: 15.21448167
B122: 78 | C122: 9.404098783 | D122: 10.20261714 | E122: 11.33149555 | F122: 10.76305244 | G122: 9.404098783 | H122: 10.20261714 | I122: 1.927396768 | J122: 0.5604353035 | K122: 12.95685226 | L122: 14.44766525
B123: 79 | C123: 9.01473812 | D123: 9.804715555 | E123: 10.95065822 | F123: 10.35944043 | G123: 9.01473812 | H123: 9.804715555 | I123: 1.9359201 | J123: 0.5547248757 | K123: 12.25591207 | L123: 13.69474465
B124: 80 | C124: 8.62503069 | D124: 9.403360028 | E124: 10.56523092 | F124: 9.951792198 | G124: 8.62503069 | H124: 9.403360028 | I124: 1.940200235 | J124: 0.54843217 | K124: 11.573275 | L124: 12.95756552
B125: 81 | C125: 8.236379916 | D125: 9.000550674 | E125: 10.17621039 | F125: 9.541984306 | G125: 8.236379916 | H125: 9.000550674 | I125: 1.939830476 | J125: 0.5414336326 | K125: 10.91035515 | L125: 12.23862025
B126: 82 | C126: 7.85112209 | D126: 8.599710233 | E126: 9.785199107 | F126: 9.133030274 | G126: 7.85112209 | H126: 8.599710233 | I126: 1.934077016 | J126: 0.5333200408 | K126: 10.26965675 | L126: 11.54209056
B127: 83 | C127: 7.469641782 | D127: 8.203389821 | E127: 9.392738588 | F127: 8.727407137 | G127: 7.469641782 | H127: 8.203389821 | I127: 1.923096806 | J127: 0.524017316 | K127: 9.650984573 | L127: 10.8706758
B128: 84 | C128: 7.092103467 | D128: 7.813948873 | E128: 8.99933672 | F128: 8.327475629 | G128: 7.092103467 | H128: 7.813948873 | I128: 1.907233253 | J128: 0.513526756 | K128: 9.053875317 | L128: 10.22660161
B129: 85 | C129: 6.71933715 | D129: 7.433478954 | E129: 8.606023116 | F129: 7.935364371 | G129: 6.71933715 | H129: 7.433478954 | I129: 1.886685966 | J129: 0.5018854169 | K129: 8.478734676 | L129: 9.611560864
B130: 86 | C130: 6.353097352 | D130: 7.063572077 | E130: 8.214551199 | F130: 7.552745832 | G130: 6.353097352 | H130: 7.063572077 | I130: 1.861453847 | J130: 0.4891737551 | K130: 7.927089548 | L130: 9.026465093
B131: 87 | C131: 5.995867289 | D131: 6.705101524 | E131: 7.82746341 | F131: 7.180529534 | G131: 5.995867289 | H131: 6.705101524 | I131: 1.83159612 | J131: 0.4754280098 | K131: 7.401259961 | L131: 8.471237518
B132: 88 | C132: 5.650330643 | D132: 6.358478702 | E132: 7.447303252 | F132: 6.819281572 | G132: 5.650330643 | H132: 6.358478702 | I132: 1.796972609 | J132: 0.4608028699 | K132: 6.903660518 | L132: 7.94521687
B133: 89 | C133: 5.318950235 | D133: 6.02368361 | E133: 7.076483298 | F133: 6.469164293 | G133: 5.318950235 | H133: 6.02368361 | I133: 1.757533063 | J133: 0.4454806822 | K133: 6.436295906 | L133: 7.447247685
B134: 90 | C134: 5.003661659 | D134: 5.700105532 | E134: 6.717053964 | F134: 6.129806099 | G134: 5.003661659 | H134: 5.700105532 | I134: 1.713392305 | J134: 0.4297005674 | K134: 6.000440538 | L134: 6.975534756
B135: 91 | C135: 4.705697545 | D135: 5.38646028 | E135: 6.370507525 | F135: 5.800173353 | G135: 4.705697545 | H135: 5.38646028 | I135: 1.66480998 | J135: 0.4137130723 | K135: 5.596502947 | L135: 6.527606669
B136: 92 | C136: 4.424464119 | D136: 5.080050724 | E136: 6.03701792 | F136: 5.475408646 | G136: 4.424464119 | H136: 5.080050724 | I136: 1.612553802 | J136: 0.3953579218 | K136: 5.222801798 | L136: 6.099509613
B137: 93 | C137: 4.160001246 | D137: 4.779951497 | E137: 5.716964955 | F137: 5.156626439 | G137: 4.160001246 | H137: 4.779951497 | I137: 1.556963709 | J137: 0.3766749419 | K137: 4.878599357 | L137: 5.689699982
B138: 94 | C138: 3.912477797 | D138: 4.487084471 | E138: 5.410605675 | F138: 4.843960465 | G138: 3.912477797 | H138: 4.487084471 | I138: 1.498127878 | J138: 0.3568759937 | K138: 4.563500601 | L138: 5.298982876
B139: 95 | C139: 3.682465962 | D139: 4.204991492 | E139: 5.118161593 | F139: 4.53922494 | G139: 3.682465962 | H139: 4.204991492 | I139: 1.435695632 | J139: 0.3342334479 | K139: 4.277809943 | L139: 4.93127447
B140: 96 | C140: 3.470925033 | D140: 3.940728057 | E140: 4.839723951 | F140: 4.246521227 | G140: 3.470925033 | H140: 3.940728057 | I140: 1.368798918 | J140: 0.3057931707 | K140: 4.022564089 | L140: 4.594458903
B141: 97 | C141: 3.254767435 | D141: 3.698360033 | E141: 4.560211572 | F141: 3.968259978 | G141: 3.254767435 | H141: 3.698360033 | I141: 1.305444137 | J141: 0.2698999456 | K141: 3.771833418 | L141: 4.292742282
B142: 98 | C142: 3.047833023 | D142: 3.467312178 | E142: 4.288142198 | F142: 3.691810048 | G142: 3.047833023 | H142: 3.467312178 | I142: 1.240309175 | J142: 0.2244978699 | K142: 3.543741643 | L142: 4.0137121
B143: 99 | C143: 2.846251097 | D143: 3.245467187 | E143: 4.021246566 | F143: 3.413300199 | G143: 2.846251097 | H143: 3.245467187 | I143: 1.17499547 | J143: 0.1678330123 | K143: 3.336678792 | L143: 3.75572705
B144: 100 | C144: 2.644231291 | D144: 3.029624613 | E144: 3.756659722 | F144: 3.131464994 | G144: 2.644231291 | H144: 3.029624613 | I144: 1.112428432 | J144: 0.1018403807 | K144: 3.148814382 | L144: 3.516773966
B145: 101 | C145: 2.434355991 | D145: 2.815646567 | E145: 3.491226211 | F145: 2.856774395 | G145: 2.434355991 | H145: 2.815646567 | I145: 1.056870219 | J145: 0.04112782731 | K145: 2.979612146 | L145: 3.295092863
B146: 102 | C146: 2.218928387 | D146: 2.621137675 | E146: 3.226472874 | F146: 2.665207581 | G146: 2.218928387 | H146: 2.621137675 | I146: 1.007544487 | J146: 0.04406990559 | K146: 2.845799482 | L146: 3.116097403
B147: 103 | C147: 1.97090786 | D147: 2.422028742 | E147: 2.941512827 | F147: 2.469063273 | G147: 1.97090786 | H147: 2.422028742 | I147: 0.9706049672 | J147: 0.04703453077 | K147: 2.737160762 | L147: 2.959406648
B148: 104 | C148: 1.663076566 | D148: 2.208072633 | E148: 2.619889421 | F148: 2.258085708 | G148: 1.663076566 | H148: 2.208072633 | I148: 0.9568128548 | J148: 0.05001307553 | K148: 2.65852178 | L148: 2.82646777
B149: 105 | C149: 1.249976969 | D149: 1.962810037 | E149: 2.23914951 | F149: 2.015900968 | G149: 1.249976969 | H149: 1.962810037 | I149: 0.9891725403 | J149: 0.0530909306 | K149: 2.618468805 | L149: 2.7202421
B150: 106 | C150: 0.6478374013 | D150: 1.659214786 | E150: 1.769834674 | F150: 1.716268149 | G150: 0.6478374013 | H150: 1.659214786 | I150: 1.121997273 | J150: 0.05705336305 | K150: 2.615395302 | L150: 2.646237766
B151: 107 | C151: 0.6478374013 | D151: 1.249976969 | E151: 1.675794548 | F151: 1.318884544 | G151: 0.6478374013 | H151: 1.249976969 | I151: 1.027957146 | J151: 0.06890757499 | K151: 2.610875444 | L151: 2.610875444
B152: 108 | C152: 0.6478374013 | D152: 0.6478374013 | E152: 1.579483355 | F152: 0.7962711164 | G152: 0.6478374013 | H152: 0.6478374013 | I152: 0.9316459533 | J152: 0.1484337151 | K152: 2.604228594 | L152: 2.604228594
B153: 109 | C153: 0.6478374013 | D153: 0.6478374013 | E153: 1.47578323 | F153: 0.7962711164 | G153: 0.6478374013 | H153: 0.6478374013 | I153: 0.8279458283 | J153: 0.1484337151 | K153: 2.594453815 | L153: 2.594453815
B154: 110 | C154: 0.6478374013 | D154: 0.6478374013 | E154: 1.356572933 | F154: 0.7962711164 | G154: 0.6478374013 | H154: 0.6478374013 | I154: 0.7087355314 | J154: 0.1484337151 | K154: 2.58007914 | L154: 2.58007914
B155: 111 | C155: 0.6478374013 | D155: 0.6478374013 | E155: 1.209163528 | F155: 0.7962711164 | G155: 0.6478374013 | H155: 0.6478374013 | I155: 0.5613261269 | J155: 0.1484337151 | K155: 2.558939912 | L155: 2.558939912
B156: 112 | C156: 0.6478374013 | D156: 0.6478374013 | E156: 1.016971765 | F156: 0.7962711164 | G156: 0.6478374013 | H156: 0.6478374013 | I156: 0.3691343636 | J156: 0.148433715 | K156: 2.527852812 | L156: 2.527852812
B157: 113 | C157: 0.6478374013 | D157: 0.6478374013 | E157: 0.7962711164 | F157: 0.7962711162 | G157: 0.6478374013 | H157: 0.6478374013 | I157: 0.1484337151 | J157: 0.1484337149 | K157: 2.482136488 | L157: 2.482136488
B158: 114 | C158: 0.6478374013 | D158: 0.6478374013 | E158: 0.7962711164 | F158: 0.7962711156 | G158: 0.6478374013 | H158: 0.6478374013 | I158: 0.1484337151 | J158: 0.1484337143 | K158: 2.414906599 | L158: 2.414906599
B159: 115 | C159: 0.6478374013 | D159: 0.6478374013 | E159: 0.7962711164 | F159: 0.7962711123 | G159: 0.6478374013 | H159: 0.6478374013 | I159: 0.1484337151 | J159: 0.1484337109 | K159: 2.316039117 | L159: 2.316039117
B160: 116 | C160: 0.6478374013 | D160: 0.6478374013 | E160: 0.7962711164 | F160: 0.7962710948 | G160: 0.6478374013 | H160: 0.6478374013 | I160: 0.1484337151 | J160: 0.1484336935 | K160: 2.17064576 | L160: 2.17064576
B161: 117 | C161: 0.6478374013 | D161: 0.6478374013 | E161: 0.7962711163 | F161: 0.7962710039 | G161: 0.6478374013 | H161: 0.6478374013 | I161: 0.1484337151 | J161: 0.1484336026 | K161: 1.956832 | L161: 1.956832
B162: 118 | C162: 0.647837401 | D162: 0.647837401 | E162: 0.7962711161 | F162: 0.7962705293 | G162: 0.647837401 | H162: 0.647837401 | I162: 0.1484337151 | J162: 0.1484331282 | K162: 1.6424 | L162: 1.6424
B163: 119 | C163: 0.6478373998 | D163: 0.6478373998 | E163: 0.7962711148 | F163: 0.7962680521 | G163: 0.6478373998 | H163: 0.6478373998 | I163: 0.1484337151 | J163: 0.1484306524 | K163: 1.18 | L163: 1.18
B164: 120 | C164: 0.6478373931 | D164: 0.6478373931 | E164: 0.7962711081 | F164: 0.7962551243 | G164: 0.6478373931 | H164: 0.6478373931 | I164: 0.1484337151 | J164: 0.1484177313 | K164: 0.5 | L164: 0.5

Sheet INPUT
B6: Data simulação | C6: =TODAY() -> 2024-08-27
B8: Nome do Participante / Matrícula | C8: [ inserir seu nome ]
B9: Sexo | E9: Selecione: Masc / Fem
B10: Data de Nascimento | E10: dd/mm/aaaa
B11: Data da Admissão na Patrocinadora | E11: dd/mm/aaaa
B12: Data de Inscrição no Plano | E12: dd/mm/aaaa
B13: Possui Dependentes | E13: Selecione: Sim / Não
B17: Salário de Contribuição
B18: Saldo de Conta Total Atual | E18: Disponível no Extrato de Contribuições
B19: Saldo da Conta de Recursos Portados
B20: Contribuição Adicional | E20: até 12%, opcional e sem paridade do patrocinador
B22: Idade mínima (elegibilidade para Aposentadoria) | C22: 55
B23: Idade Desejada para Aposentadoria | E23: em anos
B24: Tipo de Renda escolhida | E24: Selecione: tipo de renda
B25: Resgate Parcial em Parcela Única | E25: até 20%
B26: Quantidade de Parcelas a Receber ao ano | E26: Selecione: quantidade de parcelas
B28: Prazo para recebimento de Renda por Prazo Determinado | C28: 10 | E28: Selecione: prazo (em anos)
B29: Percentual do Saldo de Conta para a Renda | C29: 0.0025 | E29: Selecione: % desejado variação a cada 0,05%, até 1,50%
B31: Versão: 5.2 (2023)
B32: Desenvolvido por:

Sheet FLUXO
B2: Fluxo de Saldos e Contribuições
B5: Final: | C5: - | D5: =MAX(D6:D1048576) -> 0 | E5: - | F5: =MAX(F6:F1048576) -> 0 | G5: =MAX(G6:G1048576) -> 0
B6: Tempo (em meses) | C6: x + t | D6: Saldo Total Inicial | E6: Contribuições Total | F6: Saldo Total Final | G6: Total
B7: 0 | C7: =CALCULOS!F14+B7 -> 1496 | D7: =CALCULOS!C37 -> 0 | E7: 0 | F7: =E7 -> 0 | G7: =IF(B7="-","-",SUM(D7,F7)) -> 0
B8: =IF(OR(B7>=CALCULOS!$F$18,B7="-"),"-",B7+1) -> - | C8: =IF(B8="-","-",CALCULOS!$F$14+B8) -> - | D8: =IF(B8="-","-",D7*(1+CALCULOS!$C$27)) -> - | E8: =IF(B8="-","-",IF(B8=1,CALCULOS!$C$47,IF(MOD(B7,12)=0,E6*(1+CALCULOS!$C$28),E7))*IF(MOD(B8,12)=0,2,1)) -> - | F8: =IF(B8="-","-",F7*(1+CALCULOS!$C$27)+E8) -> - | G8: -
B9: =IF(OR(B8>=CALCULOS!$F$18,B8="-"),"-",B8+1) -> - | C9: =IF(B9="-","-",CALCULOS!$F$14+B9) -> - | D9: =IF(B9="-","-",D8*(1+CALCULOS!$C$27)) -> - | E9: =IF(B9="-","-",IF(B9=1,CALCULOS!$C$47,IF(MOD(B8,12)=0,E7*(1+CALCULOS!$C$28),E8))*IF(MOD(B9,12)=0,2,1)) -> - | F9: =IF(B9="-","-",F8*(1+CALCULOS!$C$27)+E9) -> - | G9: =IF(B9="-","-",SUM(D9,F9)) -> -
B10: =IF(OR(B9>=CALCULOS!$F$18,B9="-"),"-",B9+1) -> - | C10: =IF(B10="-","-",CALCULOS!$F$14+B10) -> - | D10: =IF(B10="-","-",D9*(1+CALCULOS!$C$27)) -> - | E10: =IF(B10="-","-",IF(B10=1,CALCULOS!$C$47,IF(MOD(B9,12)=0,E8*(1+CALCULOS!$C$28),E9))*IF(MOD(B10,12)=0,2,1)) -> - | F10: =IF(B10="-","-",F9*(1+CALCULOS!$C$27)+E10) -> - | G10: =IF(B10="-","-",SUM(D10,F10)) -> -
B11: =IF(OR(B10>=CALCULOS!$F$18,B10="-"),"-",B10+1) -> - | C11: =IF(B11="-","-",CALCULOS!$F$14+B11) -> - | D11: =IF(B11="-","-",D10*(1+CALCULOS!$C$27)) -> - | E11: =IF(B11="-","-",IF(B11=1,CALCULOS!$C$47,IF(MOD(B10,12)=0,E9*(1+CALCULOS!$C$28),E10))*IF(MOD(B11,12)=0,2,1)) -> - | F11: =IF(B11="-","-",F10*(1+CALCULOS!$C$27)+E11) -> - | G11: -
B12: =IF(OR(B11>=CALCULOS!$F$18,B11="-"),"-",B11+1) -> - | C12: =IF(B12="-","-",CALCULOS!$F$14+B12) -> - | D12: =IF(B12="-","-",D11*(1+CALCULOS!$C$27)) -> - | E12: =IF(B12="-","-",IF(B12=1,CALCULOS!$C$47,IF(MOD(B11,12)=0,E10*(1+CALCULOS!$C$28),E11))*IF(MOD(B12,12)=0,2,1)) -> - | F12: =IF(B12="-","-",F11*(1+CALCULOS!$C$27)+E12) -> - | G12: -
B13: =IF(OR(B12>=CALCULOS!$F$18,B12="-"),"-",B12+1) -> - | C13: =IF(B13="-","-",CALCULOS!$F$14+B13) -> - | D13: =IF(B13="-","-",D12*(1+CALCULOS!$C$27)) -> - | E13: =IF(B13="-","-",IF(B13=1,CALCULOS!$C$47,IF(MOD(B12,12)=0,E11*(1+CALCULOS!$C$28),E12))*IF(MOD(B13,12)=0,2,1)) -> - | F13: =IF(B13="-","-",F12*(1+CALCULOS!$C$27)+E13) -> - | G13: -
B14: =IF(OR(B13>=CALCULOS!$F$18,B13="-"),"-",B13+1) -> - | C14: =IF(B14="-","-",CALCULOS!$F$14+B14) -> - | D14: =IF(B14="-","-",D13*(1+CALCULOS!$C$27)) -> - | E14: =IF(B14="-","-",IF(B14=1,CALCULOS!$C$47,IF(MOD(B13,12)=0,E12*(1+CALCULOS!$C$28),E13))*IF(MOD(B14,12)=0,2,1)) -> - | F14: =IF(B14="-","-",F13*(1+CALCULOS!$C$27)+E14) -> - | G14: -
B15: =IF(OR(B14>=CALCULOS!$F$18,B14="-"),"-",B14+1) -> - | C15: =IF(B15="-","-",CALCULOS!$F$14+B15) -> - | D15: =IF(B15="-","-",D14*(1+CALCULOS!$C$27)) -> - | E15: =IF(B15="-","-",IF(B15=1,CALCULOS!$C$47,IF(MOD(B14,12)=0,E13*(1+CALCULOS!$C$28),E14))*IF(MOD(B15,12)=0,2,1)) -> - | F15: =IF(B15="-","-",F14*(1+CALCULOS!$C$27)+E15) -> - | G15: -
B16: =IF(OR(B15>=CALCULOS!$F$18,B15="-"),"-",B15+1) -> - | C16: =IF(B16="-","-",CALCULOS!$F$14+B16) -> - | D16: =IF(B16="-","-",D15*(1+CALCULOS!$C$27)) -> - | E16: =IF(B16="-","-",IF(B16=1,CALCULOS!$C$47,IF(MOD(B15,12)=0,E14*(1+CALCULOS!$C$28),E15))*IF(MOD(B16,12)=0,2,1)) -> - | F16: =IF(B16="-","-",F15*(1+CALCULOS!$C$27)+E16) -> - | G16: -
B17: =IF(OR(B16>=CALCULOS!$F$18,B16="-"),"-",B16+1) -> - | C17: =IF(B17="-","-",CALCULOS!$F$14+B17) -> - | D17: =IF(B17="-","-",D16*(1+CALCULOS!$C$27)) -> - | E17: =IF(B17="-","-",IF(B17=1,CALCULOS!$C$47,IF(MOD(B16,12)=0,E15*(1+CALCULOS!$C$28),E16))*IF(MOD(B17,12)=0,2,1)) -> - | F17: =IF(B17="-","-",F16*(1+CALCULOS!$C$27)+E17) -> - | G17: -
B18: =IF(OR(B17>=CALCULOS!$F$18,B17="-"),"-",B17+1) -> - | C18: =IF(B18="-","-",CALCULOS!$F$14+B18) -> - | D18: =IF(B18="-","-",D17*(1+CALCULOS!$C$27)) -> - | E18: =IF(B18="-","-",IF(B18=1,CALCULOS!$C$47,IF(MOD(B17,12)=0,E16*(1+CALCULOS!$C$28),E17))*IF(MOD(B18,12)=0,2,1)) -> - | F18: =IF(B18="-","-",F17*(1+CALCULOS!$C$27)+E18) -> - | G18: -
B19: =IF(OR(B18>=CALCULOS!$F$18,B18="-"),"-",B18+1) -> - | C19: =IF(B19="-","-",CALCULOS!$F$14+B19) -> - | D19: =IF(B19="-","-",D18*(1+CALCULOS!$C$27)) -> - | E19: =IF(B19="-","-",IF(B19=1,CALCULOS!$C$47,IF(MOD(B18,12)=0,E17*(1+CALCULOS!$C$28),E18))*IF(MOD(B19,12)=0,2,1)) -> - | F19: =IF(B19="-","-",F18*(1+CALCULOS!$C$27)+E19) -> - | G19: -
B20: =IF(OR(B19>=CALCULOS!$F$18,B19="-"),"-",B19+1) -> - | C20: =IF(B20="-","-",CALCULOS!$F$14+B20) -> - | D20: =IF(B20="-","-",D19*(1+CALCULOS!$C$27)) -> - | E20: =IF(B20="-","-",IF(B20=1,CALCULOS!$C$47,IF(MOD(B19,12)=0,E18*(1+CALCULOS!$C$28),E19))*IF(MOD(B20,12)=0,2,1)) -> - | F20: =IF(B20="-","-",F19*(1+CALCULOS!$C$27)+E20) -> - | G20: -
B21: =IF(OR(B20>=CALCULOS!$F$18,B20="-"),"-",B20+1) -> - | C21: =IF(B21="-","-",CALCULOS!$F$14+B21) -> - | D21: =IF(B21="-","-",D20*(1+CALCULOS!$C$27)) -> - | E21: =IF(B21="-","-",IF(B21=1,CALCULOS!$C$47,IF(MOD(B20,12)=0,E19*(1+CALCULOS!$C$28),E20))*IF(MOD(B21,12)=0,2,1)) -> - | F21: =IF(B21="-","-",F20*(1+CALCULOS!$C$27)+E21) -> - | G21: -
B22: =IF(OR(B21>=CALCULOS!$F$18,B21="-"),"-",B21+1) -> - | C22: =IF(B22="-","-",CALCULOS!$F$14+B22) -> - | D22: =IF(B22="-","-",D21*(1+CALCULOS!$C$27)) -> - | E22: =IF(B22="-","-",IF(B22=1,CALCULOS!$C$47,IF(MOD(B21,12)=0,E20*(1+CALCULOS!$C$28),E21))*IF(MOD(B22,12)=0,2,1)) -> - | F22: =IF(B22="-","-",F21*(1+CALCULOS!$C$27)+E22) -> - | G22: -
B23: =IF(OR(B22>=CALCULOS!$F$18,B22="-"),"-",B22+1) -> - | C23: =IF(B23="-","-",CALCULOS!$F$14+B23) -> - | D23: =IF(B23="-","-",D22*(1+CALCULOS!$C$27)) -> - | E23: =IF(B23="-","-",IF(B23=1,CALCULOS!$C$47,IF(MOD(B22,12)=0,E21*(1+CALCULOS!$C$28),E22))*IF(MOD(B23,12)=0,2,1)) -> - | F23: =IF(B23="-","-",F22*(1+CALCULOS!$C$27)+E23) -> - | G23: -
B24: =IF(OR(B23>=CALCULOS!$F$18,B23="-"),"-",B23+1) -> - | C24: =IF(B24="-","-",CALCULOS!$F$14+B24) -> - | D24: =IF(B24="-","-",D23*(1+CALCULOS!$C$27)) -> - | E24: =IF(B24="-","-",IF(B24=1,CALCULOS!$C$47,IF(MOD(B23,12)=0,E22*(1+CALCULOS!$C$28),E23))*IF(MOD(B24,12)=0,2,1)) -> - | F24: =IF(B24="-","-",F23*(1+CALCULOS!$C$27)+E24) -> - | G24: -
B25: =IF(OR(B24>=CALCULOS!$F$18,B24="-"),"-",B24+1) -> - | C25: =IF(B25="-","-",CALCULOS!$F$14+B25) -> - | D25: =IF(B25="-","-",D24*(1+CALCULOS!$C$27)) -> - | E25: =IF(B25="-","-",IF(B25=1,CALCULOS!$C$47,IF(MOD(B24,12)=0,E23*(1+CALCULOS!$C$28),E24))*IF(MOD(B25,12)=0,2,1)) -> - | F25: =IF(B25="-","-",F24*(1+CALCULOS!$C$27)+E25) -> - | G25: -
B26: =IF(OR(B25>=CALCULOS!$F$18,B25="-"),"-",B25+1) -> - | C26: =IF(B26="-","-",CALCULOS!$F$14+B26) -> - | D26: =IF(B26="-","-",D25*(1+CALCULOS!$C$27)) -> - | E26: =IF(B26="-","-",IF(B26=1,CALCULOS!$C$47,IF(MOD(B25,12)=0,E24*(1+CALCULOS!$C$28),E25))*IF(MOD(B26,12)=0,2,1)) -> - | F26: =IF(B26="-","-",F25*(1+CALCULOS!$C$27)+E26) -> - | G26: -
B27: =IF(OR(B26>=CALCULOS!$F$18,B26="-"),"-",B26+1) -> - | C27: =IF(B27="-","-",CALCULOS!$F$14+B27) -> - | D27: =IF(B27="-","-",D26*(1+CALCULOS!$C$27)) -> - | E27: =IF(B27="-","-",IF(B27=1,CALCULOS!$C$47,IF(MOD(B26,12)=0,E25*(1+CALCULOS!$C$28),E26))*IF(MOD(B27,12)=0,2,1)) -> - | F27: =IF(B27="-","-",F26*(1+CALCULOS!$C$27)+E27) -> - | G27: -
B28: =IF(OR(B27>=CALCULOS!$F$18,B27="-"),"-",B27+1) -> - | C28: =IF(B28="-","-",CALCULOS!$F$14+B28) -> - | D28: =IF(B28="-","-",D27*(1+CALCULOS!$C$27)) -> - | E28: =IF(B28="-","-",IF(B28=1,CALCULOS!$C$47,IF(MOD(B27,12)=0,E26*(1+CALCULOS!$C$28),E27))*IF(MOD(B28,12)=0,2,1)) -> - | F28: =IF(B28="-","-",F27*(1+CALCULOS!$C$27)+E28) -> - | G28: -
B29: =IF(OR(B28>=CALCULOS!$F$18,B28="-"),"-",B28+1) -> - | C29: =IF(B29="-","-",CALCULOS!$F$14+B29) -> - | D29: =IF(B29="-","-",D28*(1+CALCULOS!$C$27)) -> - | E29: =IF(B29="-","-",IF(B29=1,CALCULOS!$C$47,IF(MOD(B28,12)=0,E27*(1+CALCULOS!$C$28),E28))*IF(MOD(B29,12)=0,2,1)) -> - | F29: =IF(B29="-","-",F28*(1+CALCULOS!$C$27)+E29) -> - | G29: -
B30: =IF(OR(B29>=CALCULOS!$F$18,B29="-"),"-",B29+1) -> - | C30: =IF(B30="-","-",CALCULOS!$F$14+B30) -> - | D30: =IF(B30="-","-",D29*(1+CALCULOS!$C$27)) -> - | E30: =IF(B30="-","-",IF(B30=1,CALCULOS!$C$47,IF(MOD(B29,12)=0,E28*(1+CALCULOS!$C$28),E29))*IF(MOD(B30,12)=0,2,1)) -> - | F30: =IF(B30="-","-",F29*(1+CALCULOS!$C$27)+E30) -> - | G30: -
B31: =IF(OR(B30>=CALCULOS!$F$18,B30="-"),"-",B30+1) -> - | C31: =IF(B31="-","-",CALCULOS!$F$14+B31) -> - | D31: =IF(B31="-","-",D30*(1+CALCULOS!$C$27)) -> - | E31: =IF(B31="-","-",IF(B31=1,CALCULOS!$C$47,IF(MOD(B30,12)=0,E29*(1+CALCULOS!$C$28),E30))*IF(MOD(B31,12)=0,2,1)) -> - | F31: =IF(B31="-","-",F30*(1+CALCULOS!$C$27)+E31) -> - | G31: -
B32: =IF(OR(B31>=CALCULOS!$F$18,B31="-"),"-",B31+1) -> - | C32: =IF(B32="-","-",CALCULOS!$F$14+B32) -> - | D32: =IF(B32="-","-",D31*(1+CALCULOS!$C$27)) -> - | E32: =IF(B32="-","-",IF(B32=1,CALCULOS!$C$47,IF(MOD(B31,12)=0,E30*(1+CALCULOS!$C$28),E31))*IF(MOD(B32,12)=0,2,1)) -> - | F32: =IF(B32="-","-",F31*(1+CALCULOS!$C$27)+E32) -> - | G32: -
B33: =IF(OR(B32>=CALCULOS!$F$18,B32="-"),"-",B32+1) -> - | C33: =IF(B33="-","-",CALCULOS!$F$14+B33) -> - | D33: =IF(B33="-","-",D32*(1+CALCULOS!$C$27)) -> - | E33: =IF(B33="-","-",IF(B33=1,CALCULOS!$C$47,IF(MOD(B32,12)=0,E31*(1+CALCULOS!$C$28),E32))*IF(MOD(B33,12)=0,2,1)) -> - | F33: =IF(B33="-","-",F32*(1+CALCULOS!$C$27)+E33) -> - | G33: -
B34: =IF(OR(B33>=CALCULOS!$F$18,B33="-"),"-",B33+1) -> - | C34: =IF(B34="-","-",CALCULOS!$F$14+B34) -> - | D34: =IF(B34="-","-",D33*(1+CALCULOS!$C$27)) -> - | E34: =IF(B34="-","-",IF(B34=1,CALCULOS!$C$47,IF(MOD(B33,12)=0,E32*(1+CALCULOS!$C$28),E33))*IF(MOD(B34,12)=0,2,1)) -> - | F34: =IF(B34="-","-",F33*(1+CALCULOS!$C$27)+E34) -> - | G34: -
B35: =IF(OR(B34>=CALCULOS!$F$18,B34="-"),"-",B34+1) -> - | C35: =IF(B35="-","-",CALCULOS!$F$14+B35) -> - | D35: =IF(B35="-","-",D34*(1+CALCULOS!$C$27)) -> - | E35: =IF(B35="-","-",IF(B35=1,CALCULOS!$C$47,IF(MOD(B34,12)=0,E33*(1+CALCULOS!$C$28),E34))*IF(MOD(B35,12)=0,2,1)) -> - | F35: =IF(B35="-","-",F34*(1+CALCULOS!$C$27)+E35) -> - | G35: -
B36: =IF(OR(B35>=CALCULOS!$F$18,B35="-"),"-",B35+1) -> - | C36: =IF(B36="-","-",CALCULOS!$F$14+B36) -> - | D36: =IF(B36="-","-",D35*(1+CALCULOS!$C$27)) -> - | E36: =IF(B36="-","-",IF(B36=1,CALCULOS!$C$47,IF(MOD(B35,12)=0,E34*(1+CALCULOS!$C$28),E35))*IF(MOD(B36,12)=0,2,1)) -> - | F36: =IF(B36="-","-",F35*(1+CALCULOS!$C$27)+E36) -> - | G36: -
B37: =IF(OR(B36>=CALCULOS!$F$18,B36="-"),"-",B36+1) -> - | C37: =IF(B37="-","-",CALCULOS!$F$14+B37) -> - | D37: =IF(B37="-","-",D36*(1+CALCULOS!$C$27)) -> - | E37: =IF(B37="-","-",IF(B37=1,CALCULOS!$C$47,IF(MOD(B36,12)=0,E35*(1+CALCULOS!$C$28),E36))*IF(MOD(B37,12)=0,2,1)) -> - | F37: =IF(B37="-","-",F36*(1+CALCULOS!$C$27)+E37) -> - | G37: -
B38: =IF(OR(B37>=CALCULOS!$F$18,B37="-"),"-",B37+1) -> - | C38: =IF(B38="-","-",CALCULOS!$F$14+B38) -> - | D38: =IF(B38="-","-",D37*(1+CALCULOS!$C$27)) -> - | E38: =IF(B38="-","-",IF(B38=1,CALCULOS!$C$47,IF(MOD(B37,12)=0,E36*(1+CALCULOS!$C$28),E37))*IF(MOD(B38,12)=0,2,1)) -> - | F38: =IF(B38="-","-",F37*(1+CALCULOS!$C$27)+E38) -> - | G38: -
B39: =IF(OR(B38>=CALCULOS!$F$18,B38="-"),"-",B38+1) -> - | C39: =IF(B39="-","-",CALCULOS!$F$14+B39) -> - | D39: =IF(B39="-","-",D38*(1+CALCULOS!$C$27)) -> - | E39: =IF(B39="-","-",IF(B39=1,CALCULOS!$C$47,IF(MOD(B38,12)=0,E37*(1+CALCULOS!$C$28),E38))*IF(MOD(B39,12)=0,2,1)) -> - | F39: =IF(B39="-","-",F38*(1+CALCULOS!$C$27)+E39) -> - | G39: -
B40: =IF(OR(B39>=CALCULOS!$F$18,B39="-"),"-",B39+1) -> - | C40: =IF(B40="-","-",CALCULOS!$F$14+B40) -> - | D40: =IF(B40="-","-",D39*(1+CALCULOS!$C$27)) -> - | E40: =IF(B40="-","-",IF(B40=1,CALCULOS!$C$47,IF(MOD(B39,12)=0,E38*(1+CALCULOS!$C$28),E39))*IF(MOD(B40,12)=0,2,1)) -> - | F40: =IF(B40="-","-",F39*(1+CALCULOS!$C$27)+E40) -> - | G40: -
B41: =IF(OR(B40>=CALCULOS!$F$18,B40="-"),"-",B40+1) -> - | C41: =IF(B41="-","-",CALCULOS!$F$14+B41) -> - | D41: =IF(B41="-","-",D40*(1+CALCULOS!$C$27)) -> - | E41: =IF(B41="-","-",IF(B41=1,CALCULOS!$C$47,IF(MOD(B40,12)=0,E39*(1+CALCULOS!$C$28),E40))*IF(MOD(B41,12)=0,2,1)) -> - | F41: =IF(B41="-","-",F40*(1+CALCULOS!$C$27)+E41) -> - | G41: -
B42: =IF(OR(B41>=CALCULOS!$F$18,B41="-"),"-",B41+1) -> - | C42: =IF(B42="-","-",CALCULOS!$F$14+B42) -> - | D42: =IF(B42="-","-",D41*(1+CALCULOS!$C$27)) -> - | E42: =IF(B42="-","-",IF(B42=1,CALCULOS!$C$47,IF(MOD(B41,12)=0,E40*(1+CALCULOS!$C$28),E41))*IF(MOD(B42,12)=0,2,1)) -> - | F42: =IF(B42="-","-",F41*(1+CALCULOS!$C$27)+E42) -> - | G42: -
B43: =IF(OR(B42>=CALCULOS!$F$18,B42="-"),"-",B42+1) -> - | C43: =IF(B43="-","-",CALCULOS!$F$14+B43) -> - | D43: =IF(B43="-","-",D42*(1+CALCULOS!$C$27)) -> - | E43: =IF(B43="-","-",IF(B43=1,CALCULOS!$C$47,IF(MOD(B42,12)=0,E41*(1+CALCULOS!$C$28),E42))*IF(MOD(B43,12)=0,2,1)) -> - | F43: =IF(B43="-","-",F42*(1+CALCULOS!$C$27)+E43) -> - | G43: -
B44: =IF(OR(B43>=CALCULOS!$F$18,B43="-"),"-",B43+1) -> - | C44: =IF(B44="-","-",CALCULOS!$F$14+B44) -> - | D44: =IF(B44="-","-",D43*(1+CALCULOS!$C$27)) -> - | E44: =IF(B44="-","-",IF(B44=1,CALCULOS!$C$47,IF(MOD(B43,12)=0,E42*(1+CALCULOS!$C$28),E43))*IF(MOD(B44,12)=0,2,1)) -> - | F44: =IF(B44="-","-",F43*(1+CALCULOS!$C$27)+E44) -> - | G44: -
B45: =IF(OR(B44>=CALCULOS!$F$18,B44="-"),"-",B44+1) -> - | C45: =IF(B45="-","-",CALCULOS!$F$14+B45) -> - | D45: =IF(B45="-","-",D44*(1+CALCULOS!$C$27)) -> - | E45: =IF(B45="-","-",IF(B45=1,CALCULOS!$C$47,IF(MOD(B44,12)=0,E43*(1+CALCULOS!$C$28),E44))*IF(MOD(B45,12)=0,2,1)) -> - | F45: =IF(B45="-","-",F44*(1+CALCULOS!$C$27)+E45) -> - | G45: -
B46: =IF(OR(B45>=CALCULOS!$F$18,B45="-"),"-",B45+1) -> - | C46: =IF(B46="-","-",CALCULOS!$F$14+B46) -> - | D46: =IF(B46="-","-",D45*(1+CALCULOS!$C$27)) -> - | E46: =IF(B46="-","-",IF(B46=1,CALCULOS!$C$47,IF(MOD(B45,12)=0,E44*(1+CALCULOS!$C$28),E45))*IF(MOD(B46,12)=0,2,1)) -> - | F46: =IF(B46="-","-",F45*(1+CALCULOS!$C$27)+E46) -> - | G46: -
B47: =IF(OR(B46>=CALCULOS!$F$18,B46="-"),"-",B46+1) -> - | C47: =IF(B47="-","-",CALCULOS!$F$14+B47) -> - | D47: =IF(B47="-","-",D46*(1+CALCULOS!$C$27)) -> - | E47: =IF(B47="-","-",IF(B47=1,CALCULOS!$C$47,IF(MOD(B46,12)=0,E45*(1+CALCULOS!$C$28),E46))*IF(MOD(B47,12)=0,2,1)) -> - | F47: =IF(B47="-","-",F46*(1+CALCULOS!$C$27)+E47) -> - | G47: -
B48: =IF(OR(B47>=CALCULOS!$F$18,B47="-"),"-",B47+1) -> - | C48: =IF(B48="-","-",CALCULOS!$F$14+B48) -> - | D48: =IF(B48="-","-",D47*(1+CALCULOS!$C$27)) -> - | E48: =IF(B48="-","-",IF(B48=1,CALCULOS!$C$47,IF(MOD(B47,12)=0,E46*(1+CALCULOS!$C$28),E47))*IF(MOD(B48,12)=0,2,1)) -> - | F48: =IF(B48="-","-",F47*(1+CALCULOS!$C$27)+E48) -> - | G48: -
B49: =IF(OR(B48>=CALCULOS!$F$18,B48="-"),"-",B48+1) -> - | C49: =IF(B49="-","-",CALCULOS!$F$14+B49) -> - | D49: =IF(B49="-","-",D48*(1+CALCULOS!$C$27)) -> - | E49: =IF(B49="-","-",IF(B49=1,CALCULOS!$C$47,IF(MOD(B48,12)=0,E47*(1+CALCULOS!$C$28),E48))*IF(MOD(B49,12)=0,2,1)) -> - | F49: =IF(B49="-","-",F48*(1+CALCULOS!$C$27)+E49) -> - | G49: -
B50: =IF(OR(B49>=CALCULOS!$F$18,B49="-"),"-",B49+1) -> - | C50: =IF(B50="-","-",CALCULOS!$F$14+B50) -> - | D50: =IF(B50="-","-",D49*(1+CALCULOS!$C$27)) -> - | E50: =IF(B50="-","-",IF(B50=1,CALCULOS!$C$47,IF(MOD(B49,12)=0,E48*(1+CALCULOS!$C$28),E49))*IF(MOD(B50,12)=0,2,1)) -> - | F50: =IF(B50="-","-",F49*(1+CALCULOS!$C$27)+E50) -> - | G50: -
B51: =IF(OR(B50>=CALCULOS!$F$18,B50="-"),"-",B50+1) -> - | C51: =IF(B51="-","-",CALCULOS!$F$14+B51) -> - | D51: =IF(B51="-","-",D50*(1+CALCULOS!$C$27)) -> - | E51: =IF(B51="-","-",IF(B51=1,CALCULOS!$C$47,IF(MOD(B50,12)=0,E49*(1+CALCULOS!$C$28),E50))*IF(MOD(B51,12)=0,2,1)) -> - | F51: =IF(B51="-","-",F50*(1+CALCULOS!$C$27)+E51) -> - | G51: -
B52: =IF(OR(B51>=CALCULOS!$F$18,B51="-"),"-",B51+1) -> - | C52: =IF(B52="-","-",CALCULOS!$F$14+B52) -> - | D52: =IF(B52="-","-",D51*(1+CALCULOS!$C$27)) -> - | E52: =IF(B52="-","-",IF(B52=1,CALCULOS!$C$47,IF(MOD(B51,12)=0,E50*(1+CALCULOS!$C$28),E51))*IF(MOD(B52,12)=0,2,1)) -> - | F52: =IF(B52="-","-",F51*(1+CALCULOS!$C$27)+E52) -> - | G52: -
B53: =IF(OR(B52>=CALCULOS!$F$18,B52="-"),"-",B52+1) -> - | C53: =IF(B53="-","-",CALCULOS!$F$14+B53) -> - | D53: =IF(B53="-","-",D52*(1+CALCULOS!$C$27)) -> - | E53: =IF(B53="-","-",IF(B53=1,CALCULOS!$C$47,IF(MOD(B52,12)=0,E51*(1+CALCULOS!$C$28),E52))*IF(MOD(B53,12)=0,2,1)) -> - | F53: =IF(B53="-","-",F52*(1+CALCULOS!$C$27)+E53) -> - | G53: -
B54: =IF(OR(B53>=CALCULOS!$F$18,B53="-"),"-",B53+1) -> - | C54: =IF(B54="-","-",CALCULOS!$F$14+B54) -> - | D54: =IF(B54="-","-",D53*(1+CALCULOS!$C$27)) -> - | E54: =IF(B54="-","-",IF(B54=1,CALCULOS!$C$47,IF(MOD(B53,12)=0,E52*(1+CALCULOS!$C$28),E53))*IF(MOD(B54,12)=0,2,1)) -> - | F54: =IF(B54="-","-",F53*(1+CALCULOS!$C$27)+E54) -> - | G54: -
B55: =IF(OR(B54>=CALCULOS!$F$18,B54="-"),"-",B54+1) -> - | C55: =IF(B55="-","-",CALCULOS!$F$14+B55) -> - | D55: =IF(B55="-","-",D54*(1+CALCULOS!$C$27)) -> - | E55: =IF(B55="-","-",IF(B55=1,CALCULOS!$C$47,IF(MOD(B54,12)=0,E53*(1+CALCULOS!$C$28),E54))*IF(MOD(B55,12)=0,2,1)) -> - | F55: =IF(B55="-","-",F54*(1+CALCULOS!$C$27)+E55) -> - | G55: -
B56: =IF(OR(B55>=CALCULOS!$F$18,B55="-"),"-",B55+1) -> - | C56: =IF(B56="-","-",CALCULOS!$F$14+B56) -> - | D56: =IF(B56="-","-",D55*(1+CALCULOS!$C$27)) -> - | E56: =IF(B56="-","-",IF(B56=1,CALCULOS!$C$47,IF(MOD(B55,12)=0,E54*(1+CALCULOS!$C$28),E55))*IF(MOD(B56,12)=0,2,1)) -> - | F56: =IF(B56="-","-",F55*(1+CALCULOS!$C$27)+E56) -> - | G56: -
B57: =IF(OR(B56>=CALCULOS!$F$18,B56="-"),"-",B56+1) -> - | C57: =IF(B57="-","-",CALCULOS!$F$14+B57) -> - | D57: =IF(B57="-","-",D56*(1+CALCULOS!$C$27)) -> - | E57: =IF(B57="-","-",IF(B57=1,CALCULOS!$C$47,IF(MOD(B56,12)=0,E55*(1+CALCULOS!$C$28),E56))*IF(MOD(B57,12)=0,2,1)) -> - | F57: =IF(B57="-","-",F56*(1+CALCULOS!$C$27)+E57) -> - | G57: -
B58: =IF(OR(B57>=CALCULOS!$F$18,B57="-"),"-",B57+1) -> - | C58: =IF(B58="-","-",CALCULOS!$F$14+B58) -> - | D58: =IF(B58="-","-",D57*(1+CALCULOS!$C$27)) -> - | E58: =IF(B58="-","-",IF(B58=1,CALCULOS!$C$47,IF(MOD(B57,12)=0,E56*(1+CALCULOS!$C$28),E57))*IF(MOD(B58,12)=0,2,1)) -> - | F58: =IF(B58="-","-",F57*(1+CALCULOS!$C$27)+E58) -> - | G58: -
B59: =IF(OR(B58>=CALCULOS!$F$18,B58="-"),"-",B58+1) -> - | C59: =IF(B59="-","-",CALCULOS!$F$14+B59) -> - | D59: =IF(B59="-","-",D58*(1+CALCULOS!$C$27)) -> - | E59: =IF(B59="-","-",IF(B59=1,CALCULOS!$C$47,IF(MOD(B58,12)=0,E57*(1+CALCULOS!$C$28),E58))*IF(MOD(B59,12)=0,2,1)) -> - | F59: =IF(B59="-","-",F58*(1+CALCULOS!$C$27)+E59) -> - | G59: -
B60: =IF(OR(B59>=CALCULOS!$F$18,B59="-"),"-",B59+1) -> - | C60: =IF(B60="-","-",CALCULOS!$F$14+B60) -> - | D60: =IF(B60="-","-",D59*(1+CALCULOS!$C$27)) -> - | E60: =IF(B60="-","-",IF(B60=1,CALCULOS!$C$47,IF(MOD(B59,12)=0,E58*(1+CALCULOS!$C$28),E59))*IF(MOD(B60,12)=0,2,1)) -> - | F60: =IF(B60="-","-",F59*(1+CALCULOS!$C$27)+E60) -> - | G60: -
B61: =IF(OR(B60>=CALCULOS!$F$18,B60="-"),"-",B60+1) -> - | C61: =IF(B61="-","-",CALCULOS!$F$14+B61) -> - | D61: =IF(B61="-","-",D60*(1+CALCULOS!$C$27)) -> - | E61: =IF(B61="-","-",IF(B61=1,CALCULOS!$C$47,IF(MOD(B60,12)=0,E59*(1+CALCULOS!$C$28),E60))*IF(MOD(B61,12)=0,2,1)) -> - | F61: =IF(B61="-","-",F60*(1+CALCULOS!$C$27)+E61) -> - | G61: -
B62: =IF(OR(B61>=CALCULOS!$F$18,B61="-"),"-",B61+1) -> - | C62: =IF(B62="-","-",CALCULOS!$F$14+B62) -> - | D62: =IF(B62="-","-",D61*(1+CALCULOS!$C$27)) -> - | E62: =IF(B62="-","-",IF(B62=1,CALCULOS!$C$47,IF(MOD(B61,12)=0,E60*(1+CALCULOS!$C$28),E61))*IF(MOD(B62,12)=0,2,1)) -> - | F62: =IF(B62="-","-",F61*(1+CALCULOS!$C$27)+E62) -> - | G62: -
B63: =IF(OR(B62>=CALCULOS!$F$18,B62="-"),"-",B62+1) -> - | C63: =IF(B63="-","-",CALCULOS!$F$14+B63) -> - | D63: =IF(B63="-","-",D62*(1+CALCULOS!$C$27)) -> - | E63: =IF(B63="-","-",IF(B63=1,CALCULOS!$C$47,IF(MOD(B62,12)=0,E61*(1+CALCULOS!$C$28),E62))*IF(MOD(B63,12)=0,2,1)) -> - | F63: =IF(B63="-","-",F62*(1+CALCULOS!$C$27)+E63) -> - | G63: -
B64: =IF(OR(B63>=CALCULOS!$F$18,B63="-"),"-",B63+1) -> - | C64: =IF(B64="-","-",CALCULOS!$F$14+B64) -> - | D64: =IF(B64="-","-",D63*(1+CALCULOS!$C$27)) -> - | E64: =IF(B64="-","-",IF(B64=1,CALCULOS!$C$47,IF(MOD(B63,12)=0,E62*(1+CALCULOS!$C$28),E63))*IF(MOD(B64,12)=0,2,1)) -> - | F64: =IF(B64="-","-",F63*(1+CALCULOS!$C$27)+E64) -> - | G64: -
B65: =IF(OR(B64>=CALCULOS!$F$18,B64="-"),"-",B64+1) -> - | C65: =IF(B65="-","-",CALCULOS!$F$14+B65) -> - | D65: =IF(B65="-","-",D64*(1+CALCULOS!$C$27)) -> - | E65: =IF(B65="-","-",IF(B65=1,CALCULOS!$C$47,IF(MOD(B64,12)=0,E63*(1+CALCULOS!$C$28),E64))*IF(MOD(B65,12)=0,2,1)) -> - | F65: =IF(B65="-","-",F64*(1+CALCULOS!$C$27)+E65) -> - | G65: -
B66: =IF(OR(B65>=CALCULOS!$F$18,B65="-"),"-",B65+1) -> - | C66: =IF(B66="-","-",CALCULOS!$F$14+B66) -> - | D66: =IF(B66="-","-",D65*(1+CALCULOS!$C$27)) -> - | E66: =IF(B66="-","-",IF(B66=1,CALCULOS!$C$47,IF(MOD(B65,12)=0,E64*(1+CALCULOS!$C$28),E65))*IF(MOD(B66,12)=0,2,1)) -> - | F66: =IF(B66="-","-",F65*(1+CALCULOS!$C$27)+E66) -> - | G66: -
B67: =IF(OR(B66>=CALCULOS!$F$18,B66="-"),"-",B66+1) -> - | C67: =IF(B67="-","-",CALCULOS!$F$14+B67) -> - | D67: =IF(B67="-","-",D66*(1+CALCULOS!$C$27)) -> - | E67: =IF(B67="-","-",IF(B67=1,CALCULOS!$C$47,IF(MOD(B66,12)=0,E65*(1+CALCULOS!$C$28),E66))*IF(MOD(B67,12)=0,2,1)) -> - | F67: =IF(B67="-","-",F66*(1+CALCULOS!$C$27)+E67) -> - | G67: -
B68: =IF(OR(B67>=CALCULOS!$F$18,B67="-"),"-",B67+1) -> - | C68: =IF(B68="-","-",CALCULOS!$F$14+B68) -> - | D68: =IF(B68="-","-",D67*(1+CALCULOS!$C$27)) -> - | E68: =IF(B68="-","-",IF(B68=1,CALCULOS!$C$47,IF(MOD(B67,12)=0,E66*(1+CALCULOS!$C$28),E67))*IF(MOD(B68,12)=0,2,1)) -> - | F68: =IF(B68="-","-",F67*(1+CALCULOS!$C$27)+E68) -> - | G68: -
B69: =IF(OR(B68>=CALCULOS!$F$18,B68="-"),"-",B68+1) -> - | C69: =IF(B69="-","-",CALCULOS!$F$14+B69) -> - | D69: =IF(B69="-","-",D68*(1+CALCULOS!$C$27)) -> - | E69: =IF(B69="-","-",IF(B69=1,CALCULOS!$C$47,IF(MOD(B68,12)=0,E67*(1+CALCULOS!$C$28),E68))*IF(MOD(B69,12)=0,2,1)) -> - | F69: =IF(B69="-","-",F68*(1+CALCULOS!$C$27)+E69) -> - | G69: -
B70: =IF(OR(B69>=CALCULOS!$F$18,B69="-"),"-",B69+1) -> - | C70: =IF(B70="-","-",CALCULOS!$F$14+B70) -> - | D70: =IF(B70="-","-",D69*(1+CALCULOS!$C$27)) -> - | E70: =IF(B70="-","-",IF(B70=1,CALCULOS!$C$47,IF(MOD(B69,12)=0,E68*(1+CALCULOS!$C$28),E69))*IF(MOD(B70,12)=0,2,1)) -> - | F70: =IF(B70="-","-",F69*(1+CALCULOS!$C$27)+E70) -> - | G70: -
B71: =IF(OR(B70>=CALCULOS!$F$18,B70="-"),"-",B70+1) -> - | C71: =IF(B71="-","-",CALCULOS!$F$14+B71) -> - | D71: =IF(B71="-","-",D70*(1+CALCULOS!$C$27)) -> - | E71: =IF(B71="-","-",IF(B71=1,CALCULOS!$C$47,IF(MOD(B70,12)=0,E69*(1+CALCULOS!$C$28),E70))*IF(MOD(B71,12)=0,2,1)) -> - | F71: =IF(B71="-","-",F70*(1+CALCULOS!$C$27)+E71) -> - | G71: -
B72: =IF(OR(B71>=CALCULOS!$F$18,B71="-"),"-",B71+1) -> - | C72: =IF(B72="-","-",CALCULOS!$F$14+B72) -> - | D72: =IF(B72="-","-",D71*(1+CALCULOS!$C$27)) -> - | E72: =IF(B72="-","-",IF(B72=1,CALCULOS!$C$47,IF(MOD(B71,12)=0,E70*(1+CALCULOS!$C$28),E71))*IF(MOD(B72,12)=0,2,1)) -> - | F72: =IF(B72="-","-",F71*(1+CALCULOS!$C$27)+E72) -> - | G72: -
B73: =IF(OR(B72>=CALCULOS!$F$18,B72="-"),"-",B72+1) -> - | C73: =IF(B73="-","-",CALCULOS!$F$14+B73) -> - | D73: =IF(B73="-","-",D72*(1+CALCULOS!$C$27)) -> - | E73: =IF(B73="-","-",IF(B73=1,CALCULOS!$C$47,IF(MOD(B72,12)=0,E71*(1+CALCULOS!$C$28),E72))*IF(MOD(B73,12)=0,2,1)) -> - | F73: =IF(B73="-","-",F72*(1+CALCULOS!$C$27)+E73) -> - | G73: -
B74: =IF(OR(B73>=CALCULOS!$F$18,B73="-"),"-",B73+1) -> - | C74: =IF(B74="-","-",CALCULOS!$F$14+B74) -> - | D74: =IF(B74="-","-",D73*(1+CALCULOS!$C$27)) -> - | E74: =IF(B74="-","-",IF(B74=1,CALCULOS!$C$47,IF(MOD(B73,12)=0,E72*(1+CALCULOS!$C$28),E73))*IF(MOD(B74,12)=0,2,1)) -> - | F74: =IF(B74="-","-",F73*(1+CALCULOS!$C$27)+E74) -> - | G74: =IF(B74="-","-",SUM(D74,F74)) -> -
B75: =IF(OR(B74>=CALCULOS!$F$18,B74="-"),"-",B74+1) -> - | C75: =IF(B75="-","-",CALCULOS!$F$14+B75) -> - | D75: =IF(B75="-","-",D74*(1+CALCULOS!$C$27)) -> - | E75: =IF(B75="-","-",IF(B75=1,CALCULOS!$C$47,IF(MOD(B74,12)=0,E73*(1+CALCULOS!$C$28),E74))*IF(MOD(B75,12)=0,2,1)) -> - | F75: =IF(B75="-","-",F74*(1+CALCULOS!$C$27)+E75) -> - | G75: -
B76: =IF(OR(B75>=CALCULOS!$F$18,B75="-"),"-",B75+1) -> - | C76: =IF(B76="-","-",CALCULOS!$F$14+B76) -> - | D76: =IF(B76="-","-",D75*(1+CALCULOS!$C$27)) -> - | E76: =IF(B76="-","-",IF(B76=1,CALCULOS!$C$47,IF(MOD(B75,12)=0,E74*(1+CALCULOS!$C$28),E75))*IF(MOD(B76,12)=0,2,1)) -> - | F76: =IF(B76="-","-",F75*(1+CALCULOS!$C$27)+E76) -> - | G76: -
B77: =IF(OR(B76>=CALCULOS!$F$18,B76="-"),"-",B76+1) -> - | C77: =IF(B77="-","-",CALCULOS!$F$14+B77) -> - | D77: =IF(B77="-","-",D76*(1+CALCULOS!$C$27)) -> - | E77: =IF(B77="-","-",IF(B77=1,CALCULOS!$C$47,IF(MOD(B76,12)=0,E75*(1+CALCULOS!$C$28),E76))*IF(MOD(B77,12)=0,2,1)) -> - | F77: =IF(B77="-","-",F76*(1+CALCULOS!$C$27)+E77) -> - | G77: -
B78: =IF(OR(B77>=CALCULOS!$F$18,B77="-"),"-",B77+1) -> - | C78: =IF(B78="-","-",CALCULOS!$F$14+B78) -> - | D78: =IF(B78="-","-",D77*(1+CALCULOS!$C$27)) -> - | E78: =IF(B78="-","-",IF(B78=1,CALCULOS!$C$47,IF(MOD(B77,12)=0,E76*(1+CALCULOS!$C$28),E77))*IF(MOD(B78,12)=0,2,1)) -> - | F78: =IF(B78="-","-",F77*(1+CALCULOS!$C$27)+E78) -> - | G78: -
B79: =IF(OR(B78>=CALCULOS!$F$18,B78="-"),"-",B78+1) -> - | C79: =IF(B79="-","-",CALCULOS!$F$14+B79) -> - | D79: =IF(B79="-","-",D78*(1+CALCULOS!$C$27)) -> - | E79: =IF(B79="-","-",IF(B79=1,CALCULOS!$C$47,IF(MOD(B78,12)=0,E77*(1+CALCULOS!$C$28),E78))*IF(MOD(B79,12)=0,2,1)) -> - | F79: =IF(B79="-","-",F78*(1+CALCULOS!$C$27)+E79) -> - | G79: -
B80: =IF(OR(B79>=CALCULOS!$F$18,B79="-"),"-",B79+1) -> - | C80: =IF(B80="-","-",CALCULOS!$F$14+B80) -> - | D80: =IF(B80="-","-",D79*(1+CALCULOS!$C$27)) -> - | E80: =IF(B80="-","-",IF(B80=1,CALCULOS!$C$47,IF(MOD(B79,12)=0,E78*(1+CALCULOS!$C$28),E79))*IF(MOD(B80,12)=0,2,1)) -> - | F80: =IF(B80="-","-",F79*(1+CALCULOS!$C$27)+E80) -> - | G80: -
B81: =IF(OR(B80>=CALCULOS!$F$18,B80="-"),"-",B80+1) -> - | C81: =IF(B81="-","-",CALCULOS!$F$14+B81) -> - | D81: =IF(B81="-","-",D80*(1+CALCULOS!$C$27)) -> - | E81: =IF(B81="-","-",IF(B81=1,CALCULOS!$C$47,IF(MOD(B80,12)=0,E79*(1+CALCULOS!$C$28),E80))*IF(MOD(B81,12)=0,2,1)) -> - | F81: =IF(B81="-","-",F80*(1+CALCULOS!$C$27)+E81) -> - | G81: -
B82: =IF(OR(B81>=CALCULOS!$F$18,B81="-"),"-",B81+1) -> - | C82: =IF(B82="-","-",CALCULOS!$F$14+B82) -> - | D82: =IF(B82="-","-",D81*(1+CALCULOS!$C$27)) -> - | E82: =IF(B82="-","-",IF(B82=1,CALCULOS!$C$47,IF(MOD(B81,12)=0,E80*(1+CALCULOS!$C$28),E81))*IF(MOD(B82,12)=0,2,1)) -> - | F82: =IF(B82="-","-",F81*(1+CALCULOS!$C$27)+E82) -> - | G82: -
B83: =IF(OR(B82>=CALCULOS!$F$18,B82="-"),"-",B82+1) -> - | C83: =IF(B83="-","-",CALCULOS!$F$14+B83) -> - | D83: =IF(B83="-","-",D82*(1+CALCULOS!$C$27)) -> - | E83: =IF(B83="-","-",IF(B83=1,CALCULOS!$C$47,IF(MOD(B82,12)=0,E81*(1+CALCULOS!$C$28),E82))*IF(MOD(B83,12)=0,2,1)) -> - | F83: =IF(B83="-","-",F82*(1+CALCULOS!$C$27)+E83) -> - | G83: -
B84: =IF(OR(B83>=CALCULOS!$F$18,B83="-"),"-",B83+1) -> - | C84: =IF(B84="-","-",CALCULOS!$F$14+B84) -> - | D84: =IF(B84="-","-",D83*(1+CALCULOS!$C$27)) -> - | E84: =IF(B84="-","-",IF(B84=1,CALCULOS!$C$47,IF(MOD(B83,12)=0,E82*(1+CALCULOS!$C$28),E83))*IF(MOD(B84,12)=0,2,1)) -> - | F84: =IF(B84="-","-",F83*(1+CALCULOS!$C$27)+E84) -> - | G84: -
B85: =IF(OR(B84>=CALCULOS!$F$18,B84="-"),"-",B84+1) -> - | C85: =IF(B85="-","-",CALCULOS!$F$14+B85) -> - | D85: =IF(B85="-","-",D84*(1+CALCULOS!$C$27)) -> - | E85: =IF(B85="-","-",IF(B85=1,CALCULOS!$C$47,IF(MOD(B84,12)=0,E83*(1+CALCULOS!$C$28),E84))*IF(MOD(B85,12)=0,2,1)) -> - | F85: =IF(B85="-","-",F84*(1+CALCULOS!$C$27)+E85) -> - | G85: -
B86: =IF(OR(B85>=CALCULOS!$F$18,B85="-"),"-",B85+1) -> - | C86: =IF(B86="-","-",CALCULOS!$F$14+B86) -> - | D86: =IF(B86="-","-",D85*(1+CALCULOS!$C$27)) -> - | E86: =IF(B86="-","-",IF(B86=1,CALCULOS!$C$47,IF(MOD(B85,12)=0,E84*(1+CALCULOS!$C$28),E85))*IF(MOD(B86,12)=0,2,1)) -> - | F86: =IF(B86="-","-",F85*(1+CALCULOS!$C$27)+E86) -> - | G86: -
B87: =IF(OR(B86>=CALCULOS!$F$18,B86="-"),"-",B86+1) -> - | C87: =IF(B87="-","-",CALCULOS!$F$14+B87) -> - | D87: =IF(B87="-","-",D86*(1+CALCULOS!$C$27)) -> - | E87: =IF(B87="-","-",IF(B87=1,CALCULOS!$C$47,IF(MOD(B86,12)=0,E85*(1+CALCULOS!$C$28),E86))*IF(MOD(B87,12)=0,2,1)) -> - | F87: =IF(B87="-","-",F86*(1+CALCULOS!$C$27)+E87) -> - | G87: -
B88: =IF(OR(B87>=CALCULOS!$F$18,B87="-"),"-",B87+1) -> - | C88: =IF(B88="-","-",CALCULOS!$F$14+B88) -> - | D88: =IF(B88="-","-",D87*(1+CALCULOS!$C$27)) -> - | E88: =IF(B88="-","-",IF(B88=1,CALCULOS!$C$47,IF(MOD(B87,12)=0,E86*(1+CALCULOS!$C$28),E87))*IF(MOD(B88,12)=0,2,1)) -> - | F88: =IF(B88="-","-",F87*(1+CALCULOS!$C$27)+E88) -> - | G88: -
B89: =IF(OR(B88>=CALCULOS!$F$18,B88="-"),"-",B88+1) -> - | C89: =IF(B89="-","-",CALCULOS!$F$14+B89) -> - | D89: =IF(B89="-","-",D88*(1+CALCULOS!$C$27)) -> - | E89: =IF(B89="-","-",IF(B89=1,CALCULOS!$C$47,IF(MOD(B88,12)=0,E87*(1+CALCULOS!$C$28),E88))*IF(MOD(B89,12)=0,2,1)) -> - | F89: =IF(B89="-","-",F88*(1+CALCULOS!$C$27)+E89) -> - | G89: -
B90: =IF(OR(B89>=CALCULOS!$F$18,B89="-"),"-",B89+1) -> - | C90: =IF(B90="-","-",CALCULOS!$F$14+B90) -> - | D90: =IF(B90="-","-",D89*(1+CALCULOS!$C$27)) -> - | E90: =IF(B90="-","-",IF(B90=1,CALCULOS!$C$47,IF(MOD(B89,12)=0,E88*(1+CALCULOS!$C$28),E89))*IF(MOD(B90,12)=0,2,1)) -> - | F90: =IF(B90="-","-",F89*(1+CALCULOS!$C$27)+E90) -> - | G90: -
B91: =IF(OR(B90>=CALCULOS!$F$18,B90="-"),"-",B90+1) -> - | C91: =IF(B91="-","-",CALCULOS!$F$14+B91) -> - | D91: =IF(B91="-","-",D90*(1+CALCULOS!$C$27)) -> - | E91: =IF(B91="-","-",IF(B91=1,CALCULOS!$C$47,IF(MOD(B90,12)=0,E89*(1+CALCULOS!$C$28),E90))*IF(MOD(B91,12)=0,2,1)) -> - | F91: =IF(B91="-","-",F90*(1+CALCULOS!$C$27)+E91) -> - | G91: -
B92: =IF(OR(B91>=CALCULOS!$F$18,B91="-"),"-",B91+1) -> - | C92: =IF(B92="-","-",CALCULOS!$F$14+B92) -> - | D92: =IF(B92="-","-",D91*(1+CALCULOS!$C$27)) -> - | E92: =IF(B92="-","-",IF(B92=1,CALCULOS!$C$47,IF(MOD(B91,12)=0,E90*(1+CALCULOS!$C$28),E91))*IF(MOD(B92,12)=0,2,1)) -> - | F92: =IF(B92="-","-",F91*(1+CALCULOS!$C$27)+E92) -> - | G92: -
B93: =IF(OR(B92>=CALCULOS!$F$18,B92="-"),"-",B92+1) -> - | C93: =IF(B93="-","-",CALCULOS!$F$14+B93) -> - | D93: =IF(B93="-","-",D92*(1+CALCULOS!$C$27)) -> - | E93: =IF(B93="-","-",IF(B93=1,CALCULOS!$C$47,IF(MOD(B92,12)=0,E91*(1+CALCULOS!$C$28),E92))*IF(MOD(B93,12)=0,2,1)) -> - | F93: =IF(B93="-","-",F92*(1+CALCULOS!$C$27)+E93) -> - | G93: -
B94: =IF(OR(B93>=CALCULOS!$F$18,B93="-"),"-",B93+1) -> - | C94: =IF(B94="-","-",CALCULOS!$F$14+B94) -> - | D94: =IF(B94="-","-",D93*(1+CALCULOS!$C$27)) -> - | E94: =IF(B94="-","-",IF(B94=1,CALCULOS!$C$47,IF(MOD(B93,12)=0,E92*(1+CALCULOS!$C$28),E93))*IF(MOD(B94,12)=0,2,1)) -> - | F94: =IF(B94="-","-",F93*(1+CALCULOS!$C$27)+E94) -> - | G94: -
B95: =IF(OR(B94>=CALCULOS!$F$18,B94="-"),"-",B94+1) -> - | C95: =IF(B95="-","-",CALCULOS!$F$14+B95) -> - | D95: =IF(B95="-","-",D94*(1+CALCULOS!$C$27)) -> - | E95: =IF(B95="-","-",IF(B95=1,CALCULOS!$C$47,IF(MOD(B94,12)=0,E93*(1+CALCULOS!$C$28),E94))*IF(MOD(B95,12)=0,2,1)) -> - | F95: =IF(B95="-","-",F94*(1+CALCULOS!$C$27)+E95) -> - | G95: -
B96: =IF(OR(B95>=CALCULOS!$F$18,B95="-"),"-",B95+1) -> - | C96: =IF(B96="-","-",CALCULOS!$F$14+B96) -> - | D96: =IF(B96="-","-",D95*(1+CALCULOS!$C$27)) -> - | E96: =IF(B96="-","-",IF(B96=1,CALCULOS!$C$47,IF(MOD(B95,12)=0,E94*(1+CALCULOS!$C$28),E95))*IF(MOD(B96,12)=0,2,1)) -> - | F96: =IF(B96="-","-",F95*(1+CALCULOS!$C$27)+E96) -> - | G96: -
B97: =IF(OR(B96>=CALCULOS!$F$18,B96="-"),"-",B96+1) -> - | C97: =IF(B97="-","-",CALCULOS!$F$14+B97) -> - | D97: =IF(B97="-","-",D96*(1+CALCULOS!$C$27)) -> - | E97: =IF(B97="-","-",IF(B97=1,CALCULOS!$C$47,IF(MOD(B96,12)=0,E95*(1+CALCULOS!$C$28),E96))*IF(MOD(B97,12)=0,2,1)) -> - | F97: =IF(B97="-","-",F96*(1+CALCULOS!$C$27)+E97) -> - | G97: -
B98: =IF(OR(B97>=CALCULOS!$F$18,B97="-"),"-",B97+1) -> - | C98: =IF(B98="-","-",CALCULOS!$F$14+B98) -> - | D98: =IF(B98="-","-",D97*(1+CALCULOS!$C$27)) -> - | E98: =IF(B98="-","-",IF(B98=1,CALCULOS!$C$47,IF(MOD(B97,12)=0,E96*(1+CALCULOS!$C$28),E97))*IF(MOD(B98,12)=0,2,1)) -> - | F98: =IF(B98="-","-",F97*(1+CALCULOS!$C$27)+E98) -> - | G98: -
B99: =IF(OR(B98>=CALCULOS!$F$18,B98="-"),"-",B98+1) -> - | C99: =IF(B99="-","-",CALCULOS!$F$14+B99) -> - | D99: =IF(B99="-","-",D98*(1+CALCULOS!$C$27)) -> - | E99: =IF(B99="-","-",IF(B99=1,CALCULOS!$C$47,IF(MOD(B98,12)=0,E97*(1+CALCULOS!$C$28),E98))*IF(MOD(B99,12)=0,2,1)) -> - | F99: =IF(B99="-","-",F98*(1+CALCULOS!$C$27)+E99) -> - | G99: -
B100: =IF(OR(B99>=CALCULOS!$F$18,B99="-"),"-",B99+1) -> - | C100: =IF(B100="-","-",CALCULOS!$F$14+B100) -> - | D100: =IF(B100="-","-",D99*(1+CALCULOS!$C$27)) -> - | E100: =IF(B100="-","-",IF(B100=1,CALCULOS!$C$47,IF(MOD(B99,12)=0,E98*(1+CALCULOS!$C$28),E99))*IF(MOD(B100,12)=0,2,1)) -> - | F100: =IF(B100="-","-",F99*(1+CALCULOS!$C$27)+E100) -> - | G100: -
B101: =IF(OR(B100>=CALCULOS!$F$18,B100="-"),"-",B100+1) -> - | C101: =IF(B101="-","-",CALCULOS!$F$14+B101) -> - | D101: =IF(B101="-","-",D100*(1+CALCULOS!$C$27)) -> - | E101: =IF(B101="-","-",IF(B101=1,CALCULOS!$C$47,IF(MOD(B100,12)=0,E99*(1+CALCULOS!$C$28),E100))*IF(MOD(B101,12)=0,2,1)) -> - | F101: =IF(B101="-","-",F100*(1+CALCULOS!$C$27)+E101) -> - | G101: -
B102: =IF(OR(B101>=CALCULOS!$F$18,B101="-"),"-",B101+1) -> - | C102: =IF(B102="-","-",CALCULOS!$F$14+B102) -> - | D102: =IF(B102="-","-",D101*(1+CALCULOS!$C$27)) -> - | E102: =IF(B102="-","-",IF(B102=1,CALCULOS!$C$47,IF(MOD(B101,12)=0,E100*(1+CALCULOS!$C$28),E101))*IF(MOD(B102,12)=0,2,1)) -> - | F102: =IF(B102="-","-",F101*(1+CALCULOS!$C$27)+E102) -> - | G102: -
B103: =IF(OR(B102>=CALCULOS!$F$18,B102="-"),"-",B102+1) -> - | C103: =IF(B103="-","-",CALCULOS!$F$14+B103) -> - | D103: =IF(B103="-","-",D102*(1+CALCULOS!$C$27)) -> - | E103: =IF(B103="-","-",IF(B103=1,CALCULOS!$C$47,IF(MOD(B102,12)=0,E101*(1+CALCULOS!$C$28),E102))*IF(MOD(B103,12)=0,2,1)) -> - | F103: =IF(B103="-","-",F102*(1+CALCULOS!$C$27)+E103) -> - | G103: -
B104: =IF(OR(B103>=CALCULOS!$F$18,B103="-"),"-",B103+1) -> - | C104: =IF(B104="-","-",CALCULOS!$F$14+B104) -> - | D104: =IF(B104="-","-",D103*(1+CALCULOS!$C$27)) -> - | E104: =IF(B104="-","-",IF(B104=1,CALCULOS!$C$47,IF(MOD(B103,12)=0,E102*(1+CALCULOS!$C$28),E103))*IF(MOD(B104,12)=0,2,1)) -> - | F104: =IF(B104="-","-",F103*(1+CALCULOS!$C$27)+E104) -> - | G104: -
B105: =IF(OR(B104>=CALCULOS!$F$18,B104="-"),"-",B104+1) -> - | C105: =IF(B105="-","-",CALCULOS!$F$14+B105) -> - | D105: =IF(B105="-","-",D104*(1+CALCULOS!$C$27)) -> - | E105: =IF(B105="-","-",IF(B105=1,CALCULOS!$C$47,IF(MOD(B104,12)=0,E103*(1+CALCULOS!$C$28),E104))*IF(MOD(B105,12)=0,2,1)) -> - | F105: =IF(B105="-","-",F104*(1+CALCULOS!$C$27)+E105) -> - | G105: -
B106: =IF(OR(B105>=CALCULOS!$F$18,B105="-"),"-",B105+1) -> - | C106: =IF(B106="-","-",CALCULOS!$F$14+B106) -> - | D106: =IF(B106="-","-",D105*(1+CALCULOS!$C$27)) -> - | E106: =IF(B106="-","-",IF(B106=1,CALCULOS!$C$47,IF(MOD(B105,12)=0,E104*(1+CALCULOS!$C$28),E105))*IF(MOD(B106,12)=0,2,1)) -> - | F106: =IF(B106="-","-",F105*(1+CALCULOS!$C$27)+E106) -> - | G106: -
B107: =IF(OR(B106>=CALCULOS!$F$18,B106="-"),"-",B106+1) -> - | C107: =IF(B107="-","-",CALCULOS!$F$14+B107) -> - | D107: =IF(B107="-","-",D106*(1+CALCULOS!$C$27)) -> - | E107: =IF(B107="-","-",IF(B107=1,CALCULOS!$C$47,IF(MOD(B106,12)=0,E105*(1+CALCULOS!$C$28),E106))*IF(MOD(B107,12)=0,2,1)) -> - | F107: =IF(B107="-","-",F106*(1+CALCULOS!$C$27)+E107) -> - | G107: -
B108: =IF(OR(B107>=CALCULOS!$F$18,B107="-"),"-",B107+1) -> - | C108: =IF(B108="-","-",CALCULOS!$F$14+B108) -> - | D108: =IF(B108="-","-",D107*(1+CALCULOS!$C$27)) -> - | E108: =IF(B108="-","-",IF(B108=1,CALCULOS!$C$47,IF(MOD(B107,12)=0,E106*(1+CALCULOS!$C$28),E107))*IF(MOD(B108,12)=0,2,1)) -> - | F108: =IF(B108="-","-",F107*(1+CALCULOS!$C$27)+E108) -> - | G108: -
B109: =IF(OR(B108>=CALCULOS!$F$18,B108="-"),"-",B108+1) -> - | C109: =IF(B109="-","-",CALCULOS!$F$14+B109) -> - | D109: =IF(B109="-","-",D108*(1+CALCULOS!$C$27)) -> - | E109: =IF(B109="-","-",IF(B109=1,CALCULOS!$C$47,IF(MOD(B108,12)=0,E107*(1+CALCULOS!$C$28),E108))*IF(MOD(B109,12)=0,2,1)) -> - | F109: =IF(B109="-","-",F108*(1+CALCULOS!$C$27)+E109) -> - | G109: -
B110: =IF(OR(B109>=CALCULOS!$F$18,B109="-"),"-",B109+1) -> - | C110: =IF(B110="-","-",CALCULOS!$F$14+B110) -> - | D110: =IF(B110="-","-",D109*(1+CALCULOS!$C$27)) -> - | E110: =IF(B110="-","-",IF(B110=1,CALCULOS!$C$47,IF(MOD(B109,12)=0,E108*(1+CALCULOS!$C$28),E109))*IF(MOD(B110,12)=0,2,1)) -> - | F110: =IF(B110="-","-",F109*(1+CALCULOS!$C$27)+E110) -> - | G110: -
B111: =IF(OR(B110>=CALCULOS!$F$18,B110="-"),"-",B110+1) -> - | C111: =IF(B111="-","-",CALCULOS!$F$14+B111) -> - | D111: =IF(B111="-","-",D110*(1+CALCULOS!$C$27)) -> - | E111: =IF(B111="-","-",IF(B111=1,CALCULOS!$C$47,IF(MOD(B110,12)=0,E109*(1+CALCULOS!$C$28),E110))*IF(MOD(B111,12)=0,2,1)) -> - | F111: =IF(B111="-","-",F110*(1+CALCULOS!$C$27)+E111) -> - | G111: -
B112: =IF(OR(B111>=CALCULOS!$F$18,B111="-"),"-",B111+1) -> - | C112: =IF(B112="-","-",CALCULOS!$F$14+B112) -> - | D112: =IF(B112="-","-",D111*(1+CALCULOS!$C$27)) -> - | E112: =IF(B112="-","-",IF(B112=1,CALCULOS!$C$47,IF(MOD(B111,12)=0,E110*(1+CALCULOS!$C$28),E111))*IF(MOD(B112,12)=0,2,1)) -> - | F112: =IF(B112="-","-",F111*(1+CALCULOS!$C$27)+E112) -> - | G112: -
B113: =IF(OR(B112>=CALCULOS!$F$18,B112="-"),"-",B112+1) -> - | C113: =IF(B113="-","-",CALCULOS!$F$14+B113) -> - | D113: =IF(B113="-","-",D112*(1+CALCULOS!$C$27)) -> - | E113: =IF(B113="-","-",IF(B113=1,CALCULOS!$C$47,IF(MOD(B112,12)=0,E111*(1+CALCULOS!$C$28),E112))*IF(MOD(B113,12)=0,2,1)) -> - | F113: =IF(B113="-","-",F112*(1+CALCULOS!$C$27)+E113) -> - | G113: -
B114: =IF(OR(B113>=CALCULOS!$F$18,B113="-"),"-",B113+1) -> - | C114: =IF(B114="-","-",CALCULOS!$F$14+B114) -> - | D114: =IF(B114="-","-",D113*(1+CALCULOS!$C$27)) -> - | E114: =IF(B114="-","-",IF(B114=1,CALCULOS!$C$47,IF(MOD(B113,12)=0,E112*(1+CALCULOS!$C$28),E113))*IF(MOD(B114,12)=0,2,1)) -> - | F114: =IF(B114="-","-",F113*(1+CALCULOS!$C$27)+E114) -> - | G114: -
B115: =IF(OR(B114>=CALCULOS!$F$18,B114="-"),"-",B114+1) -> - | C115: =IF(B115="-","-",CALCULOS!$F$14+B115) -> - | D115: =IF(B115="-","-",D114*(1+CALCULOS!$C$27)) -> - | E115: =IF(B115="-","-",IF(B115=1,CALCULOS!$C$47,IF(MOD(B114,12)=0,E113*(1+CALCULOS!$C$28),E114))*IF(MOD(B115,12)=0,2,1)) -> - | F115: =IF(B115="-","-",F114*(1+CALCULOS!$C$27)+E115) -> - | G115: -
B116: =IF(OR(B115>=CALCULOS!$F$18,B115="-"),"-",B115+1) -> - | C116: =IF(B116="-","-",CALCULOS!$F$14+B116) -> - | D116: =IF(B116="-","-",D115*(1+CALCULOS!$C$27)) -> - | E116: =IF(B116="-","-",IF(B116=1,CALCULOS!$C$47,IF(MOD(B115,12)=0,E114*(1+CALCULOS!$C$28),E115))*IF(MOD(B116,12)=0,2,1)) -> - | F116: =IF(B116="-","-",F115*(1+CALCULOS!$C$27)+E116) -> - | G116: -
B117: =IF(OR(B116>=CALCULOS!$F$18,B116="-"),"-",B116+1) -> - | C117: =IF(B117="-","-",CALCULOS!$F$14+B117) -> - | D117: =IF(B117="-","-",D116*(1+CALCULOS!$C$27)) -> - | E117: =IF(B117="-","-",IF(B117=1,CALCULOS!$C$47,IF(MOD(B116,12)=0,E115*(1+CALCULOS!$C$28),E116))*IF(MOD(B117,12)=0,2,1)) -> - | F117: =IF(B117="-","-",F116*(1+CALCULOS!$C$27)+E117) -> - | G117: -
B118: =IF(OR(B117>=CALCULOS!$F$18,B117="-"),"-",B117+1) -> - | C118: =IF(B118="-","-",CALCULOS!$F$14+B118) -> - | D118: =IF(B118="-","-",D117*(1+CALCULOS!$C$27)) -> - | E118: =IF(B118="-","-",IF(B118=1,CALCULOS!$C$47,IF(MOD(B117,12)=0,E116*(1+CALCULOS!$C$28),E117))*IF(MOD(B118,12)=0,2,1)) -> - | F118: =IF(B118="-","-",F117*(1+CALCULOS!$C$27)+E118) -> - | G118: -
B119: =IF(OR(B118>=CALCULOS!$F$18,B118="-"),"-",B118+1) -> - | C119: =IF(B119="-","-",CALCULOS!$F$14+B119) -> - | D119: =IF(B119="-","-",D118*(1+CALCULOS!$C$27)) -> - | E119: =IF(B119="-","-",IF(B119=1,CALCULOS!$C$47,IF(MOD(B118,12)=0,E117*(1+CALCULOS!$C$28),E118))*IF(MOD(B119,12)=0,2,1)) -> - | F119: =IF(B119="-","-",F118*(1+CALCULOS!$C$27)+E119) -> - | G119: -
B120: =IF(OR(B119>=CALCULOS!$F$18,B119="-"),"-",B119+1) -> - | C120: =IF(B120="-","-",CALCULOS!$F$14+B120) -> - | D120: =IF(B120="-","-",D119*(1+CALCULOS!$C$27)) -> - | E120: =IF(B120="-","-",IF(B120=1,CALCULOS!$C$47,IF(MOD(B119,12)=0,E118*(1+CALCULOS!$C$28),E119))*IF(MOD(B120,12)=0,2,1)) -> - | F120: =IF(B120="-","-",F119*(1+CALCULOS!$C$27)+E120) -> - | G120: -
B121: =IF(OR(B120>=CALCULOS!$F$18,B120="-"),"-",B120+1) -> - | C121: =IF(B121="-","-",CALCULOS!$F$14+B121) -> - | D121: =IF(B121="-","-",D120*(1+CALCULOS!$C$27)) -> - | E121: =IF(B121="-","-",IF(B121=1,CALCULOS!$C$47,IF(MOD(B120,12)=0,E119*(1+CALCULOS!$C$28),E120))*IF(MOD(B121,12)=0,2,1)) -> - | F121: =IF(B121="-","-",F120*(1+CALCULOS!$C$27)+E121) -> - | G121: -
B122: =IF(OR(B121>=CALCULOS!$F$18,B121="-"),"-",B121+1) -> - | C122: =IF(B122="-","-",CALCULOS!$F$14+B122) -> - | D122: =IF(B122="-","-",D121*(1+CALCULOS!$C$27)) -> - | E122: =IF(B122="-","-",IF(B122=1,CALCULOS!$C$47,IF(MOD(B121,12)=0,E120*(1+CALCULOS!$C$28),E121))*IF(MOD(B122,12)=0,2,1)) -> - | F122: =IF(B122="-","-",F121*(1+CALCULOS!$C$27)+E122) -> - | G122: -
B123: =IF(OR(B122>=CALCULOS!$F$18,B122="-"),"-",B122+1) -> - | C123: =IF(B123="-","-",CALCULOS!$F$14+B123) -> - | D123: =IF(B123="-","-",D122*(1+CALCULOS!$C$27)) -> - | E123: =IF(B123="-","-",IF(B123=1,CALCULOS!$C$47,IF(MOD(B122,12)=0,E121*(1+CALCULOS!$C$28),E122))*IF(MOD(B123,12)=0,2,1)) -> - | F123: =IF(B123="-","-",F122*(1+CALCULOS!$C$27)+E123) -> - | G123: -
B124: =IF(OR(B123>=CALCULOS!$F$18,B123="-"),"-",B123+1) -> - | C124: =IF(B124="-","-",CALCULOS!$F$14+B124) -> - | D124: =IF(B124="-","-",D123*(1+CALCULOS!$C$27)) -> - | E124: =IF(B124="-","-",IF(B124=1,CALCULOS!$C$47,IF(MOD(B123,12)=0,E122*(1+CALCULOS!$C$28),E123))*IF(MOD(B124,12)=0,2,1)) -> - | F124: =IF(B124="-","-",F123*(1+CALCULOS!$C$27)+E124) -> - | G124: -
B125: =IF(OR(B124>=CALCULOS!$F$18,B124="-"),"-",B124+1) -> - | C125: =IF(B125="-","-",CALCULOS!$F$14+B125) -> - | D125: =IF(B125="-","-",D124*(1+CALCULOS!$C$27)) -> - | E125: =IF(B125="-","-",IF(B125=1,CALCULOS!$C$47,IF(MOD(B124,12)=0,E123*(1+CALCULOS!$C$28),E124))*IF(MOD(B125,12)=0,2,1)) -> - | F125: =IF(B125="-","-",F124*(1+CALCULOS!$C$27)+E125) -> - | G125: -
B126: =IF(OR(B125>=CALCULOS!$F$18,B125="-"),"-",B125+1) -> - | C126: =IF(B126="-","-",CALCULOS!$F$14+B126) -> - | D126: =IF(B126="-","-",D125*(1+CALCULOS!$C$27)) -> - | E126: =IF(B126="-","-",IF(B126=1,CALCULOS!$C$47,IF(MOD(B125,12)=0,E124*(1+CALCULOS!$C$28),E125))*IF(MOD(B126,12)=0,2,1)) -> - | F126: =IF(B126="-","-",F125*(1+CALCULOS!$C$27)+E126) -> - | G126: -
B127: =IF(OR(B126>=CALCULOS!$F$18,B126="-"),"-",B126+1) -> - | C127: =IF(B127="-","-",CALCULOS!$F$14+B127) -> - | D127: =IF(B127="-","-",D126*(1+CALCULOS!$C$27)) -> - | E127: =IF(B127="-","-",IF(B127=1,CALCULOS!$C$47,IF(MOD(B126,12)=0,E125*(1+CALCULOS!$C$28),E126))*IF(MOD(B127,12)=0,2,1)) -> - | F127: =IF(B127="-","-",F126*(1+CALCULOS!$C$27)+E127) -> - | G127: -
B128: =IF(OR(B127>=CALCULOS!$F$18,B127="-"),"-",B127+1) -> - | C128: =IF(B128="-","-",CALCULOS!$F$14+B128) -> - | D128: =IF(B128="-","-",D127*(1+CALCULOS!$C$27)) -> - | E128: =IF(B128="-","-",IF(B128=1,CALCULOS!$C$47,IF(MOD(B127,12)=0,E126*(1+CALCULOS!$C$28),E127))*IF(MOD(B128,12)=0,2,1)) -> - | F128: =IF(B128="-","-",F127*(1+CALCULOS!$C$27)+E128) -> - | G128: -
B129: =IF(OR(B128>=CALCULOS!$F$18,B128="-"),"-",B128+1) -> - | C129: =IF(B129="-","-",CALCULOS!$F$14+B129) -> - | D129: =IF(B129="-","-",D128*(1+CALCULOS!$C$27)) -> - | E129: =IF(B129="-","-",IF(B129=1,CALCULOS!$C$47,IF(MOD(B128,12)=0,E127*(1+CALCULOS!$C$28),E128))*IF(MOD(B129,12)=0,2,1)) -> - | F129: =IF(B129="-","-",F128*(1+CALCULOS!$C$27)+E129) -> - | G129: -
B130: =IF(OR(B129>=CALCULOS!$F$18,B129="-"),"-",B129+1) -> - | C130: =IF(B130="-","-",CALCULOS!$F$14+B130) -> - | D130: =IF(B130="-","-",D129*(1+CALCULOS!$C$27)) -> - | E130: =IF(B130="-","-",IF(B130=1,CALCULOS!$C$47,IF(MOD(B129,12)=0,E128*(1+CALCULOS!$C$28),E129))*IF(MOD(B130,12)=0,2,1)) -> - | F130: =IF(B130="-","-",F129*(1+CALCULOS!$C$27)+E130) -> - | G130: -
B131: =IF(OR(B130>=CALCULOS!$F$18,B130="-"),"-",B130+1) -> - | C131: =IF(B131="-","-",CALCULOS!$F$14+B131) -> - | D131: =IF(B131="-","-",D130*(1+CALCULOS!$C$27)) -> - | E131: =IF(B131="-","-",IF(B131=1,CALCULOS!$C$47,IF(MOD(B130,12)=0,E129*(1+CALCULOS!$C$28),E130))*IF(MOD(B131,12)=0,2,1)) -> - | F131: =IF(B131="-","-",F130*(1+CALCULOS!$C$27)+E131) -> - | G131: -
B132: =IF(OR(B131>=CALCULOS!$F$18,B131="-"),"-",B131+1) -> - | C132: =IF(B132="-","-",CALCULOS!$F$14+B132) -> - | D132: =IF(B132="-","-",D131*(1+CALCULOS!$C$27)) -> - | E132: =IF(B132="-","-",IF(B132=1,CALCULOS!$C$47,IF(MOD(B131,12)=0,E130*(1+CALCULOS!$C$28),E131))*IF(MOD(B132,12)=0,2,1)) -> - | F132: =IF(B132="-","-",F131*(1+CALCULOS!$C$27)+E132) -> - | G132: -
B133: =IF(OR(B132>=CALCULOS!$F$18,B132="-"),"-",B132+1) -> - | C133: =IF(B133="-","-",CALCULOS!$F$14+B133) -> - | D133: =IF(B133="-","-",D132*(1+CALCULOS!$C$27)) -> - | E133: =IF(B133="-","-",IF(B133=1,CALCULOS!$C$47,IF(MOD(B132,12)=0,E131*(1+CALCULOS!$C$28),E132))*IF(MOD(B133,12)=0,2,1)) -> - | F133: =IF(B133="-","-",F132*(1+CALCULOS!$C$27)+E133) -> - | G133: -
B134: =IF(OR(B133>=CALCULOS!$F$18,B133="-"),"-",B133+1) -> - | C134: =IF(B134="-","-",CALCULOS!$F$14+B134) -> - | D134: =IF(B134="-","-",D133*(1+CALCULOS!$C$27)) -> - | E134: =IF(B134="-","-",IF(B134=1,CALCULOS!$C$47,IF(MOD(B133,12)=0,E132*(1+CALCULOS!$C$28),E133))*IF(MOD(B134,12)=0,2,1)) -> - | F134: =IF(B134="-","-",F133*(1+CALCULOS!$C$27)+E134) -> - | G134: -
B135: =IF(OR(B134>=CALCULOS!$F$18,B134="-"),"-",B134+1) -> - | C135: =IF(B135="-","-",CALCULOS!$F$14+B135) -> - | D135: =IF(B135="-","-",D134*(1+CALCULOS!$C$27)) -> - | E135: =IF(B135="-","-",IF(B135=1,CALCULOS!$C$47,IF(MOD(B134,12)=0,E133*(1+CALCULOS!$C$28),E134))*IF(MOD(B135,12)=0,2,1)) -> - | F135: =IF(B135="-","-",F134*(1+CALCULOS!$C$27)+E135) -> - | G135: -
B136: =IF(OR(B135>=CALCULOS!$F$18,B135="-"),"-",B135+1) -> - | C136: =IF(B136="-","-",CALCULOS!$F$14+B136) -> - | D136: =IF(B136="-","-",D135*(1+CALCULOS!$C$27)) -> - | E136: =IF(B136="-","-",IF(B136=1,CALCULOS!$C$47,IF(MOD(B135,12)=0,E134*(1+CALCULOS!$C$28),E135))*IF(MOD(B136,12)=0,2,1)) -> - | F136: =IF(B136="-","-",F135*(1+CALCULOS!$C$27)+E136) -> - | G136: -
B137: =IF(OR(B136>=CALCULOS!$F$18,B136="-"),"-",B136+1) -> - | C137: =IF(B137="-","-",CALCULOS!$F$14+B137) -> - | D137: =IF(B137="-","-",D136*(1+CALCULOS!$C$27)) -> - | E137: =IF(B137="-","-",IF(B137=1,CALCULOS!$C$47,IF(MOD(B136,12)=0,E135*(1+CALCULOS!$C$28),E136))*IF(MOD(B137,12)=0,2,1)) -> - | F137: =IF(B137="-","-",F136*(1+CALCULOS!$C$27)+E137) -> - | G137: -
B138: =IF(OR(B137>=CALCULOS!$F$18,B137="-"),"-",B137+1) -> - | C138: =IF(B138="-","-",CALCULOS!$F$14+B138) -> - | D138: =IF(B138="-","-",D137*(1+CALCULOS!$C$27)) -> - | E138: =IF(B138="-","-",IF(B138=1,CALCULOS!$C$47,IF(MOD(B137,12)=0,E136*(1+CALCULOS!$C$28),E137))*IF(MOD(B138,12)=0,2,1)) -> - | F138: =IF(B138="-","-",F137*(1+CALCULOS!$C$27)+E138) -> - | G138: =IF(B138="-","-",SUM(D138,F138)) -> -
B139: =IF(OR(B138>=CALCULOS!$F$18,B138="-"),"-",B138+1) -> - | C139: =IF(B139="-","-",CALCULOS!$F$14+B139) -> - | D139: =IF(B139="-","-",D138*(1+CALCULOS!$C$27)) -> - | E139: =IF(B139="-","-",IF(B139=1,CALCULOS!$C$47,IF(MOD(B138,12)=0,E137*(1+CALCULOS!$C$28),E138))*IF(MOD(B139,12)=0,2,1)) -> - | F139: =IF(B139="-","-",F138*(1+CALCULOS!$C$27)+E139) -> - | G139: -
B140: =IF(OR(B139>=CALCULOS!$F$18,B139="-"),"-",B139+1) -> - | C140: =IF(B140="-","-",CALCULOS!$F$14+B140) -> - | D140: =IF(B140="-","-",D139*(1+CALCULOS!$C$27)) -> - | E140: =IF(B140="-","-",IF(B140=1,CALCULOS!$C$47,IF(MOD(B139,12)=0,E138*(1+CALCULOS!$C$28),E139))*IF(MOD(B140,12)=0,2,1)) -> - | F140: =IF(B140="-","-",F139*(1+CALCULOS!$C$27)+E140) -> - | G140: -
B141: =IF(OR(B140>=CALCULOS!$F$18,B140="-"),"-",B140+1) -> - | C141: =IF(B141="-","-",CALCULOS!$F$14+B141) -> - | D141: =IF(B141="-","-",D140*(1+CALCULOS!$C$27)) -> - | E141: =IF(B141="-","-",IF(B141=1,CALCULOS!$C$47,IF(MOD(B140,12)=0,E139*(1+CALCULOS!$C$28),E140))*IF(MOD(B141,12)=0,2,1)) -> - | F141: =IF(B141="-","-",F140*(1+CALCULOS!$C$27)+E141) -> - | G141: -
B142: =IF(OR(B141>=CALCULOS!$F$18,B141="-"),"-",B141+1) -> - | C142: =IF(B142="-","-",CALCULOS!$F$14+B142) -> - | D142: =IF(B142="-","-",D141*(1+CALCULOS!$C$27)) -> - | E142: =IF(B142="-","-",IF(B142=1,CALCULOS!$C$47,IF(MOD(B141,12)=0,E140*(1+CALCULOS!$C$28),E141))*IF(MOD(B142,12)=0,2,1)) -> - | F142: =IF(B142="-","-",F141*(1+CALCULOS!$C$27)+E142) -> - | G142: -
B143: =IF(OR(B142>=CALCULOS!$F$18,B142="-"),"-",B142+1) -> - | C143: =IF(B143="-","-",CALCULOS!$F$14+B143) -> - | D143: =IF(B143="-","-",D142*(1+CALCULOS!$C$27)) -> - | E143: =IF(B143="-","-",IF(B143=1,CALCULOS!$C$47,IF(MOD(B142,12)=0,E141*(1+CALCULOS!$C$28),E142))*IF(MOD(B143,12)=0,2,1)) -> - | F143: =IF(B143="-","-",F142*(1+CALCULOS!$C$27)+E143) -> - | G143: -
B144: =IF(OR(B143>=CALCULOS!$F$18,B143="-"),"-",B143+1) -> - | C144: =IF(B144="-","-",CALCULOS!$F$14+B144) -> - | D144: =IF(B144="-","-",D143*(1+CALCULOS!$C$27)) -> - | E144: =IF(B144="-","-",IF(B144=1,CALCULOS!$C$47,IF(MOD(B143,12)=0,E142*(1+CALCULOS!$C$28),E143))*IF(MOD(B144,12)=0,2,1)) -> - | F144: =IF(B144="-","-",F143*(1+CALCULOS!$C$27)+E144) -> - | G144: -
B145: =IF(OR(B144>=CALCULOS!$F$18,B144="-"),"-",B144+1) -> - | C145: =IF(B145="-","-",CALCULOS!$F$14+B145) -> - | D145: =IF(B145="-","-",D144*(1+CALCULOS!$C$27)) -> - | E145: =IF(B145="-","-",IF(B145=1,CALCULOS!$C$47,IF(MOD(B144,12)=0,E143*(1+CALCULOS!$C$28),E144))*IF(MOD(B145,12)=0,2,1)) -> - | F145: =IF(B145="-","-",F144*(1+CALCULOS!$C$27)+E145) -> - | G145: -
B146: =IF(OR(B145>=CALCULOS!$F$18,B145="-"),"-",B145+1) -> - | C146: =IF(B146="-","-",CALCULOS!$F$14+B146) -> - | D146: =IF(B146="-","-",D145*(1+CALCULOS!$C$27)) -> - | E146: =IF(B146="-","-",IF(B146=1,CALCULOS!$C$47,IF(MOD(B145,12)=0,E144*(1+CALCULOS!$C$28),E145))*IF(MOD(B146,12)=0,2,1)) -> - | F146: =IF(B146="-","-",F145*(1+CALCULOS!$C$27)+E146) -> - | G146: -
B147: =IF(OR(B146>=CALCULOS!$F$18,B146="-"),"-",B146+1) -> - | C147: =IF(B147="-","-",CALCULOS!$F$14+B147) -> - | D147: =IF(B147="-","-",D146*(1+CALCULOS!$C$27)) -> - | E147: =IF(B147="-","-",IF(B147=1,CALCULOS!$C$47,IF(MOD(B146,12)=0,E145*(1+CALCULOS!$C$28),E146))*IF(MOD(B147,12)=0,2,1)) -> - | F147: =IF(B147="-","-",F146*(1+CALCULOS!$C$27)+E147) -> - | G147: =IF(B147="-","-",SUM(D147,F147)) -> -
B148: =IF(OR(B147>=CALCULOS!$F$18,B147="-"),"-",B147+1) -> - | C148: =IF(B148="-","-",CALCULOS!$F$14+B148) -> - | D148: =IF(B148="-","-",D147*(1+CALCULOS!$C$27)) -> - | E148: =IF(B148="-","-",IF(B148=1,CALCULOS!$C$47,IF(MOD(B147,12)=0,E146*(1+CALCULOS!$C$28),E147))*IF(MOD(B148,12)=0,2,1)) -> - | F148: =IF(B148="-","-",F147*(1+CALCULOS!$C$27)+E148) -> - | G148: =IF(B148="-","-",SUM(D148,F148)) -> -
B149: =IF(OR(B148>=CALCULOS!$F$18,B148="-"),"-",B148+1) -> - | C149: =IF(B149="-","-",CALCULOS!$F$14+B149) -> - | D149: =IF(B149="-","-",D148*(1+CALCULOS!$C$27)) -> - | E149: =IF(B149="-","-",IF(B149=1,CALCULOS!$C$47,IF(MOD(B148,12)=0,E147*(1+CALCULOS!$C$28),E148))*IF(MOD(B149,12)=0,2,1)) -> - | F149: =IF(B149="-","-",F148*(1+CALCULOS!$C$27)+E149) -> - | G149: -
B150: =IF(OR(B149>=CALCULOS!$F$18,B149="-"),"-",B149+1) -> - | C150: =IF(B150="-","-",CALCULOS!$F$14+B150) -> - | D150: =IF(B150="-","-",D149*(1+CALCULOS!$C$27)) -> - | E150: =IF(B150="-","-",IF(B150=1,CALCULOS!$C$47,IF(MOD(B149,12)=0,E148*(1+CALCULOS!$C$28),E149))*IF(MOD(B150,12)=0,2,1)) -> - | F150: =IF(B150="-","-",F149*(1+CALCULOS!$C$27)+E150) -> - | G150: -
B151: =IF(OR(B150>=CALCULOS!$F$18,B150="-"),"-",B150+1) -> - | C151: =IF(B151="-","-",CALCULOS!$F$14+B151) -> - | D151: =IF(B151="-","-",D150*(1+CALCULOS!$C$27)) -> - | E151: =IF(B151="-","-",IF(B151=1,CALCULOS!$C$47,IF(MOD(B150,12)=0,E149*(1+CALCULOS!$C$28),E150))*IF(MOD(B151,12)=0,2,1)) -> - | F151: =IF(B151="-","-",F150*(1+CALCULOS!$C$27)+E151) -> - | G151: -
B152: =IF(OR(B151>=CALCULOS!$F$18,B151="-"),"-",B151+1) -> - | C152: =IF(B152="-","-",CALCULOS!$F$14+B152) -> - | D152: =IF(B152="-","-",D151*(1+CALCULOS!$C$27)) -> - | E152: =IF(B152="-","-",IF(B152=1,CALCULOS!$C$47,IF(MOD(B151,12)=0,E150*(1+CALCULOS!$C$28),E151))*IF(MOD(B152,12)=0,2,1)) -> - | F152: =IF(B152="-","-",F151*(1+CALCULOS!$C$27)+E152) -> - | G152: -
B153: =IF(OR(B152>=CALCULOS!$F$18,B152="-"),"-",B152+1) -> - | C153: =IF(B153="-","-",CALCULOS!$F$14+B153) -> - | D153: =IF(B153="-","-",D152*(1+CALCULOS!$C$27)) -> - | E153: =IF(B153="-","-",IF(B153=1,CALCULOS!$C$47,IF(MOD(B152,12)=0,E151*(1+CALCULOS!$C$28),E152))*IF(MOD(B153,12)=0,2,1)) -> - | F153: =IF(B153="-","-",F152*(1+CALCULOS!$C$27)+E153) -> - | G153: =IF(B153="-","-",SUM(D153,F153)) -> -
B154: =IF(OR(B153>=CALCULOS!$F$18,B153="-"),"-",B153+1) -> - | C154: =IF(B154="-","-",CALCULOS!$F$14+B154) -> - | D154: =IF(B154="-","-",D153*(1+CALCULOS!$C$27)) -> - | E154: =IF(B154="-","-",IF(B154=1,CALCULOS!$C$47,IF(MOD(B153,12)=0,E152*(1+CALCULOS!$C$28),E153))*IF(MOD(B154,12)=0,2,1)) -> - | F154: =IF(B154="-","-",F153*(1+CALCULOS!$C$27)+E154) -> - | G154: -
B155: =IF(OR(B154>=CALCULOS!$F$18,B154="-"),"-",B154+1) -> - | C155: =IF(B155="-","-",CALCULOS!$F$14+B155) -> - | D155: =IF(B155="-","-",D154*(1+CALCULOS!$C$27)) -> - | E155: =IF(B155="-","-",IF(B155=1,CALCULOS!$C$47,IF(MOD(B154,12)=0,E153*(1+CALCULOS!$C$28),E154))*IF(MOD(B155,12)=0,2,1)) -> - | F155: =IF(B155="-","-",F154*(1+CALCULOS!$C$27)+E155) -> - | G155: -
B156: =IF(OR(B155>=CALCULOS!$F$18,B155="-"),"-",B155+1) -> - | C156: =IF(B156="-","-",CALCULOS!$F$14+B156) -> - | D156: =IF(B156="-","-",D155*(1+CALCULOS!$C$27)) -> - | E156: =IF(B156="-","-",IF(B156=1,CALCULOS!$C$47,IF(MOD(B155,12)=0,E154*(1+CALCULOS!$C$28),E155))*IF(MOD(B156,12)=0,2,1)) -> - | F156: =IF(B156="-","-",F155*(1+CALCULOS!$C$27)+E156) -> - | G156: -
B157: =IF(OR(B156>=CALCULOS!$F$18,B156="-"),"-",B156+1) -> - | C157: =IF(B157="-","-",CALCULOS!$F$14+B157) -> - | D157: =IF(B157="-","-",D156*(1+CALCULOS!$C$27)) -> - | E157: =IF(B157="-","-",IF(B157=1,CALCULOS!$C$47,IF(MOD(B156,12)=0,E155*(1+CALCULOS!$C$28),E156))*IF(MOD(B157,12)=0,2,1)) -> - | F157: =IF(B157="-","-",F156*(1+CALCULOS!$C$27)+E157) -> - | G157: -
B158: =IF(OR(B157>=CALCULOS!$F$18,B157="-"),"-",B157+1) -> - | C158: =IF(B158="-","-",CALCULOS!$F$14+B158) -> - | D158: =IF(B158="-","-",D157*(1+CALCULOS!$C$27)) -> - | E158: =IF(B158="-","-",IF(B158=1,CALCULOS!$C$47,IF(MOD(B157,12)=0,E156*(1+CALCULOS!$C$28),E157))*IF(MOD(B158,12)=0,2,1)) -> - | F158: =IF(B158="-","-",F157*(1+CALCULOS!$C$27)+E158) -> - | G158: -
B159: =IF(OR(B158>=CALCULOS!$F$18,B158="-"),"-",B158+1) -> - | C159: =IF(B159="-","-",CALCULOS!$F$14+B159) -> - | D159: =IF(B159="-","-",D158*(1+CALCULOS!$C$27)) -> - | E159: =IF(B159="-","-",IF(B159=1,CALCULOS!$C$47,IF(MOD(B158,12)=0,E157*(1+CALCULOS!$C$28),E158))*IF(MOD(B159,12)=0,2,1)) -> - | F159: =IF(B159="-","-",F158*(1+CALCULOS!$C$27)+E159) -> - | G159: -
B160: =IF(OR(B159>=CALCULOS!$F$18,B159="-"),"-",B159+1) -> - | C160: =IF(B160="-","-",CALCULOS!$F$14+B160) -> - | D160: =IF(B160="-","-",D159*(1+CALCULOS!$C$27)) -> - | E160: =IF(B160="-","-",IF(B160=1,CALCULOS!$C$47,IF(MOD(B159,12)=0,E158*(1+CALCULOS!$C$28),E159))*IF(MOD(B160,12)=0,2,1)) -> - | F160: =IF(B160="-","-",F159*(1+CALCULOS!$C$27)+E160) -> - | G160: -
B161: =IF(OR(B160>=CALCULOS!$F$18,B160="-"),"-",B160+1) -> - | C161: =IF(B161="-","-",CALCULOS!$F$14+B161) -> - | D161: =IF(B161="-","-",D160*(1+CALCULOS!$C$27)) -> - | E161: =IF(B161="-","-",IF(B161=1,CALCULOS!$C$47,IF(MOD(B160,12)=0,E159*(1+CALCULOS!$C$28),E160))*IF(MOD(B161,12)=0,2,1)) -> - | F161: =IF(B161="-","-",F160*(1+CALCULOS!$C$27)+E161) -> - | G161: -
B162: =IF(OR(B161>=CALCULOS!$F$18,B161="-"),"-",B161+1) -> - | C162: =IF(B162="-","-",CALCULOS!$F$14+B162) -> - | D162: =IF(B162="-","-",D161*(1+CALCULOS!$C$27)) -> - | E162: =IF(B162="-","-",IF(B162=1,CALCULOS!$C$47,IF(MOD(B161,12)=0,E160*(1+CALCULOS!$C$28),E161))*IF(MOD(B162,12)=0,2,1)) -> - | F162: =IF(B162="-","-",F161*(1+CALCULOS!$C$27)+E162) -> - | G162: -
B163: =IF(OR(B162>=CALCULOS!$F$18,B162="-"),"-",B162+1) -> - | C163: =IF(B163="-","-",CALCULOS!$F$14+B163) -> - | D163: =IF(B163="-","-",D162*(1+CALCULOS!$C$27)) -> - | E163: =IF(B163="-","-",IF(B163=1,CALCULOS!$C$47,IF(MOD(B162,12)=0,E161*(1+CALCULOS!$C$28),E162))*IF(MOD(B163,12)=0,2,1)) -> - | F163: =IF(B163="-","-",F162*(1+CALCULOS!$C$27)+E163) -> - | G163: -
B164: =IF(OR(B163>=CALCULOS!$F$18,B163="-"),"-",B163+1) -> - | C164: =IF(B164="-","-",CALCULOS!$F$14+B164) -> - | D164: =IF(B164="-","-",D163*(1+CALCULOS!$C$27)) -> - | E164: =IF(B164="-","-",IF(B164=1,CALCULOS!$C$47,IF(MOD(B163,12)=0,E162*(1+CALCULOS!$C$28),E163))*IF(MOD(B164,12)=0,2,1)) -> - | F164: =IF(B164="-","-",F163*(1+CALCULOS!$C$27)+E164) -> - | G164: -
B165: =IF(OR(B164>=CALCULOS!$F$18,B164="-"),"-",B164+1) -> - | C165: =IF(B165="-","-",CALCULOS!$F$14+B165) -> - | D165: =IF(B165="-","-",D164*(1+CALCULOS!$C$27)) -> - | E165: =IF(B165="-","-",IF(B165=1,CALCULOS!$C$47,IF(MOD(B164,12)=0,E163*(1+CALCULOS!$C$28),E164))*IF(MOD(B165,12)=0,2,1)) -> - | F165: =IF(B165="-","-",F164*(1+CALCULOS!$C$27)+E165) -> - | G165: -
B166: =IF(OR(B165>=CALCULOS!$F$18,B165="-"),"-",B165+1) -> - | C166: =IF(B166="-","-",CALCULOS!$F$14+B166) -> - | D166: =IF(B166="-","-",D165*(1+CALCULOS!$C$27)) -> - | E166: =IF(B166="-","-",IF(B166=1,CALCULOS!$C$47,IF(MOD(B165,12)=0,E164*(1+CALCULOS!$C$28),E165))*IF(MOD(B166,12)=0,2,1)) -> - | F166: =IF(B166="-","-",F165*(1+CALCULOS!$C$27)+E166) -> - | G166: -
B167: =IF(OR(B166>=CALCULOS!$F$18,B166="-"),"-",B166+1) -> - | C167: =IF(B167="-","-",CALCULOS!$F$14+B167) -> - | D167: =IF(B167="-","-",D166*(1+CALCULOS!$C$27)) -> - | E167: =IF(B167="-","-",IF(B167=1,CALCULOS!$C$47,IF(MOD(B166,12)=0,E165*(1+CALCULOS!$C$28),E166))*IF(MOD(B167,12)=0,2,1)) -> - | F167: =IF(B167="-","-",F166*(1+CALCULOS!$C$27)+E167) -> - | G167: -
B168: =IF(OR(B167>=CALCULOS!$F$18,B167="-"),"-",B167+1) -> - | C168: =IF(B168="-","-",CALCULOS!$F$14+B168) -> - | D168: =IF(B168="-","-",D167*(1+CALCULOS!$C$27)) -> - | E168: =IF(B168="-","-",IF(B168=1,CALCULOS!$C$47,IF(MOD(B167,12)=0,E166*(1+CALCULOS!$C$28),E167))*IF(MOD(B168,12)=0,2,1)) -> - | F168: =IF(B168="-","-",F167*(1+CALCULOS!$C$27)+E168) -> - | G168: -
B169: =IF(OR(B168>=CALCULOS!$F$18,B168="-"),"-",B168+1) -> - | C169: =IF(B169="-","-",CALCULOS!$F$14+B169) -> - | D169: =IF(B169="-","-",D168*(1+CALCULOS!$C$27)) -> - | E169: =IF(B169="-","-",IF(B169=1,CALCULOS!$C$47,IF(MOD(B168,12)=0,E167*(1+CALCULOS!$C$28),E168))*IF(MOD(B169,12)=0,2,1)) -> - | F169: =IF(B169="-","-",F168*(1+CALCULOS!$C$27)+E169) -> - | G169: -
B170: =IF(OR(B169>=CALCULOS!$F$18,B169="-"),"-",B169+1) -> - | C170: =IF(B170="-","-",CALCULOS!$F$14+B170) -> - | D170: =IF(B170="-","-",D169*(1+CALCULOS!$C$27)) -> - | E170: =IF(B170="-","-",IF(B170=1,CALCULOS!$C$47,IF(MOD(B169,12)=0,E168*(1+CALCULOS!$C$28),E169))*IF(MOD(B170,12)=0,2,1)) -> - | F170: =IF(B170="-","-",F169*(1+CALCULOS!$C$27)+E170) -> - | G170: -
B171: =IF(OR(B170>=CALCULOS!$F$18,B170="-"),"-",B170+1) -> - | C171: =IF(B171="-","-",CALCULOS!$F$14+B171) -> - | D171: =IF(B171="-","-",D170*(1+CALCULOS!$C$27)) -> - | E171: =IF(B171="-","-",IF(B171=1,CALCULOS!$C$47,IF(MOD(B170,12)=0,E169*(1+CALCULOS!$C$28),E170))*IF(MOD(B171,12)=0,2,1)) -> - | F171: =IF(B171="-","-",F170*(1+CALCULOS!$C$27)+E171) -> - | G171: -
B172: =IF(OR(B171>=CALCULOS!$F$18,B171="-"),"-",B171+1) -> - | C172: =IF(B172="-","-",CALCULOS!$F$14+B172) -> - | D172: =IF(B172="-","-",D171*(1+CALCULOS!$C$27)) -> - | E172: =IF(B172="-","-",IF(B172=1,CALCULOS!$C$47,IF(MOD(B171,12)=0,E170*(1+CALCULOS!$C$28),E171))*IF(MOD(B172,12)=0,2,1)) -> - | F172: =IF(B172="-","-",F171*(1+CALCULOS!$C$27)+E172) -> - | G172: -
B173: =IF(OR(B172>=CALCULOS!$F$18,B172="-"),"-",B172+1) -> - | C173: =IF(B173="-","-",CALCULOS!$F$14+B173) -> - | D173: =IF(B173="-","-",D172*(1+CALCULOS!$C$27)) -> - | E173: =IF(B173="-","-",IF(B173=1,CALCULOS!$C$47,IF(MOD(B172,12)=0,E171*(1+CALCULOS!$C$28),E172))*IF(MOD(B173,12)=0,2,1)) -> - | F173: =IF(B173="-","-",F172*(1+CALCULOS!$C$27)+E173) -> - | G173: -
B174: =IF(OR(B173>=CALCULOS!$F$18,B173="-"),"-",B173+1) -> - | C174: =IF(B174="-","-",CALCULOS!$F$14+B174) -> - | D174: =IF(B174="-","-",D173*(1+CALCULOS!$C$27)) -> - | E174: =IF(B174="-","-",IF(B174=1,CALCULOS!$C$47,IF(MOD(B173,12)=0,E172*(1+CALCULOS!$C$28),E173))*IF(MOD(B174,12)=0,2,1)) -> - | F174: =IF(B174="-","-",F173*(1+CALCULOS!$C$27)+E174) -> - | G174: -
B175: =IF(OR(B174>=CALCULOS!$F$18,B174="-"),"-",B174+1) -> - | C175: =IF(B175="-","-",CALCULOS!$F$14+B175) -> - | D175: =IF(B175="-","-",D174*(1+CALCULOS!$C$27)) -> - | E175: =IF(B175="-","-",IF(B175=1,CALCULOS!$C$47,IF(MOD(B174,12)=0,E173*(1+CALCULOS!$C$28),E174))*IF(MOD(B175,12)=0,2,1)) -> - | F175: =IF(B175="-","-",F174*(1+CALCULOS!$C$27)+E175) -> - | G175: -
B176: =IF(OR(B175>=CALCULOS!$F$18,B175="-"),"-",B175+1) -> - | C176: =IF(B176="-","-",CALCULOS!$F$14+B176) -> - | D176: =IF(B176="-","-",D175*(1+CALCULOS!$C$27)) -> - | E176: =IF(B176="-","-",IF(B176=1,CALCULOS!$C$47,IF(MOD(B175,12)=0,E174*(1+CALCULOS!$C$28),E175))*IF(MOD(B176,12)=0,2,1)) -> - | F176: =IF(B176="-","-",F175*(1+CALCULOS!$C$27)+E176) -> - | G176: -
B177: =IF(OR(B176>=CALCULOS!$F$18,B176="-"),"-",B176+1) -> - | C177: =IF(B177="-","-",CALCULOS!$F$14+B177) -> - | D177: =IF(B177="-","-",D176*(1+CALCULOS!$C$27)) -> - | E177: =IF(B177="-","-",IF(B177=1,CALCULOS!$C$47,IF(MOD(B176,12)=0,E175*(1+CALCULOS!$C$28),E176))*IF(MOD(B177,12)=0,2,1)) -> - | F177: =IF(B177="-","-",F176*(1+CALCULOS!$C$27)+E177) -> - | G177: -
B178: =IF(OR(B177>=CALCULOS!$F$18,B177="-"),"-",B177+1) -> - | C178: =IF(B178="-","-",CALCULOS!$F$14+B178) -> - | D178: =IF(B178="-","-",D177*(1+CALCULOS!$C$27)) -> - | E178: =IF(B178="-","-",IF(B178=1,CALCULOS!$C$47,IF(MOD(B177,12)=0,E176*(1+CALCULOS!$C$28),E177))*IF(MOD(B178,12)=0,2,1)) -> - | F178: =IF(B178="-","-",F177*(1+CALCULOS!$C$27)+E178) -> - | G178: -
B179: =IF(OR(B178>=CALCULOS!$F$18,B178="-"),"-",B178+1) -> - | C179: =IF(B179="-","-",CALCULOS!$F$14+B179) -> - | D179: =IF(B179="-","-",D178*(1+CALCULOS!$C$27)) -> - | E179: =IF(B179="-","-",IF(B179=1,CALCULOS!$C$47,IF(MOD(B178,12)=0,E177*(1+CALCULOS!$C$28),E178))*IF(MOD(B179,12)=0,2,1)) -> - | F179: =IF(B179="-","-",F178*(1+CALCULOS!$C$27)+E179) -> - | G179: -
B180: =IF(OR(B179>=CALCULOS!$F$18,B179="-"),"-",B179+1) -> - | C180: =IF(B180="-","-",CALCULOS!$F$14+B180) -> - | D180: =IF(B180="-","-",D179*(1+CALCULOS!$C$27)) -> - | E180: =IF(B180="-","-",IF(B180=1,CALCULOS!$C$47,IF(MOD(B179,12)=0,E178*(1+CALCULOS!$C$28),E179))*IF(MOD(B180,12)=0,2,1)) -> - | F180: =IF(B180="-","-",F179*(1+CALCULOS!$C$27)+E180) -> - | G180: -
B181: =IF(OR(B180>=CALCULOS!$F$18,B180="-"),"-",B180+1) -> - | C181: =IF(B181="-","-",CALCULOS!$F$14+B181) -> - | D181: =IF(B181="-","-",D180*(1+CALCULOS!$C$27)) -> - | E181: =IF(B181="-","-",IF(B181=1,CALCULOS!$C$47,IF(MOD(B180,12)=0,E179*(1+CALCULOS!$C$28),E180))*IF(MOD(B181,12)=0,2,1)) -> - | F181: =IF(B181="-","-",F180*(1+CALCULOS!$C$27)+E181) -> - | G181: -
B182: =IF(OR(B181>=CALCULOS!$F$18,B181="-"),"-",B181+1) -> - | C182: =IF(B182="-","-",CALCULOS!$F$14+B182) -> - | D182: =IF(B182="-","-",D181*(1+CALCULOS!$C$27)) -> - | E182: =IF(B182="-","-",IF(B182=1,CALCULOS!$C$47,IF(MOD(B181,12)=0,E180*(1+CALCULOS!$C$28),E181))*IF(MOD(B182,12)=0,2,1)) -> - | F182: =IF(B182="-","-",F181*(1+CALCULOS!$C$27)+E182) -> - | G182: -
B183: =IF(OR(B182>=CALCULOS!$F$18,B182="-"),"-",B182+1) -> - | C183: =IF(B183="-","-",CALCULOS!$F$14+B183) -> - | D183: =IF(B183="-","-",D182*(1+CALCULOS!$C$27)) -> - | E183: =IF(B183="-","-",IF(B183=1,CALCULOS!$C$47,IF(MOD(B182,12)=0,E181*(1+CALCULOS!$C$28),E182))*IF(MOD(B183,12)=0,2,1)) -> - | F183: =IF(B183="-","-",F182*(1+CALCULOS!$C$27)+E183) -> - | G183: -
B184: =IF(OR(B183>=CALCULOS!$F$18,B183="-"),"-",B183+1) -> - | C184: =IF(B184="-","-",CALCULOS!$F$14+B184) -> - | D184: =IF(B184="-","-",D183*(1+CALCULOS!$C$27)) -> - | E184: =IF(B184="-","-",IF(B184=1,CALCULOS!$C$47,IF(MOD(B183,12)=0,E182*(1+CALCULOS!$C$28),E183))*IF(MOD(B184,12)=0,2,1)) -> - | F184: =IF(B184="-","-",F183*(1+CALCULOS!$C$27)+E184) -> - | G184: -
B185: =IF(OR(B184>=CALCULOS!$F$18,B184="-"),"-",B184+1) -> - | C185: =IF(B185="-","-",CALCULOS!$F$14+B185) -> - | D185: =IF(B185="-","-",D184*(1+CALCULOS!$C$27)) -> - | E185: =IF(B185="-","-",IF(B185=1,CALCULOS!$C$47,IF(MOD(B184,12)=0,E183*(1+CALCULOS!$C$28),E184))*IF(MOD(B185,12)=0,2,1)) -> - | F185: =IF(B185="-","-",F184*(1+CALCULOS!$C$27)+E185) -> - | G185: -
B186: =IF(OR(B185>=CALCULOS!$F$18,B185="-"),"-",B185+1) -> - | C186: =IF(B186="-","-",CALCULOS!$F$14+B186) -> - | D186: =IF(B186="-","-",D185*(1+CALCULOS!$C$27)) -> - | E186: =IF(B186="-","-",IF(B186=1,CALCULOS!$C$47,IF(MOD(B185,12)=0,E184*(1+CALCULOS!$C$28),E185))*IF(MOD(B186,12)=0,2,1)) -> - | F186: =IF(B186="-","-",F185*(1+CALCULOS!$C$27)+E186) -> - | G186: -
B187: =IF(OR(B186>=CALCULOS!$F$18,B186="-"),"-",B186+1) -> - | C187: =IF(B187="-","-",CALCULOS!$F$14+B187) -> - | D187: =IF(B187="-","-",D186*(1+CALCULOS!$C$27)) -> - | E187: =IF(B187="-","-",IF(B187=1,CALCULOS!$C$47,IF(MOD(B186,12)=0,E185*(1+CALCULOS!$C$28),E186))*IF(MOD(B187,12)=0,2,1)) -> - | F187: =IF(B187="-","-",F186*(1+CALCULOS!$C$27)+E187) -> - | G187: -
B188: =IF(OR(B187>=CALCULOS!$F$18,B187="-"),"-",B187+1) -> - | C188: =IF(B188="-","-",CALCULOS!$F$14+B188) -> - | D188: =IF(B188="-","-",D187*(1+CALCULOS!$C$27)) -> - | E188: =IF(B188="-","-",IF(B188=1,CALCULOS!$C$47,IF(MOD(B187,12)=0,E186*(1+CALCULOS!$C$28),E187))*IF(MOD(B188,12)=0,2,1)) -> - | F188: =IF(B188="-","-",F187*(1+CALCULOS!$C$27)+E188) -> - | G188: -
B189: =IF(OR(B188>=CALCULOS!$F$18,B188="-"),"-",B188+1) -> - | C189: =IF(B189="-","-",CALCULOS!$F$14+B189) -> - | D189: =IF(B189="-","-",D188*(1+CALCULOS!$C$27)) -> - | E189: =IF(B189="-","-",IF(B189=1,CALCULOS!$C$47,IF(MOD(B188,12)=0,E187*(1+CALCULOS!$C$28),E188))*IF(MOD(B189,12)=0,2,1)) -> - | F189: =IF(B189="-","-",F188*(1+CALCULOS!$C$27)+E189) -> - | G189: -
B190: =IF(OR(B189>=CALCULOS!$F$18,B189="-"),"-",B189+1) -> - | C190: =IF(B190="-","-",CALCULOS!$F$14+B190) -> - | D190: =IF(B190="-","-",D189*(1+CALCULOS!$C$27)) -> - | E190: =IF(B190="-","-",IF(B190=1,CALCULOS!$C$47,IF(MOD(B189,12)=0,E188*(1+CALCULOS!$C$28),E189))*IF(MOD(B190,12)=0,2,1)) -> - | F190: =IF(B190="-","-",F189*(1+CALCULOS!$C$27)+E190) -> - | G190: -
B191: =IF(OR(B190>=CALCULOS!$F$18,B190="-"),"-",B190+1) -> - | C191: =IF(B191="-","-",CALCULOS!$F$14+B191) -> - | D191: =IF(B191="-","-",D190*(1+CALCULOS!$C$27)) -> - | E191: =IF(B191="-","-",IF(B191=1,CALCULOS!$C$47,IF(MOD(B190,12)=0,E189*(1+CALCULOS!$C$28),E190))*IF(MOD(B191,12)=0,2,1)) -> - | F191: =IF(B191="-","-",F190*(1+CALCULOS!$C$27)+E191) -> - | G191: -
B192: =IF(OR(B191>=CALCULOS!$F$18,B191="-"),"-",B191+1) -> - | C192: =IF(B192="-","-",CALCULOS!$F$14+B192) -> - | D192: =IF(B192="-","-",D191*(1+CALCULOS!$C$27)) -> - | E192: =IF(B192="-","-",IF(B192=1,CALCULOS!$C$47,IF(MOD(B191,12)=0,E190*(1+CALCULOS!$C$28),E191))*IF(MOD(B192,12)=0,2,1)) -> - | F192: =IF(B192="-","-",F191*(1+CALCULOS!$C$27)+E192) -> - | G192: -
B193: =IF(OR(B192>=CALCULOS!$F$18,B192="-"),"-",B192+1) -> - | C193: =IF(B193="-","-",CALCULOS!$F$14+B193) -> - | D193: =IF(B193="-","-",D192*(1+CALCULOS!$C$27)) -> - | E193: =IF(B193="-","-",IF(B193=1,CALCULOS!$C$47,IF(MOD(B192,12)=0,E191*(1+CALCULOS!$C$28),E192))*IF(MOD(B193,12)=0,2,1)) -> - | F193: =IF(B193="-","-",F192*(1+CALCULOS!$C$27)+E193) -> - | G193: -
B194: =IF(OR(B193>=CALCULOS!$F$18,B193="-"),"-",B193+1) -> - | C194: =IF(B194="-","-",CALCULOS!$F$14+B194) -> - | D194: =IF(B194="-","-",D193*(1+CALCULOS!$C$27)) -> - | E194: =IF(B194="-","-",IF(B194=1,CALCULOS!$C$47,IF(MOD(B193,12)=0,E192*(1+CALCULOS!$C$28),E193))*IF(MOD(B194,12)=0,2,1)) -> - | F194: =IF(B194="-","-",F193*(1+CALCULOS!$C$27)+E194) -> - | G194: -
B195: =IF(OR(B194>=CALCULOS!$F$18,B194="-"),"-",B194+1) -> - | C195: =IF(B195="-","-",CALCULOS!$F$14+B195) -> - | D195: =IF(B195="-","-",D194*(1+CALCULOS!$C$27)) -> - | E195: =IF(B195="-","-",IF(B195=1,CALCULOS!$C$47,IF(MOD(B194,12)=0,E193*(1+CALCULOS!$C$28),E194))*IF(MOD(B195,12)=0,2,1)) -> - | F195: =IF(B195="-","-",F194*(1+CALCULOS!$C$27)+E195) -> - | G195: -
B196: =IF(OR(B195>=CALCULOS!$F$18,B195="-"),"-",B195+1) -> - | C196: =IF(B196="-","-",CALCULOS!$F$14+B196) -> - | D196: =IF(B196="-","-",D195*(1+CALCULOS!$C$27)) -> - | E196: =IF(B196="-","-",IF(B196=1,CALCULOS!$C$47,IF(MOD(B195,12)=0,E194*(1+CALCULOS!$C$28),E195))*IF(MOD(B196,12)=0,2,1)) -> - | F196: =IF(B196="-","-",F195*(1+CALCULOS!$C$27)+E196) -> - | G196: -
B197: =IF(OR(B196>=CALCULOS!$F$18,B196="-"),"-",B196+1) -> - | C197: =IF(B197="-","-",CALCULOS!$F$14+B197) -> - | D197: =IF(B197="-","-",D196*(1+CALCULOS!$C$27)) -> - | E197: =IF(B197="-","-",IF(B197=1,CALCULOS!$C$47,IF(MOD(B196,12)=0,E195*(1+CALCULOS!$C$28),E196))*IF(MOD(B197,12)=0,2,1)) -> - | F197: =IF(B197="-","-",F196*(1+CALCULOS!$C$27)+E197) -> - | G197: -
B198: =IF(OR(B197>=CALCULOS!$F$18,B197="-"),"-",B197+1) -> - | C198: =IF(B198="-","-",CALCULOS!$F$14+B198) -> - | D198: =IF(B198="-","-",D197*(1+CALCULOS!$C$27)) -> - | E198: =IF(B198="-","-",IF(B198=1,CALCULOS!$C$47,IF(MOD(B197,12)=0,E196*(1+CALCULOS!$C$28),E197))*IF(MOD(B198,12)=0,2,1)) -> - | F198: =IF(B198="-","-",F197*(1+CALCULOS!$C$27)+E198) -> - | G198: -
B199: =IF(OR(B198>=CALCULOS!$F$18,B198="-"),"-",B198+1) -> - | C199: =IF(B199="-","-",CALCULOS!$F$14+B199) -> - | D199: =IF(B199="-","-",D198*(1+CALCULOS!$C$27)) -> - | E199: =IF(B199="-","-",IF(B199=1,CALCULOS!$C$47,IF(MOD(B198,12)=0,E197*(1+CALCULOS!$C$28),E198))*IF(MOD(B199,12)=0,2,1)) -> - | F199: =IF(B199="-","-",F198*(1+CALCULOS!$C$27)+E199) -> - | G199: -
B200: =IF(OR(B199>=CALCULOS!$F$18,B199="-"),"-",B199+1) -> - | C200: =IF(B200="-","-",CALCULOS!$F$14+B200) -> - | D200: =IF(B200="-","-",D199*(1+CALCULOS!$C$27)) -> - | E200: =IF(B200="-","-",IF(B200=1,CALCULOS!$C$47,IF(MOD(B199,12)=0,E198*(1+CALCULOS!$C$28),E199))*IF(MOD(B200,12)=0,2,1)) -> - | F200: =IF(B200="-","-",F199*(1+CALCULOS!$C$27)+E200) -> - | G200: -
B201: =IF(OR(B200>=CALCULOS!$F$18,B200="-"),"-",B200+1) -> - | C201: =IF(B201="-","-",CALCULOS!$F$14+B201) -> - | D201: =IF(B201="-","-",D200*(1+CALCULOS!$C$27)) -> - | E201: =IF(B201="-","-",IF(B201=1,CALCULOS!$C$47,IF(MOD(B200,12)=0,E199*(1+CALCULOS!$C$28),E200))*IF(MOD(B201,12)=0,2,1)) -> - | F201: =IF(B201="-","-",F200*(1+CALCULOS!$C$27)+E201) -> - | G201: -
B202: =IF(OR(B201>=CALCULOS!$F$18,B201="-"),"-",B201+1) -> - | C202: =IF(B202="-","-",CALCULOS!$F$14+B202) -> - | D202: =IF(B202="-","-",D201*(1+CALCULOS!$C$27)) -> - | E202: =IF(B202="-","-",IF(B202=1,CALCULOS!$C$47,IF(MOD(B201,12)=0,E200*(1+CALCULOS!$C$28),E201))*IF(MOD(B202,12)=0,2,1)) -> - | F202: =IF(B202="-","-",F201*(1+CALCULOS!$C$27)+E202) -> - | G202: -
B203: =IF(OR(B202>=CALCULOS!$F$18,B202="-"),"-",B202+1) -> - | C203: =IF(B203="-","-",CALCULOS!$F$14+B203) -> - | D203: =IF(B203="-","-",D202*(1+CALCULOS!$C$27)) -> - | E203: =IF(B203="-","-",IF(B203=1,CALCULOS!$C$47,IF(MOD(B202,12)=0,E201*(1+CALCULOS!$C$28),E202))*IF(MOD(B203,12)=0,2,1)) -> - | F203: =IF(B203="-","-",F202*(1+CALCULOS!$C$27)+E203) -> - | G203: -
... 397 more rows

Sheet SIMULAÇÃO Prazo Determinado (hidden)
B12: Data de Simulação | D12: =INPUT!C6 -> 2024-08-27
B14: Nome do Participante / Matrícula | D14: =INPUT!C8 -> [ inserir seu nome ]
B15: Sexo | D15: =INPUT!C9 -> 0
B16: Data de Nascimento | D16: =INPUT!C10 -> 00:00:00
B17: Data da Admissão na Patrocinadora | D17: =INPUT!$C$11 -> 00:00:00
B18: Data de Inscrição no Plano | D18: =INPUT!$C$12 -> 00:00:00
B19: Possuiu Dependente | D19: =INPUT!$C$13 -> 00:00:00
B21: Salário de Contribuição | D21: =INPUT!C17 -> 0
B22: Saldo de Conta Total | D22: =INPUT!C18 -> 0
B23: Saldo da Conta de Recursos Portados | D23: =INPUT!C19 -> 0
B24: Contribuição Adicional | D24: =INPUT!C20 -> 0
B26: Idade mínima (elegibilidade para Aposentadoria) | D26: =INPUT!C22 -> 55
B27: Idade Desejada para Aposentadoria | D27: =INPUT!C23 -> 0
B28: Tipo de Renda escolhida | D28: =INPUT!C24 -> 00:00:00
B29: Resgate Parcial em Parcela Única | D29: =INPUT!C25 -> 0
B30: Quantidade de Parcelas a Receber ao ano | D30: =INPUT!C26 -> 0
B34: Resultados
B36: Aposentadoria e Saldo Acumulado
B38: =UPPER(IF(AND(CALCULOS!$C$18=0,CALCULOS!$D$18=0,CALCULOS!$E$18=0),"Você já pode se aposentar!","Você vai se aposentar em "&IF(CALCULOS!$C$18>0,CALCULOS!$C$18&" ano"&IF(CALCULOS!$C$18>1,"s","")&IF(AND(CALCULOS!$D$18>0,CALCULOS!$E$18>0),", ",IF(OR(AND(CALCULOS!$D$18>0,CALCULOS!$E$18=0),AND(CALCULOS!$D$18=0,CALCULOS!$E$18>0))," e ","")),"")&IF(CALCULOS!$D$18>0,CALCULOS!$D$18&" mese"&IF(CALCULOS!$D$18>1,"s","")&IF(CALCULOS!$E$18>0," e ",""),"")&IF(CALCULOS!$E$18>0,CALCULOS!$E$18&" dia"&IF(CALCULOS!$E$18>1,"s","")&"","")&"!")) -> VOCÊ JÁ PODE SE APOSENTAR!
B41: Data de Aposentadoria estimada | D41: =CALC_dt_apo -> 00:00:00
B43: Saldos de Conta projetados na Aposentadoria
B45: Conta de Benefícios (TOTAL) | D45: =CALCULOS!C53 -> 0
B48: Renda Financeira de Aposentadoria
B50: ="Recebimento em Parcela Única ("&TEXT(IN_apo_percContaBenef_parcUnica,"0,00%")&")" -> Recebimento em Parcela Única (0,00%) | D50: =D45*IN_apo_percContaBenef_parcUnica -> 0
B52: Renda por Prazo Certo
B54: Opção de Prazo | D54: Renda Mensal Inicial
B55: =CALCULOS!B67 -> 10 anos | D55: =CALCULOS!C67 -> 0
D58: ="OBS: O valor do benefício mínimo equivale a 10% da URD (R$"&TEXT(DESBAN!$D$38,"000,00")&"), caso venha a ser inferior à esse valor, o saldo remanescente será pago à vista e em parcela única." -> OBS: O valor do benefício mínimo equivale a 10% da URD (R$753,12), caso venha a ser inferior à esse valor, o saldo remanescente será pago à vista e em parcela única.
B91: Veja, abaixo, todas possibilidades de prazo que podem ser escolhidas:
B93: Prazo | C93: Renda Mensal Inicial
B94: =CALCULOS!B68&" anos" -> 5 anos | C94: =CALCULOS!C68 -> 0
B95: =CALCULOS!B69&" anos" -> 6 anos | C95: =CALCULOS!C69 -> 0
B96: =CALCULOS!B70&" anos" -> 7 anos | C96: =CALCULOS!C70 -> 0
B97: =CALCULOS!B71&" anos" -> 8 anos | C97: =CALCULOS!C71 -> 0
B98: =CALCULOS!B72&" anos" -> 9 anos | C98: =CALCULOS!C72 -> 0
B99: =CALCULOS!B73&" anos" -> 10 anos | C99: =CALCULOS!C73 -> 0
B100: =CALCULOS!B74&" anos" -> 11 anos | C100: =CALCULOS!C74 -> 0
B101: =CALCULOS!B75&" anos" -> 12 anos | C101: =CALCULOS!C75 -> 0
B102: =CALCULOS!B76&" anos" -> 13 anos | C102: =CALCULOS!C76 -> 0
B103: =CALCULOS!B77&" anos" -> 14 anos | C103: =CALCULOS!C77 -> 0
B104: =CALCULOS!B78&" anos" -> 15 anos | C104: =CALCULOS!C78 -> 0
B105: =CALCULOS!B79&" anos" -> 16 anos | C105: =CALCULOS!C79 -> 0
B106: =CALCULOS!B80&" anos" -> 17 anos | C106: =CALCULOS!C80 -> 0
B107: =CALCULOS!B81&" anos" -> 18 anos | C107: =CALCULOS!C81 -> 0
B108: =CALCULOS!B82&" anos" -> 19 anos | C108: =CALCULOS!C82 -> 0
B109: =CALCULOS!B83&" anos" -> 20 anos | C109: =CALCULOS!C83 -> 0
B110: =CALCULOS!B84&" anos" -> 21 anos | C110: =CALCULOS!C84 -> 0
B111: =CALCULOS!B85&" anos" -> 22 anos | C111: =CALCULOS!C85 -> 0
B112: =CALCULOS!B86&" anos" -> 23 anos | C112: =CALCULOS!C86 -> 0
B113: =CALCULOS!B87&" anos" -> 24 anos | C113: =CALCULOS!C87 -> 0
B114: =CALCULOS!B88&" anos" -> 25 anos | C114: =CALCULOS!C88 -> 0
B115: =CALCULOS!B89&" anos" -> 26 anos | C115: =CALCULOS!C89 -> 0
B116: =CALCULOS!B90&" anos" -> 27 anos | C116: =CALCULOS!C90 -> 0
B117: =CALCULOS!B91&" anos" -> 28 anos | C117: =CALCULOS!C91 -> 0
B118: =CALCULOS!B92&" anos" -> 29 anos | C118: =CALCULOS!C92 -> 0
B119: =CALCULOS!B93&" anos" -> 30 anos | C119: =CALCULOS!C93 -> 0
B121: Informações Importantes
B123: Os resultados constantes neste simulador não asseguram os saldos de conta projetados e rendas estimadas, pois os valores apresentados correspondem a projeções de resultados do Plano, considerando premissas e critérios previamente definidos. O recebimento das rendas de aposentadoria é condicionado ao encerramento do vínculo empregatício do Participante com a sua Patrocinadora, assim como para recebimento do Resgate e demais Institutos. A rentabilidade real dos investimentos dependerá dos resultados obtidos ao longo dos próximos anos. Portanto, as importâncias apresentadas neste simulador constituem apenas uma simulação e não têm validade legal. O propósito do simulador é de promover a conscientização da importância do planejamento previdenciário e da formação de poupança, além de servir como uma ferramenta de projeção considerando diferentes cenários (rentabilidade, percentuais contributivos, etc.).
B133: ="A taxa de rentabilidade do plano considerada para os cálculos foi de "&TEXT(DESBAN!$C$33*100,"0,00")&"% ao ano." -> A taxa de rentabilidade do plano considerada para os cálculos foi de 4,38% ao ano.
B135: Versão: 5.2 (2023)
B136: Desenvolvido por:

Sheet SIMULAÇÃO Prazo Indeterminado (hidden)
B12: Data de Simulação | D12: =INPUT!C6 -> 2024-08-27
B14: Nome do Participante / Matrícula | D14: =INPUT!C8 -> [ inserir seu nome ]
B15: Sexo | D15: =INPUT!C9 -> 0
B16: Data de Nascimento | D16: =INPUT!C10 -> 00:00:00
B17: Data da Admissão na Patrocinadora | D17: =INPUT!$C$11 -> 00:00:00
B18: Data de Inscrição no Plano | D18: =INPUT!$C$12 -> 00:00:00
B19: Possuiu Dependente | D19: =INPUT!$C$13 -> 00:00:00
B21: Salário de Contribuição | D21: =INPUT!C17 -> 0
B22: Saldo de Conta Total | D22: =INPUT!C18 -> 0
B23: Saldo da Conta de Recursos Portados | D23: =INPUT!C19 -> 0
B24: Contribuição Adicional | D24: =INPUT!C20 -> 0
B26: Idade mínima (elegibilidade para Aposentadoria) | D26: =INPUT!C22 -> 55
B27: Idade Desejada para Aposentadoria | D27: =INPUT!C23 -> 0
B28: Tipo de Renda escolhida | D28: =INPUT!C24 -> 00:00:00
B29: Resgate Parcial em Parcela Única | D29: =INPUT!C25 -> 0
B30: Quantidade de Parcelas a Receber ao ano | D30: =INPUT!C26 -> 0
B34: Resultados
B36: Aposentadoria e Saldo Acumulado
B38: =UPPER(IF(AND(CALCULOS!$C$18=0,CALCULOS!$D$18=0,CALCULOS!$E$18=0),"Você já pode se aposentar!","Você vai se aposentar em "&IF(CALCULOS!$C$18>0,CALCULOS!$C$18&" ano"&IF(CALCULOS!$C$18>1,"s","")&IF(AND(CALCULOS!$D$18>0,CALCULOS!$E$18>0),", ",IF(OR(AND(CALCULOS!$D$18>0,CALCULOS!$E$18=0),AND(CALCULOS!$D$18=0,CALCULOS!$E$18>0))," e ","")),"")&IF(CALCULOS!$D$18>0,CALCULOS!$D$18&" mese"&IF(CALCULOS!$D$18>1,"s","")&IF(CALCULOS!$E$18>0," e ",""),"")&IF(CALCULOS!$E$18>0,CALCULOS!$E$18&" dia"&IF(CALCULOS!$E$18>1,"s","")&"","")&"!")) -> VOCÊ JÁ PODE SE APOSENTAR!
B41: Data de Aposentadoria estimada | D41: =CALC_dt_apo -> 00:00:00
B43: Saldos de Conta projetados na Aposentadoria
B45: Conta de Benefícios (TOTAL) | D45: =CALCULOS!C53 -> 0
B48: Renda Financeira de Aposentadoria
B50: ="Recebimento em Parcela Única ("&TEXT(IN_apo_percContaBenef_parcUnica,"0,00%")&")" -> Recebimento em Parcela Única (0,00%) | D50: =D45*IN_apo_percContaBenef_parcUnica -> 0
B52: Renda por Prazo Indeterminado
B54: Tipo | D54: Renda Mensal Inicial
B55: =IF(INPUT!C13="Não",CALCULOS!B132,CALCULOS!B133) -> Aposentadoria com reversão em Pensão | D55: =IF(INPUT!C13="Não",CALCULOS!C132,CALCULOS!C133) -> 0
E58: ="OBS: O valor do benefício mínimo equivale a 10% da URD (R$"&TEXT(DESBAN!$D$38,"000,00")&"), caso venha a ser inferior à esse valor, o saldo remanescente será pago à vista e em parcela única." -> OBS: O valor do benefício mínimo equivale a 10% da URD (R$753,12), caso venha a ser inferior à esse valor, o saldo remanescente será pago à vista e em parcela única.
B67: Informações Importantes
B69: Os resultados constantes neste simulador não asseguram os saldos de conta projetados e rendas estimadas, pois os valores apresentados correspondem a projeções de resultados do Plano, considerando premissas e critérios previamente definidos. O recebimento das rendas de aposentadoria é condicionado ao encerramento do vínculo empregatício do Participante com a sua Patrocinadora, assim como para recebimento do Resgate e demais Institutos. A rentabilidade real dos investimentos dependerá dos resultados obtidos ao longo dos próximos anos. Portanto, as importâncias apresentadas neste simulador constituem apenas uma simulação e não têm validade legal. O propósito do simulador é de promover a conscientização da importância do planejamento previdenciário e da formação de poupança, além de servir como uma ferramenta de projeção considerando diferentes cenários (rentabilidade, percentuais contributivos, etc.).
B79: ="A taxa de rentabilidade do plano considerada para os cálculos foi de "&TEXT(DESBAN!$C$33*100,"0,00")&"% ao ano." -> A taxa de rentabilidade do plano considerada para os cálculos foi de 4,38% ao ano.
B82: Versão: 5.2 (2023)
B83: Desenvolvido por:

Sheet SIMULAÇÃO Percentual do Saldo (hidden)
B12: Data de Simulação | D12: =INPUT!C6 -> 2024-08-27
B14: Nome do Participante / Matrícula | D14: =INPUT!C8 -> [ inserir seu nome ]
B15: Sexo | D15: =INPUT!C9 -> 0
B16: Data de Nascimento | D16: =INPUT!C10 -> 00:00:00
B17: Data da Admissão na Patrocinadora | D17: =INPUT!$C$11 -> 00:00:00
B18: Data de Inscrição no Plano | D18: =INPUT!$C$12 -> 00:00:00
B19: Possuiu Dependente | D19: =INPUT!$C$13 -> 00:00:00
B21: Salário de Contribuição | D21: =INPUT!C17 -> 0
B22: Saldo de Conta Total | D22: =INPUT!C18 -> 0
B23: Saldo da Conta de Recursos Portados | D23: =INPUT!C19 -> 0
B24: Contribuição Adicional | D24: =INPUT!C20 -> 0
B26: Idade mínima (elegibilidade para Aposentadoria) | D26: =INPUT!C22 -> 55
B27: Idade Desejada para Aposentadoria | D27: =INPUT!C23 -> 0
B28: Tipo de Renda escolhida | D28: =INPUT!C24 -> 00:00:00
B29: Resgate Parcial em Parcela Única | D29: =INPUT!C25 -> 0
B30: Quantidade de Parcelas a Receber ao ano | D30: =INPUT!C26 -> 0
B34: Resultados
B36: Aposentadoria e Saldo Acumulado
B38: =UPPER(IF(AND(CALCULOS!$C$18=0,CALCULOS!$D$18=0,CALCULOS!$E$18=0),"Você já pode se aposentar!","Você vai se aposentar em "&IF(CALCULOS!$C$18>0,CALCULOS!$C$18&" ano"&IF(CALCULOS!$C$18>1,"s","")&IF(AND(CALCULOS!$D$18>0,CALCULOS!$E$18>0),", ",IF(OR(AND(CALCULOS!$D$18>0,CALCULOS!$E$18=0),AND(CALCULOS!$D$18=0,CALCULOS!$E$18>0))," e ","")),"")&IF(CALCULOS!$D$18>0,CALCULOS!$D$18&" mese"&IF(CALCULOS!$D$18>1,"s","")&IF(CALCULOS!$E$18>0," e ",""),"")&IF(CALCULOS!$E$18>0,CALCULOS!$E$18&" dia"&IF(CALCULOS!$E$18>1,"s","")&"","")&"!")) -> VOCÊ JÁ PODE SE APOSENTAR!
B41: Data de Aposentadoria estimada | D41: =CALC_dt_apo -> 00:00:00
B43: Saldos de Conta projetados na Aposentadoria
B45: Conta de Benefícios (TOTAL) | D45: =CALCULOS!C53 -> 0
B48: Renda Financeira de Aposentadoria
B50: ="Recebimento em Parcela Única ("&TEXT(IN_apo_percContaBenef_parcUnica,"0,00%")&")" -> Recebimento em Parcela Única (0,00%) | D50: =D45*IN_apo_percContaBenef_parcUnica -> 0
B52: Renda por Percentual do Saldo da Conta de Benefícios
B54: Opção de Renda | C54: Renda Mensal Inicial | D54: Renda após 5 anos | E54: Renda após 15 anos
B55: =CALCULOS!B99 -> 0,25% | C55: =CALCULOS!C99 -> 0 | D55: =CALCULOS!F99 -> 0 | E55: =CALCULOS!H99 -> 0
D57: ="OBS: O valor do benefício mínimo equivale a 10% da URD (R$"&TEXT(DESBAN!$D$38,"000,00")&"), caso venha a ser inferior à esse valor, o saldo remanescente será pago à vista e em parcela única." -> OBS: O valor do benefício mínimo equivale a 10% da URD (R$753,12), caso venha a ser inferior à esse valor, o saldo remanescente será pago à vista e em parcela única.
B90: Veja, abaixo, todas possibilidades de percentual que podem ser escolhidas:
B92: Percentual escolhido | C92: Renda Mensal Inicial | D92: Renda após 5 anos | E92: Renda após 15 anos
B93: =CALCULOS!B100 -> 0.001 | C93: =CALCULOS!C100 -> 0 | D93: =CALCULOS!F100 -> 0 | E93: =CALCULOS!H100 -> 0
B94: =CALCULOS!B101 -> 0.0015 | C94: =CALCULOS!C101 -> 0 | D94: =CALCULOS!F101 -> 0 | E94: =CALCULOS!H101 -> 0
B95: =CALCULOS!B102 -> 0.002 | C95: =CALCULOS!C102 -> 0 | D95: =CALCULOS!F102 -> 0 | E95: =CALCULOS!H102 -> 0
B96: =CALCULOS!B103 -> 0.0025 | C96: =CALCULOS!C103 -> 0 | D96: =CALCULOS!F103 -> 0 | E96: =CALCULOS!H103 -> 0
B97: =CALCULOS!B104 -> 0.003 | C97: =CALCULOS!C104 -> 0 | D97: =CALCULOS!F104 -> 0 | E97: =CALCULOS!H104 -> 0
B98: =CALCULOS!B105 -> 0.0035 | C98: =CALCULOS!C105 -> 0 | D98: =CALCULOS!F105 -> 0 | E98: =CALCULOS!H105 -> 0
B99: =CALCULOS!B106 -> 0.004 | C99: =CALCULOS!C106 -> 0 | D99: =CALCULOS!F106 -> 0 | E99: =CALCULOS!H106 -> 0
B100: =CALCULOS!B107 -> 0.0045 | C100: =CALCULOS!C107 -> 0 | D100: =CALCULOS!F107 -> 0 | E100: =CALCULOS!H107 -> 0
B101: =CALCULOS!B108 -> 0.005 | C101: =CALCULOS!C108 -> 0 | D101: =CALCULOS!F108 -> 0 | E101: =CALCULOS!H108 -> 0
B102: =CALCULOS!B109 -> 0.0055 | C102: =CALCULOS!C109 -> 0 | D102: =CALCULOS!F109 -> 0 | E102: =CALCULOS!H109 -> 0
B103: =CALCULOS!B110 -> 0.006 | C103: =CALCULOS!C110 -> 0 | D103: =CALCULOS!F110 -> 0 | E103: =CALCULOS!H110 -> 0
B104: =CALCULOS!B111 -> 0.0065 | C104: =CALCULOS!C111 -> 0 | D104: =CALCULOS!F111 -> 0 | E104: =CALCULOS!H111 -> 0
B105: =CALCULOS!B112 -> 0.007 | C105: =CALCULOS!C112 -> 0 | D105: =CALCULOS!F112 -> 0 | E105: =CALCULOS!H112 -> 0
B106: =CALCULOS!B113 -> 0.0075 | C106: =CALCULOS!C113 -> 0 | D106: =CALCULOS!F113 -> 0 | E106: =CALCULOS!H113 -> 0
B107: =CALCULOS!B114 -> 0.008 | C107: =CALCULOS!C114 -> 0 | D107: =CALCULOS!F114 -> 0 | E107: =CALCULOS!H114 -> 0
B108: =CALCULOS!B115 -> 0.0085 | C108: =CALCULOS!C115 -> 0 | D108: =CALCULOS!F115 -> 0 | E108: =CALCULOS!H115 -> 0
B109: =CALCULOS!B116 -> 0.009 | C109: =CALCULOS!C116 -> 0 | D109: =CALCULOS!F116 -> 0 | E109: =CALCULOS!H116 -> 0
B110: =CALCULOS!B117 -> 0.0095 | C110: =CALCULOS!C117 -> 0 | D110: =CALCULOS!F117 -> 0 | E110: =CALCULOS!H117 -> 0
B111: =CALCULOS!B118 -> 0.01 | C111: =CALCULOS!C118 -> 0 | D111: =CALCULOS!F118 -> 0 | E111: =CALCULOS!H118 -> 0
B112: =CALCULOS!B119 -> 0.0105 | C112: =CALCULOS!C119 -> 0 | D112: =CALCULOS!F119 -> 0 | E112: =CALCULOS!H119 -> 0
B113: =CALCULOS!B120 -> 0.011 | C113: =CALCULOS!C120 -> 0 | D113: =CALCULOS!F120 -> 0 | E113: =CALCULOS!H120 -> 0
B114: =CALCULOS!B121 -> 0.0115 | C114: =CALCULOS!C121 -> 0 | D114: =CALCULOS!F121 -> 0 | E114: =CALCULOS!H121 -> 0
B115: =CALCULOS!B122 -> 0.012 | C115: =CALCULOS!C122 -> 0 | D115: =CALCULOS!F122 -> 0 | E115: =CALCULOS!H122 -> 0
B116: =CALCULOS!B123 -> 0.0125 | C116: =CALCULOS!C123 -> 0 | D116: =CALCULOS!F123 -> 0 | E116: =CALCULOS!H123 -> 0
B117: =CALCULOS!B124 -> 0.013 | C117: =CALCULOS!C124 -> 0 | D117: =CALCULOS!F124 -> 0 | E117: =CALCULOS!H124 -> 0
B118: =CALCULOS!B125 -> 0.0135 | C118: =CALCULOS!C125 -> 0 | D118: =CALCULOS!F125 -> 0 | E118: =CALCULOS!H125 -> 0
B119: =CALCULOS!B126 -> 0.014 | C119: =CALCULOS!C126 -> 0 | D119: =CALCULOS!F126 -> 0 | E119: =CALCULOS!H126 -> 0
B120: =CALCULOS!B127 -> 0.0145 | C120: =CALCULOS!C127 -> 0 | D120: =CALCULOS!F127 -> 0 | E120: =CALCULOS!H127 -> 0
B121: =CALCULOS!B128 -> 0.015 | C121: =CALCULOS!C128 -> 0 | D121: =CALCULOS!F128 -> 0 | E121: =CALCULOS!H128 -> 0
B123: Informações Importantes
B125: Os resultados constantes neste simulador não asseguram os saldos de conta projetados e rendas estimadas, pois os valores apresentados correspondem a projeções de resultados do Plano, considerando premissas e critérios previamente definidos. O recebimento das rendas de aposentadoria é condicionado ao encerramento do vínculo empregatício do Participante com a sua Patrocinadora, assim como para recebimento do Resgate e demais Institutos. A rentabilidade real dos investimentos dependerá dos resultados obtidos ao longo dos próximos anos. Portanto, as importâncias apresentadas neste simulador constituem apenas uma simulação e não têm validade legal. O propósito do simulador é de promover a conscientização da importância do planejamento previdenciário e da formação de poupança, além de servir como uma ferramenta de projeção considerando diferentes cenários (rentabilidade, percentuais contributivos, etc.).
B134: ="A taxa de rentabilidade do plano considerada para os cálculos foi de "&TEXT(DESBAN!$C$33*100,"0,00")&"% ao ano." -> A taxa de rentabilidade do plano considerada para os cálculos foi de 4,38% ao ano.
B136: Versão: 5.2 (2023)
B137: Desenvolvido por:

Sheet SIMULAÇÃO Renda Vitalícia (hidden)
B12: Data de Simulação | D12: =INPUT!C6 -> 2024-08-27
B14: Nome do Participante / Matrícula | D14: =INPUT!C8 -> [ inserir seu nome ]
B15: Sexo | D15: =INPUT!C9 -> 0
B16: Data de Nascimento | D16: =INPUT!C10 -> 00:00:00
B17: Data da Admissão na Patrocinadora | D17: =INPUT!$C$11 -> 00:00:00
B18: Data de Inscrição no Plano | D18: =INPUT!$C$12 -> 00:00:00
B19: Possuiu Dependente | D19: =INPUT!$C$13 -> 00:00:00
B21: Salário de Contribuição | D21: =INPUT!C17 -> 0
B22: Saldo de Conta Total | D22: =INPUT!C18 -> 0
B23: Saldo da Conta de Recursos Portados | D23: =INPUT!C19 -> 0
B24: Contribuição Adicional | D24: =INPUT!C20 -> 0
B26: Idade mínima (elegibilidade para Aposentadoria) | D26: =INPUT!C22 -> 55
B27: Idade Desejada para Aposentadoria | D27: =INPUT!C23 -> 0
B28: Tipo de Renda escolhida | D28: =INPUT!C24 -> 00:00:00
B29: Resgate Parcial em Parcela Única | D29: =INPUT!C25 -> 0
B30: Quantidade de Parcelas a Receber ao ano | D30: =INPUT!C26 -> 0
B34: Resultados
B36: Aposentadoria e Saldo Acumulado
B38: =UPPER(IF(AND(CALCULOS!$C$18=0,CALCULOS!$D$18=0,CALCULOS!$E$18=0),"Você já pode se aposentar!","Você vai se aposentar em "&IF(CALCULOS!$C$18>0,CALCULOS!$C$18&" ano"&IF(CALCULOS!$C$18>1,"s","")&IF(AND(CALCULOS!$D$18>0,CALCULOS!$E$18>0),", ",IF(OR(AND(CALCULOS!$D$18>0,CALCULOS!$E$18=0),AND(CALCULOS!$D$18=0,CALCULOS!$E$18>0))," e ","")),"")&IF(CALCULOS!$D$18>0,CALCULOS!$D$18&" mese"&IF(CALCULOS!$D$18>1,"s","")&IF(CALCULOS!$E$18>0," e ",""),"")&IF(CALCULOS!$E$18>0,CALCULOS!$E$18&" dia"&IF(CALCULOS!$E$18>1,"s","")&"","")&"!")) -> VOCÊ JÁ PODE SE APOSENTAR!
B41: Data de Aposentadoria estimada | D41: =CALC_dt_apo -> 00:00:00
B43: Saldos de Conta projetados na Aposentadoria
B45: Conta de Benefícios (TOTAL) | D45: =CALCULOS!C53 -> 0
B48: Renda de Aposentadoria
B50: ="Recebimento em Parcela Única ("&TEXT(IN_apo_percContaBenef_parcUnica,"0,00%")&")" -> Recebimento em Parcela Única (0,00%) | D50: =D45*IN_apo_percContaBenef_parcUnica -> 0
B52: Renda Vitalícia
B54: Tipo | D54: Renda Mensal Inicial
B55: =IF(INPUT!C13="Não",CALCULOS!B166,CALCULOS!B167) -> Aposentadoria com reversão em Pensão | D55: =IF(INPUT!C13="Não",CALCULOS!C166,CALCULOS!C167) -> 0
E59: ="OBS: O valor do benefício mínimo equivale a 10% da URD (R$"&TEXT(DESBAN!$D$38,"000,00")&"), caso venha a ser inferior à esse valor, o saldo remanescente será pago à vista e em parcela única." -> OBS: O valor do benefício mínimo equivale a 10% da URD (R$753,12), caso venha a ser inferior à esse valor, o saldo remanescente será pago à vista e em parcela única.
B64: Informações Importantes
B66: Os resultados constantes neste simulador não asseguram os saldos de conta projetados e rendas estimadas, pois os valores apresentados correspondem a projeções de resultados do Plano, considerando premissas e critérios previamente definidos. O recebimento das rendas de aposentadoria é condicionado ao encerramento do vínculo empregatício do Participante com a sua Patrocinadora, assim como para recebimento do Resgate e demais Institutos. A rentabilidade real dos investimentos dependerá dos resultados obtidos ao longo dos próximos anos. Portanto, as importâncias apresentadas neste simulador constituem apenas uma simulação e não têm validade legal. O propósito do simulador é de promover a conscientização da importância do planejamento previdenciário e da formação de poupança, além de servir como uma ferramenta de projeção considerando diferentes cenários (rentabilidade, percentuais contributivos, etc.).
B78: ="A taxa de rentabilidade do plano considerada para os cálculos foi de "&TEXT(DESBAN!$C$33*100,"0,00")&"% ao ano." -> A taxa de rentabilidade do plano considerada para os cálculos foi de 4,38% ao ano.
B81: Versão: 5.2 (2023)
B82: Desenvolvido por:

Sheet CALCULOS (hidden)
B2: Cálculos
B4: Idade mínima | C4: =PAR_Idade_Apo_Antecipada -> 55 | G4: Check tempo mín. plano
B5: Tempo mínimo Plano | C5: =PAR_carencia_plano -> 10 | F5: data aposentadoria | G5: =DATE(YEAR(IN_dtNasc)+INPUT!C23,MONTH(IN_dtNasc),DAY(IN_dtNasc)) -> 00:00:00
F6: data insc. Plano | G6: =IN_dtINSC -> 00:00:00
B7: Idade aposentadoria mínima (elegibilidade) | C7: =CALC_idade_mínima -> 55 | D7: (em anos) | F7: tempo de plano | G7: =DATEDIF(IN_dtINSC,CALCULOS!G5,"Y") -> 0
B8: Idade aposentadoria mínima (elegibilidade) | C8: =CALC_idade_mínima*12 -> 660 | D8: (em meses)
B11: Cálculos preliminares
B12: Tempos
C13: Ano | D13: Mês | E13: Dia | F13: Em meses | G13: Em anos
B14: Idade | C14: =DATEDIF(IN_dtNasc,IN_dtSimul,"y") -> 124 | D14: =DATEDIF(IN_dtNasc,IN_dtSimul,"m")-C14*12 -> 7 | E14: =DATEDIF(EDATE(IN_dtNasc,C14*12+D14),IN_dtSimul,"d") -> 27 | F14: =C14*12+D14+IF(E14>15,1,0) -> 1496 | G14: =C14+IF(D14+IF(E14>15,1,0)>=6,1,0) -> 125
B15: Tempo Patroc | C15: =DATEDIF(IN_dtAdmPatroc,IN_dtSimul,"y") -> 124 | D15: =DATEDIF(IN_dtAdmPatroc,IN_dtSimul,"m")-C15*12 -> 7 | E15: =DATEDIF(EDATE(IN_dtAdmPatroc,C15*12+D15),IN_dtSimul,"d") -> 27 | F15: 1496 | G15: 125
B16: Tempo Plano | C16: =DATEDIF(IN_dtInscPlano,IN_dtSimul,"y") -> 124 | D16: =DATEDIF(IN_dtInscPlano,IN_dtSimul,"m")-C16*12 -> 7 | E16: =DATEDIF(EDATE(IN_dtInscPlano,C16*12+D16),IN_dtSimul,"d") -> 27 | F16: 1496 | G16: 125
B17: Idade Aposentadoria | C17: =DATEDIF(IN_dtNasc,CALC_dt_apo,"y") -> 0 | D17: =DATEDIF(IN_dtNasc,CALC_dt_apo,"m")-C17*12 -> 0 | E17: =DATEDIF(EDATE(IN_dtNasc,C17*12+D17),CALC_dt_apo,"d") -> 0 | F17: 0 | G17: 0
B18: Contribuições futuras (Participante) - APO | C18: =IFERROR(DATEDIF(IN_dtSimul,CALC_dt_apo,"y"),0) -> 0 | D18: =IFERROR(DATEDIF(IN_dtSimul,CALC_dt_apo,"m")-C18*12,0) -> 0 | E18: =IFERROR(DATEDIF(EDATE(IN_dtSimul,C18*12+D18),CALC_dt_apo,"d"),0) -> 0 | F18: =C18*12+D18+IF(E18>15,1,0) -> 0 | G18: 0
B19: Contribuições futuras (Patrocinadora) - APO | C19: =IFERROR(DATEDIF(IN_dtSimul,CALC_dt_final_patroc,"y"),0) -> 0 | D19: =IFERROR(DATEDIF(IN_dtSimul,CALC_dt_final_patroc,"m")-C19*12,0) -> 0 | E19: =IFERROR(DATEDIF(EDATE(IN_dtSimul,C19*12+D19),CALC_dt_final_patroc,"d"),0) -> 0 | F19: 0 | G19: 0
B21: Dt. Aposentadoria Normal (Desejada) | C21: =EDATE(IN_dtNasc,MAX(INPUT!C23*12,INPUT!C23)) -> 00:00:00
B22: Dt. Aposentadoria Antecipada | C22: =EDATE(IN_dtNasc,MAX(IN_apo_idade*12,C7)) -> 1954-12-31
B23: Dt. Final contrib. Patroc | C23: =CALC_dt_apo -> 00:00:00
B25: Sexo | C25: =IF(OR(IN_sexo="M",IN_sexo="Masculino"),"M",IF(OR(IN_sexo="F",IN_sexo="Feminino"),"F","ERRO")) -> ERRO
B26: Tx. Rentabilidade (anual) | C26: =DESBAN!C33 -> 0.0438
B27: Tx. Rentabilidade (mensal) | C27: =(1+C26)^(1/12)-1 -> 0.003578713377
B28: Tx. Cresc. Salarial (anual) | C28: =DESBAN!C34 -> 0.005
B29: Tx. Cresc. Salarial (mensal) | C29: =(1+C28)^(1/12)-1 -> 0.0004157148447
B32: Contribuição Básica | C32: =(MIN(MAX(0,PAR_salario_partic-DESBAN!B23),DESBAN!C23-DESBAN!B23)*DESBAN!D23+MIN(MAX(0,PAR_salario_partic-DESBAN!C23),DESBAN!C24-DESBAN!B24)*DESBAN!D24+MIN(MAX(0,PAR_salario_partic-DESBAN!C24),DESBAN!C25-DESBAN!B25)*DESBAN!D25) -> 0 | D32: % considerado até R$ 31.160,07 de renda
B33: Contribuição Normal - Patrocinadora | C33: =C32 -> 0
B35: Contribuições e saldos atuais
B36: Total
B37: Saldo de Conta Total (atual) | C37: =IN_ContaTotal+IN_ContaRecPortados -> 0
B38: Salário Total | C38: =IN_SalContrib -> 0
B39: Salário de Participação considerado no Cálculo | C39: =PAR_salario_partic -> 0
B40: Contribuição Básica | C40: =C32 -> 0
B41: Contribuição Patrocinadora | C41: =C33 -> 0
B42: Contribuição Voluntária | C42: =IN_ContribAdicional*$C$39 -> 0
B43: Tx. Carreg Partic | C43: =-C40*PAR_tx_carreg -> 0
B44: Tx. Carreg Patroc | C44: =-C41*PAR_tx_carreg -> 0
B45: Tx. Risco Partic | C45: =-C40*DESBAN!C7 -> 0
B46: Tx. Risco Patroc | C46: =-C41*DESBAN!C7 -> 0
B47: Contribuição total líquida | C47: =SUM(C40:C46) -> 0
B49: Saldos projetados na aposentadoria
B50: TOTAL
B51: Saldo atual projetado | C51: =FV($C$27,$F$18,0,-$C$37,0) -> 0
B52: Contribuições Futuras | C52: =(POWER(1+$C$28,$F$18/12)*POWER(1+$C$27,-$F$18)-1)/($C$28-$C$26)*FV($C$27,12,-1)*POWER(1+$C$27,$F$18)*$C$47*(13/12) -> 0
B53: TOTAL | C53: =FLUXO!G5 -> 0 | D53: =SUM(C51:C52)-C53 -> 0
B55: Simulações de renda financeira
B56: Conta de benefícios projetada
B57: Conta de benefícios | C57: =C53 -> 0
B58: Recebimento parcela única | C58: =C57*IN_apo_percContaBenef_parcUnica -> 0
B59: Conta de benefícios para renda | C59: =C57-C58 -> 0
B62: Renda por Prazo Determinado
B63: Prazo escolhido (em anos) | C63: =INPUT!C28 -> 10 | E63: t (em anos) | F63: Saldo Acumulado | G63: Renda Recalculada
B64: Prazo escolhido (em meses) | C64: =C63*PAR_n_benef -> 0 | D64: 1º ano | E64: 0 | F64: =C59 -> 0 | G64: =C67 -> 0 | H64: =IFERROR(PMT($C$27,$C$64,-$C$59,0,0),0) -> 0
D65: 2º ano | E65: 1 | F65: =IF($C$63<E65,"-",FV($C$27,12,G64*PAR_n_benef/12,-F64)) -> 0 | G65: =IFERROR(F65/($C$64-(PAR_n_benef*E65)),"-") -> -
B66: Prazo | C66: Renda Mensal (inicial) | D66: 3º ano | E66: 2 | G66: -
B67: =TEXT(C63,"##")&" anos" -> 10 anos | C67: =IFERROR($C$59/$C$64,0) -> 0 | D67: 4º ano | E67: 3 | G67: -
B68: 5 | C68: =IFERROR($C$59/(B68*PAR_n_benef),0) -> 0 | D68: 5º ano | E68: 4 | G68: -
B69: 6 | C69: 0 | D69: 6º ano | E69: 5 | G69: -
B70: 7 | C70: 0 | D70: 7º ano | E70: 6 | G70: -
B71: 8 | C71: 0 | D71: 8º ano | E71: 7 | G71: -
B72: 9 | C72: 0 | D72: 9º ano | E72: 8 | G72: -
B73: 10 | C73: 0 | D73: 10º ano | E73: 9 | G73: -
B74: 11 | C74: 0 | D74: 11º ano | E74: 10 | G74: -
B75: 12 | C75: 0 | D75: 12º ano | E75: 11 | F75: - | G75: -
B76: 13 | C76: 0 | D76: 13º ano | E76: 12 | F76: - | G76: -
B77: 14 | C77: 0 | D77: 14º ano | E77: 13 | F77: - | G77: -
B78: 15 | C78: 0 | D78: 15º ano | E78: 14 | F78: - | G78: -
B79: 16 | C79: 0 | D79: 16º ano | E79: 15 | F79: - | G79: -
B80: 17 | C80: 0 | D80: 17º ano | E80: 16 | F80: - | G80: -
B81: 18 | C81: 0 | D81: 18º ano | E81: 17 | F81: - | G81: -
B82: 19 | C82: 0 | D82: 19º ano | E82: 18 | F82: - | G82: -
B83: 20 | C83: 0 | D83: 20º ano | E83: 19 | F83: - | G83: -
B84: 21 | C84: 0 | D84: 21º ano | E84: 20 | F84: - | G84: -
B85: 22 | C85: 0 | D85: 22º ano | E85: 21 | F85: =IF($C$63<E85,"-",FV($C$27,12,G84*PAR_n_benef/12,-F84)) -> - | G85: =IFERROR(F85/($C$64-(PAR_n_benef*E85)),"-") -> -
B86: 23 | C86: 0 | D86: 23º ano | E86: 22 | F86: - | G86: -
B87: 24 | C87: 0 | D87: 24º ano | E87: 23 | F87: - | G87: -
B88: 25 | C88: 0 | D88: 25º ano | E88: 24 | F88: - | G88: -
B89: 26 | C89: 0 | D89: 26º ano | E89: 25 | F89: - | G89: -
B90: 27 | C90: 0 | D90: 27º ano | E90: 26 | F90: - | G90: -
B91: 28 | C91: 0 | D91: 28º ano | E91: 27 | F91: - | G91: -
B92: 29 | C92: 0 | D92: 29º ano | E92: 28 | F92: - | G92: -
B93: 30 | C93: 0 | D93: 30º ano | E93: 29 | F93: - | G93: -
B95: Renda por Percentual do Saldo da Conta de Benefícios
B96: Percentual escolhido | C96: =INPUT!C29 -> 0.0025
B98: % | C98: Renda Mensal (inicial) | D98: Fator rendimento | E98: Quantidade de parcelas prováveis | F98: Renda Mensal (após 5 anos) | G98: Renda Mensal (após 10 anos) | H98: Renda Mensal (após 15 anos) | I98: Renda Mensal (após 20 anos)
B99: =TEXT(C96*100,"0,00")&"%" -> 0,25% | C99: =$C$59*C96 -> 0 | D99: =(1+$C$27)*(1-C96)-1 -> 0.001069766593 | E99: =IFERROR(IF(D99>=0,"Indeterminado",(NPER(D99,0,-$C$59,PAR_UR_mínimo,0))),0) -> Indeterminado | F99: =FV($D99,5*12,,-$C$59,0)*$C96 -> 0 | G99: =FV($D99,10*12,,-$C$59,0)*$C96 -> 0 | H99: =FV($D99,15*12,,-$C$59,0)*$C96 -> 0 | I99: =FV($D99,20*12,,-$C$59,0)*$C96 -> 0
B100: 0.001 | C100: =$C$59*B100 -> 0 | D100: =(1+$C$27)*(1-B100)-1 -> 0.002575134663 | E100: Indeterminado | F100: =FV($D100,5*12,,-$C$59,0)*$B100 -> 0 | G100: =FV($D100,10*12,,-$C$59,0)*$B100 -> 0 | H100: =FV($D100,15*12,,-$C$59,0)*$B100 -> 0 | I100: =FV($D100,20*12,,-$C$59,0)*$B100 -> 0
B101: 0.0015 | C101: =$C$59*B101 -> 0 | D101: =(1+$C$27)*(1-B101)-1 -> 0.002073345307 | E101: Indeterminado | F101: =FV($D101,5*12,,-$C$59,0)*$B101 -> 0 | G101: =FV($D101,10*12,,-$C$59,0)*$B101 -> 0 | H101: =FV($D101,15*12,,-$C$59,0)*$B101 -> 0 | I101: =FV($D101,20*12,,-$C$59,0)*$B101 -> 0
B102: 0.002 | C102: 0 | D102: =(1+$C$27)*(1-B102)-1 -> 0.00157155595 | E102: Indeterminado | F102: 0 | G102: 0 | H102: 0 | I102: 0
B103: 0.0025 | C103: 0 | D103: 0.001069766593 | E103: Indeterminado | F103: 0 | G103: 0 | H103: 0 | I103: 0
B104: 0.003 | C104: 0 | D104: 0.0005679772367 | E104: Indeterminado | F104: 0 | G104: 0 | H104: 0 | I104: 0
B105: 0.0035 | C105: 0 | D105: 6.618787996e-05 | E105: Indeterminado | F105: 0 | G105: 0 | H105: 0 | I105: 0
B106: 0.004 | C106: 0 | D106: =(1+$C$27)*(1-B106)-1 -> -0.0004356014767 | E106: 0 | F106: 0 | G106: 0 | H106: 0 | I106: 0
B107: 0.0045 | C107: 0 | D107: -0.0009373908334 | E107: 0 | F107: 0 | G107: 0 | H107: 0 | I107: 0
B108: 0.005 | C108: 0 | D108: -0.00143918019 | E108: 0 | F108: 0 | G108: 0 | H108: 0 | I108: 0
B109: 0.0055 | C109: 0 | D109: -0.001940969547 | E109: 0 | F109: 0 | G109: 0 | H109: 0 | I109: 0
B110: 0.006 | C110: 0 | D110: -0.002442758903 | E110: 0 | F110: 0 | G110: 0 | H110: 0 | I110: 0
B111: 0.0065 | C111: 0 | D111: -0.00294454826 | E111: =IFERROR(IF(D111>=0,"Indeterminado",(NPER(D111,0,-$C$59,PAR_UR_mínimo,0))),0) -> 0 | F111: 0 | G111: 0 | H111: 0 | I111: 0
B112: 0.007 | C112: 0 | D112: -0.003446337617 | E112: 0 | F112: 0 | G112: 0 | H112: 0 | I112: 0
B113: 0.0075 | C113: 0 | D113: -0.003948126974 | E113: 0 | F113: 0 | G113: 0 | H113: 0 | I113: 0
B114: 0.008 | C114: 0 | D114: -0.00444991633 | E114: 0 | F114: 0 | G114: 0 | H114: 0 | I114: 0
B115: 0.0085 | C115: 0 | D115: -0.004951705687 | E115: 0 | F115: 0 | G115: 0 | H115: 0 | I115: 0
B116: 0.009 | C116: 0 | D116: -0.005453495044 | E116: 0 | F116: 0 | G116: 0 | H116: 0 | I116: 0
B117: 0.0095 | C117: 0 | D117: -0.0059552844 | E117: 0 | F117: 0 | G117: 0 | H117: 0 | I117: 0
B118: 0.01 | C118: =$C$59*B118 -> 0 | D118: =(1+$C$27)*(1-B118)-1 -> -0.006457073757 | E118: 0 | F118: =FV($D118,5*12,,-$C$59,0)*$B118 -> 0 | G118: =FV($D118,10*12,,-$C$59,0)*$B118 -> 0 | H118: =FV($D118,15*12,,-$C$59,0)*$B118 -> 0 | I118: =FV($D118,20*12,,-$C$59,0)*$B118 -> 0
B119: 0.0105 | C119: =$C$59*B119 -> 0 | D119: -0.006958863114 | E119: 0 | F119: =FV($D119,5*12,,-$C$59,0)*$B119 -> 0 | G119: =FV($D119,10*12,,-$C$59,0)*$B119 -> 0 | H119: =FV($D119,15*12,,-$C$59,0)*$B119 -> 0 | I119: =FV($D119,20*12,,-$C$59,0)*$B119 -> 0
B120: 0.011 | C120: 0 | D120: -0.00746065247 | E120: 0 | F120: 0 | G120: 0 | H120: 0 | I120: 0
B121: 0.0115 | C121: 0 | D121: -0.007962441827 | E121: 0 | F121: 0 | G121: 0 | H121: 0 | I121: 0
B122: 0.012 | C122: 0 | D122: -0.008464231184 | E122: 0 | F122: 0 | G122: 0 | H122: 0 | I122: 0
B123: 0.0125 | C123: 0 | D123: -0.00896602054 | E123: 0 | F123: 0 | G123: 0 | H123: 0 | I123: 0
B124: 0.013 | C124: 0 | D124: -0.009467809897 | E124: 0 | F124: 0 | G124: 0 | H124: 0 | I124: 0
B125: 0.0135 | C125: 0 | D125: -0.009969599254 | E125: 0 | F125: 0 | G125: 0 | H125: 0 | I125: 0
B126: 0.014 | C126: 0 | D126: -0.01047138861 | E126: 0 | F126: 0 | G126: 0 | H126: 0 | I126: 0
B127: 0.0145 | C127: 0 | D127: -0.01097317797 | E127: 0 | F127: 0 | G127: 0 | H127: 0 | I127: 0
B128: 0.015 | C128: =$C$59*B128 -> 0 | D128: -0.01147496732 | E128: 0 | F128: =FV($D128,5*12,,-$C$59,0)*$B128 -> 0 | G128: =FV($D128,10*12,,-$C$59,0)*$B128 -> 0 | H128: =FV($D128,15*12,,-$C$59,0)*$B128 -> 0 | I128: =FV($D128,20*12,,-$C$59,0)*$B128 -> 0
B130: Renda por Prazo Indeterminado
B131: Tipo | C131: Renda Mensal (inicial) | D131: Sobrevida
B132: Aposentadoria sem reversão em Pensão | C132: =IFERROR($C$59/(PAR_parcelas_ao_ano_benef*VLOOKUP($G$17,PAR_TAB_FATORES_ATUARIAIS,IF($C$25="M",2,IF($C$25="F",3,"ERRO")),0)),0) -> 0 | D132: =IFERROR(ROUND(VLOOKUP(G17,DESBAN!$B$43:$L$164,IF(C25="M",10,11),0),0),0) -> 88
B133: Aposentadoria com reversão em Pensão | C133: =IFERROR($C$59/(PAR_parcelas_ao_ano_benef*VLOOKUP($G$17,PAR_TAB_FATORES_ATUARIAIS,IF($C$25="M",4,IF($C$25="F",5,"ERRO")),0)),0) -> 0 | D133: =D132 -> 88
B136: Anos | C136: Sem reversão em pensão | D136: Com reversão em pensão (estimada) | F136: t (em anos) | G136: Saldo Acumulado | H136: Sem reversão em pensão | I136: Saldo Acumulado | J136: Com reversão em pensão (estimada) | K136: Renda Escolhida
B137: 55 | C137: =IFERROR($C$59/(PAR_parcelas_ao_ano_benef*VLOOKUP(B137,PAR_TAB_FATORES_ATUARIAIS,IF($C$25="M",2,IF($C$25="F",3,"ERRO")),0)),0) -> 0 | D137: =IFERROR($C$59/(PAR_parcelas_ao_ano_benef*VLOOKUP(B137,PAR_TAB_FATORES_ATUARIAIS,IF($C$25="M",4,IF($C$25="F",5,"ERRO")),0)),0) -> 0 | F137: 0 | G137: =C53 -> 0 | H137: =G137/(PAR_parcelas_ao_ano_benef*VLOOKUP($G$17,PAR_TAB_FATORES_ATUARIAIS,IF($C$25="M",2,IF($C$25="F",3,"ERRO")),0)) ->  | I137: =C53 -> 0 | J137: =I137/(PAR_parcelas_ao_ano_benef*VLOOKUP($G$17,PAR_TAB_FATORES_ATUARIAIS,IF($C$25="M",4,IF($C$25="F",5,"ERRO")),0)) ->  | K137: =IF(F137>$D$132,0,IF(INPUT!$C$13="Não",CALCULOS!H137,CALCULOS!J137)) -> 
B138: 56 | C138: 0 | D138: 0 | F138: 1 | G138: =((((((((((((G137*(1+$C$27)-H137)*(1+$C$27)-H137)*(1+$C$27)-H137)*(1+$C$27)-H137)*(1+$C$27)-H137)*(1+$C$27)-H137)*(1+$C$27)-H137)*(1+$C$27)-H137)*(1+$C$27)-H137)*(1+$C$27)-H137)*(1+$C$27)-H137)*(1+$C$27)-H137*IF(PAR_n_benef=13,2,1)) ->  | H138: =G138/(PAR_parcelas_ao_ano_benef*VLOOKUP($G$17,PAR_TAB_FATORES_ATUARIAIS,IF($C$25="M",2,IF($C$25="F",3,"ERRO")),0)) ->  | I138: =((((((((((((I137*(1+$C$27)-J137)*(1+$C$27)-J137)*(1+$C$27)-J137)*(1+$C$27)-J137)*(1+$C$27)-J137)*(1+$C$27)-J137)*(1+$C$27)-J137)*(1+$C$27)-J137)*(1+$C$27)-J137)*(1+$C$27)-J137)*(1+$C$27)-J137)*(1+$C$27)-J137*IF(PAR_n_benef=13,2,1)) ->  | K138: =IF(F138>$D$132,0,IF(INPUT!$C$13="Não",CALCULOS!H138,CALCULOS!J138)) -> 
B139: 57 | C139: 0 | D139: 0 | F139: 2 | K139: =IF(F139>$D$132,0,IF(INPUT!$C$13="Não",CALCULOS!H139,CALCULOS!J139)) -> 
B140: 58 | C140: 0 | D140: 0 | F140: 3 | K140: =IF(F140>$D$132,0,IF(INPUT!$C$13="Não",CALCULOS!H140,CALCULOS!J140)) -> 
B141: 59 | C141: 0 | D141: 0 | F141: 4 | K141: =IF(F141>$D$132,0,IF(INPUT!$C$13="Não",CALCULOS!H141,CALCULOS!J141)) -> 
B142: 60 | C142: 0 | D142: 0 | F142: 5 | K142: =IF(F142>$D$132,0,IF(INPUT!$C$13="Não",CALCULOS!H142,CALCULOS!J142)) -> 
B143: 61 | C143: 0 | D143: 0 | F143: 6 | K143: =IF(F143>$D$132,0,IF(INPUT!$C$13="Não",CALCULOS!H143,CALCULOS!J143)) -> 
B144: 62 | C144: 0 | D144: 0 | F144: 7 | K144: =IF(F144>$D$132,0,IF(INPUT!$C$13="Não",CALCULOS!H144,CALCULOS!J144)) -> 
B145: 63 | C145: 0 | D145: 0 | F145: 8 | K145: =IF(F145>$D$132,0,IF(INPUT!$C$13="Não",CALCULOS!H145,CALCULOS!J145)) -> 
B146: 64 | C146: 0 | D146: 0 | F146: 9 | K146: =IF(F146>$D$132,0,IF(INPUT!$C$13="Não",CALCULOS!H146,CALCULOS!J146)) -> 
B147: 65 | C147: 0 | D147: 0 | F147: 10 | K147: =IF(F147>$D$132,0,IF(INPUT!$C$13="Não",CALCULOS!H147,CALCULOS!J147)) -> 
B148: 66 | C148: 0 | D148: 0 | F148: 11 | K148: =IF(F148>$D$132,0,IF(INPUT!$C$13="Não",CALCULOS!H148,CALCULOS!J148)) -> 
B149: 67 | C149: 0 | D149: 0 | F149: 12 | K149: =IF(F149>$D$132,0,IF(INPUT!$C$13="Não",CALCULOS!H149,CALCULOS!J149)) -> 
B150: 68 | C150: 0 | D150: 0 | F150: 13 | K150: =IF(F150>$D$132,0,IF(INPUT!$C$13="Não",CALCULOS!H150,CALCULOS!J150)) -> 
B151: 69 | C151: 0 | D151: 0 | F151: 14 | K151: =IF(F151>$D$132,0,IF(INPUT!$C$13="Não",CALCULOS!H151,CALCULOS!J151)) -> 
B152: 70 | C152: 0 | D152: 0 | F152: 15 | K152: =IF(F152>$D$132,0,IF(INPUT!$C$13="Não",CALCULOS!H152,CALCULOS!J152)) -> 
B153: 71 | C153: 0 | D153: 0 | F153: 16 | K153: =IF(F153>$D$132,0,IF(INPUT!$C$13="Não",CALCULOS!H153,CALCULOS!J153)) -> 
B154: 72 | C154: 0 | D154: 0 | F154: 17 | H154: =G154/(PAR_parcelas_ao_ano_benef*VLOOKUP($G$17,PAR_TAB_FATORES_ATUARIAIS,IF($C$25="M",2,IF($C$25="F",3,"ERRO")),0)) ->  | K154: =IF(F154>$D$132,0,IF(INPUT!$C$13="Não",CALCULOS!H154,CALCULOS!J154)) -> 
B155: 73 | C155: 0 | D155: 0 | F155: 18 | K155: =IF(F155>$D$132,0,IF(INPUT!$C$13="Não",CALCULOS!H155,CALCULOS!J155)) -> 
B156: 74 | C156: 0 | D156: 0 | F156: 19 | K156: =IF(F156>$D$132,0,IF(INPUT!$C$13="Não",CALCULOS!H156,CALCULOS!J156)) -> 
B157: 75 | C157: 0 | D157: 0 | F157: 20 | K157: =IF(F157>$D$132,0,IF(INPUT!$C$13="Não",CALCULOS!H157,CALCULOS!J157)) -> 
B158: 76 | C158: =IFERROR($C$59/(PAR_parcelas_ao_ano_benef*VLOOKUP(B158,PAR_TAB_FATORES_ATUARIAIS,IF($C$25="M",2,IF($C$25="F",3,"ERRO")),0)),0) -> 0 | D158: =IFERROR($C$59/(PAR_parcelas_ao_ano_benef*VLOOKUP(B158,PAR_TAB_FATORES_ATUARIAIS,IF($C$25="M",4,IF($C$25="F",5,"ERRO")),0)),0) -> 0 | F158: 21 | J158: =I158/(PAR_parcelas_ao_ano_benef*VLOOKUP($G$17,PAR_TAB_FATORES_ATUARIAIS,IF($C$25="M",4,IF($C$25="F",5,"ERRO")),0)) ->  | K158: =IF(F158>$D$132,0,IF(INPUT!$C$13="Não",CALCULOS!H158,CALCULOS!J158)) -> 
B159: 77 | C159: 0 | D159: 0 | F159: 22 | K159: =IF(F159>$D$132,0,IF(INPUT!$C$13="Não",CALCULOS!H159,CALCULOS!J159)) -> 
B160: 78 | C160: 0 | D160: 0 | F160: 23 | K160: =IF(F160>$D$132,0,IF(INPUT!$C$13="Não",CALCULOS!H160,CALCULOS!J160)) -> 
B161: 79 | C161: 0 | D161: 0 | F161: 24 | H161: =G161/(PAR_parcelas_ao_ano_benef*VLOOKUP($G$17,PAR_TAB_FATORES_ATUARIAIS,IF($C$25="M",2,IF($C$25="F",3,"ERRO")),0)) ->  | K161: =IF(F161>$D$132,0,IF(INPUT!$C$13="Não",CALCULOS!H161,CALCULOS!J161)) -> 
B162: 80 | C162: 0 | D162: 0 | F162: 25 | K162: =IF(F162>$D$132,0,IF(INPUT!$C$13="Não",CALCULOS!H162,CALCULOS!J162)) -> 
B164: Simulação de renda vitalícia
B165: Tipo | C165: Renda Mensal
B166: Aposentadoria sem reversão em Pensão | C166: =IFERROR($C$59/(PAR_parcelas_ao_ano_benef*VLOOKUP($G$17,PAR_TAB_FATORES_ATUARIAIS,IF($C$25="M",2,IF($C$25="F",3,"ERRO")),0)),0) -> 0
B167: Aposentadoria com reversão em Pensão | C167: =IFERROR($C$59/(PAR_parcelas_ao_ano_benef*VLOOKUP($G$17,PAR_TAB_FATORES_ATUARIAIS,IF($C$25="M",4,IF($C$25="F",5,"ERRO")),0)),0) -> 0
B170: Parcela Adicional de Risco
B171: I. Contribuição Esperada | C171: =PAR_salario_partic -> 0
B172: II. Multiplicador | C172: =13/12 -> 1.083333333
B173: III. Tempo de serviço restante para periodo de carência | C173: =IFERROR(DATEDIF(IN_dtSimul,C22,"y"),0) -> 0
B174: IV. Fator Multiplicador | C174: 2
B176: Parcela Adicional de Risco | C176: =C174*C173*C172*C171 -> 0
